Workbook

Sheet Planilha Orçamentária Onerada
A1: Ministério da Integração e do Desenvolvimento Regional
A2: Companhia de Desenvolvimento dos Vales do São Francisco e do Parnaíba
A4: PLANILHA ORÇAMENTÁRIA - ORÇAMENTO NÃO DESONERADO
A5: OBRA: | B5: SERVIÇOS DE INSPEÇÃO EM BARRAGENS | E5: UF: | F5: Encargos sociais - Horistas: | G5: Encargos sociais - Mensalista: | H5: BDI | I5: Bancos de dados:
A6: LOCAL: | B6: BARRAGENS CODEVASF | E6: AL | F6: ='Encargos Sociais'!E217 -> 1.149 | G6: ='Encargos Sociais'!F217 -> 0.7023 | H6: SERVIÇO | I6: OUT/24 - SINAPI
A7: DATA BASE: | B7: DEZEMBRO, 2024 | E7: BA | F7: ='Encargos Sociais'!E91 -> 1.1515 | G7: ='Encargos Sociais'!F91 -> 0.7122 | H7: ='BDI serv'!D23 -> 0.21 | I7: MG/ BA/ PE/ SE/ AL
A8: PRAZO: | B8: 8 meses | E8: MG | F8: ='Encargos Sociais'!E49 -> 1.1663 | G8: ='Encargos Sociais'!F49 -> 0.7368 | H8: FORNECIMENTO | I8: Desconto:
E9: PE | F9: ='Encargos Sociais'!E133 -> 1.1455 | G9: ='Encargos Sociais'!F133 -> 0.7011 | H9: ='BDI forn'!D23 -> 0.136 | I9: 0
E10: SE | F10: ='Encargos Sociais'!E175 -> 1.1193 | G10: ='Encargos Sociais'!F175 -> 0.7007
A11: ITEM | B11: REFERÊNCIA | D11: DESCRIÇÃO | E11: UNID. | F11: QUANT. | G11: CUSTO UNITÁRIO | H11: PREÇO UNITÁRIO | I11: PREÇO TOTAL | J11: TIPO de BDI | K11: CLASSIF
B12: FONTE | C12: CÓDIGO
A13: 1 | D13: INSPEÇÃO DE SEGURANÇA REGULAR | I13: =SUM(I14,I16,I18,I20,I22,I24,I26) -> 1246140.22 | K13: ss
A14: 1.1 | D14: 1ª SR - Montes Claros (MG) | I14: =TRUNC(SUM(I15:I15),2) -> 33641.01 | K14: ss
A15: 1.1.1 | B15: PRÓPRIA | C15: CPU.01 | D15: Inspeção de Segurança Regular em barragem da 1ª SR | E15: unid. | F15: =Memorial!L3 -> 3 | G15: =TRUNC((1-$I$9)*(SUMIFS('CPU Onerado'!$G:$G,'CPU Onerado'!$A:$A,'Planilha Orçamentária Onerada'!$C15,'CPU Onerado'!$H:$H,"ss")+SUMIFS('CPU Onerado'!$G:$G,'CPU Onerado'!$A:$A,'Planilha Orçamentária Onerada'!$C15,'CPU Onerado'!$H:$H,"mdo")+SUMIF('Comp SINAPI MG 09-2024 Desoner'!G:G,'Planilha Orçamentária Onerada'!C15,'Comp SINAPI MG 09-2024 Desoner'!K:K)+SUMIF('Ins SINAPI MG 09-2024 Desoner'!A:A,'Planilha Orçamentária Onerada'!C15,'Ins SINAPI MG 09-2024 Desoner'!E:E)),2) -> 9267.5 | H15: =TRUNC(G15*(1+$H$7),2) -> 11213.67 | I15: =TRUNC(F15*H15,2) -> 33641.01 | J15: =TRUNC(F15*H15,2) -> 33641.01
A16: 1.2 | D16: 2ª SR - Bom Jesus da Lapa (BA) | I16: =SUM(I17:I17) -> 148497.8 | J16: =TRUNC(F16*H16,2) -> 0 | K16: ss
A17: 1.2.1 | B17: PRÓPRIA | C17: CPU.02 | D17: Inspeção de Segurança Regular em barragem da 2ª SR | E17: unid. | F17: =Memorial!L6 -> 13 | G17: =TRUNC((1-$I$9)*(SUMIFS('CPU Onerado'!$G:$G,'CPU Onerado'!$A:$A,'Planilha Orçamentária Onerada'!$C17,'CPU Onerado'!$H:$H,"ss")+SUMIFS('CPU Onerado'!$G:$G,'CPU Onerado'!$A:$A,'Planilha Orçamentária Onerada'!$C17,'CPU Onerado'!$H:$H,"mdo")+SUMIF('Comp SINAPI MG 09-2024 Desoner'!G:G,'Planilha Orçamentária Onerada'!C17,'Comp SINAPI MG 09-2024 Desoner'!K:K)+SUMIF('Ins SINAPI MG 09-2024 Desoner'!A:A,'Planilha Orçamentária Onerada'!C17,'Ins SINAPI MG 09-2024 Desoner'!E:E)),2) -> 9440.42 | H17: =G17*(1+$H$7) -> 11422.9082 | I17: =TRUNC(F17*H17,2) -> 148497.8 | J17: 148497.8
A18: 1.3 | D18: 3ª SR - Petrolina (PE) | I18: =SUM(I19:I19) -> 845357.92 | J18: 0 | K18: ss
A19: 1.3.1 | B19: PRÓPRIA | C19: CPU.03 | D19: Inspeção de Segurança Regular em barragem da 3ª SR | E19: unid. | F19: =Memorial!L19 -> 88 | G19: =TRUNC((1-$I$9)*(SUMIFS('CPU Onerado'!$G:$G,'CPU Onerado'!$A:$A,'Planilha Orçamentária Onerada'!$C19,'CPU Onerado'!$H:$H,"ss")+SUMIFS('CPU Onerado'!$G:$G,'CPU Onerado'!$A:$A,'Planilha Orçamentária Onerada'!$C19,'CPU Onerado'!$H:$H,"mdo")+SUMIF('Comp SINAPI MG 09-2024 Desoner'!G:G,'Planilha Orçamentária Onerada'!C19,'Comp SINAPI MG 09-2024 Desoner'!K:K)+SUMIF('Ins SINAPI MG 09-2024 Desoner'!A:A,'Planilha Orçamentária Onerada'!C19,'Ins SINAPI MG 09-2024 Desoner'!E:E)),2) -> 7939.13 | H19: =TRUNC(G19*(1+$H$7),2) -> 9606.34 | I19: =TRUNC(F19*H19,2) -> 845357.92 | J19: 845357.92
A20: 1.4 | D20: 4ª SR - Aracaju (SE) | I20: =TRUNC(SUM(I21:I21),2) -> 56829.2 | J20: 0 | K20: ss
A21: 1.4.1 | B21: PRÓPRIA | C21: CPU.04 | D21: Inspeção de Segurança Regular em barragem da 4ª SR | E21: unid. | F21: =Memorial!L107 -> 5 | G21: =TRUNC((1-$I$9)*(SUMIFS('CPU Onerado'!$G:$G,'CPU Onerado'!$A:$A,'Planilha Orçamentária Onerada'!$C21,'CPU Onerado'!$H:$H,"ss")+SUMIFS('CPU Onerado'!$G:$G,'CPU Onerado'!$A:$A,'Planilha Orçamentária Onerada'!$C21,'CPU Onerado'!$H:$H,"mdo")+SUMIF('Comp SINAPI MG 09-2024 Desoner'!G:G,'Planilha Orçamentária Onerada'!C21,'Comp SINAPI MG 09-2024 Desoner'!K:K)+SUMIF('Ins SINAPI MG 09-2024 Desoner'!A:A,'Planilha Orçamentária Onerada'!C21,'Ins SINAPI MG 09-2024 Desoner'!E:E)),2) -> 9393.26 | H21: =TRUNC(G21*(1+$H$7),2) -> 11365.84 | I21: =TRUNC(F21*H21,2) -> 56829.2 | J21: 56829.2
A22: 1.5 | D22: 5ª SR - Maceió (AL) | I22: =TRUNC(SUM(I23:I23),2) -> 35416.95 | J22: 0 | K22: ss
A23: 1.5.1 | B23: PRÓPRIA | C23: CPU.05 | D23: Inspeção de Segurança Regular em barragem da 5ª SR | E23: unid. | F23: =Memorial!L112 -> 3 | G23: =TRUNC((1-$I$9)*(SUMIFS('CPU Onerado'!$G:$G,'CPU Onerado'!$A:$A,'Planilha Orçamentária Onerada'!$C23,'CPU Onerado'!$H:$H,"ss")+SUMIFS('CPU Onerado'!$G:$G,'CPU Onerado'!$A:$A,'Planilha Orçamentária Onerada'!$C23,'CPU Onerado'!$H:$H,"mdo")+SUMIF('Comp SINAPI MG 09-2024 Desoner'!G:G,'Planilha Orçamentária Onerada'!C23,'Comp SINAPI MG 09-2024 Desoner'!K:K)+SUMIF('Ins SINAPI MG 09-2024 Desoner'!A:A,'Planilha Orçamentária Onerada'!C23,'Ins SINAPI MG 09-2024 Desoner'!E:E)),2) -> 9756.74 | H23: =TRUNC(G23*(1+$H$7),2) -> 11805.65 | I23: =TRUNC(F23*H23,2) -> 35416.95 | J23: 35416.95
A24: 1.6 | D24: 6ª SR - Juazeiro (BA) | I24: =TRUNC(SUM(I25:I25),2) -> 79916.34 | J24: 0 | K24: ss
A25: 1.6.1 | B25: PRÓPRIA | C25: CPU.06 | D25: Inspeção de Segurança Regular em barragem da 6ª SR | E25: unid. | F25: =Memorial!L115 -> 7 | G25: =TRUNC((1-$I$9)*(SUMIFS('CPU Onerado'!$G:$G,'CPU Onerado'!$A:$A,'Planilha Orçamentária Onerada'!$C25,'CPU Onerado'!$H:$H,"ss")+SUMIFS('CPU Onerado'!$G:$G,'CPU Onerado'!$A:$A,'Planilha Orçamentária Onerada'!$C25,'CPU Onerado'!$H:$H,"mdo")+SUMIF('Comp SINAPI MG 09-2024 Desoner'!G:G,'Planilha Orçamentária Onerada'!C25,'Comp SINAPI MG 09-2024 Desoner'!K:K)+SUMIF('Ins SINAPI MG 09-2024 Desoner'!A:A,'Planilha Orçamentária Onerada'!C25,'Ins SINAPI MG 09-2024 Desoner'!E:E)),2) -> 9435.23 | H25: =TRUNC(G25*(1+$H$7),2) -> 11416.62 | I25: =TRUNC(F25*H25,2) -> 79916.34 | J25: 79916.34
A26: 2.2 | D26: Passagem aérea | I26: =TRUNC(SUM(I27),2) -> 46481 | K26: ss | M26: =1537298.65-I37 -> 141532.23
A27: 2.2.1 | B27: PRÓPRIA | C27: CPU.07 | D27: Passagem aérea (Ida e Volta) | E27: unid. | F27: =(8+2)*2 -> 20 | G27: =TRUNC((1-$I$9)*(SUMIFS('CPU Onerado'!$G:$G,'CPU Onerado'!$A:$A,'Planilha Orçamentária Onerada'!$C27,'CPU Onerado'!$H:$H,"ss")+SUMIFS('CPU Onerado'!$G:$G,'CPU Onerado'!$A:$A,'Planilha Orçamentária Onerada'!$C27,'CPU Onerado'!$H:$H,"mdo")+SUMIF('Comp SINAPI MG 09-2024 Desoner'!G:G,'Planilha Orçamentária Onerada'!C27,'Comp SINAPI MG 09-2024 Desoner'!K:K)+SUMIF('Ins SINAPI MG 09-2024 Desoner'!A:A,'Planilha Orçamentária Onerada'!C27,'Ins SINAPI MG 09-2024 Desoner'!E:E)),2) -> 1920.71 | H27: =TRUNC(G27*(1+$H$7),2) -> 2324.05 | I27: =TRUNC(F27*H27,2) -> 46481 | J27: =TRUNC(F27*H27,2) -> 46481
A29: 2 | D29: INSPEÇÃO DE SEGURANÇA ESPECIAL | I29: =TRUNC(SUM(I30,I32),2) -> 149626.2 | K29: ss
A30: 2.1 | D30: Inspeção de Segurança Especial | I30: =TRUNC(SUM(I31),2) -> 114765.45 | K30: ss
A31: 2.1.1 | B31: PRÓPRIA | C31: CPU.08 | D31: Inspeção de Segurança Especial | E31: unid. | F31: 5 | G31: =(1-$I$9)*(SUMIFS('CPU Onerado'!$G:$G,'CPU Onerado'!$A:$A,'Planilha Orçamentária Onerada'!$C31,'CPU Onerado'!$H:$H,"ss")+SUMIFS('CPU Onerado'!$G:$G,'CPU Onerado'!$A:$A,'Planilha Orçamentária Onerada'!$C31,'CPU Onerado'!$H:$H,"mdo")+SUMIF('Comp SINAPI MG 09-2024 Desoner'!G:G,'Planilha Orçamentária Onerada'!C31,'Comp SINAPI MG 09-2024 Desoner'!K:K)+SUMIF('Ins SINAPI MG 09-2024 Desoner'!A:A,'Planilha Orçamentária Onerada'!C31,'Ins SINAPI MG 09-2024 Desoner'!E:E)) -> 18969.5 | H31: =TRUNC(G31*(1+$H$7),2) -> 22953.09 | I31: =TRUNC(F31*H31,2) -> 114765.45 | J31: =TRUNC(F31*H31,2) -> 114765.45
A32: 2.2 | D32: Passagem aérea | I32: =TRUNC(SUM(I33),2) -> 34860.75 | K32: ss
A33: 2.2.1 | B33: PRÓPRIA | C33: CPU.07 | D33: Passagem aérea (Ida e Volta) | E33: unid. | F33: =F31*3 -> 15 | G33: =(1-$I$9)*(SUMIFS('CPU Onerado'!$G:$G,'CPU Onerado'!$A:$A,'Planilha Orçamentária Onerada'!$C33,'CPU Onerado'!$H:$H,"ss")+SUMIFS('CPU Onerado'!$G:$G,'CPU Onerado'!$A:$A,'Planilha Orçamentária Onerada'!$C33,'CPU Onerado'!$H:$H,"mdo")+SUMIF('Comp SINAPI MG 09-2024 Desoner'!G:G,'Planilha Orçamentária Onerada'!C33,'Comp SINAPI MG 09-2024 Desoner'!K:K)+SUMIF('Ins SINAPI MG 09-2024 Desoner'!A:A,'Planilha Orçamentária Onerada'!C33,'Ins SINAPI MG 09-2024 Desoner'!E:E)) -> 1920.71 | H33: =TRUNC(G33*(1+$H$7),2) -> 2324.05 | I33: =TRUNC(F33*H33,2) -> 34860.75 | J33: =TRUNC(F33*H33,2) -> 34860.75
D35: TOTAL (Custo): | I35: =TRUNC(SUMPRODUCT(F14:F34,G14:G34),2) -> 1153526.88
D36: BDI e Encargos Sociais: | I36: =TRUNC(I37-I35,2) -> 242239.54
D37: TOTAL GERAL COM BDI: | I37: =TRUNC(SUMPRODUCT(F14:F34,H14:H34),2) -> 1395766.42 | J37: VERIFICAÇÃO | K37: =SUM(I13,I29) -> 1395766.42

Sheet CPU Onerado
A1: Ministério da Integração e do Desenvolvimento Regional
A2: Companhia de Desenvolvimento dos Vales do São Francisco e do Parnaíba
A4: COMPOSIÇÕES DE PREÇOS UNITÁRIOS - ORÇAMENTO NÃO DESONERADO
A5: ='Planilha Orçamentária Onerada'!A5 -> OBRA: | B5: ='Planilha Orçamentária Onerada'!B5 -> SERVIÇOS DE INSPEÇÃO EM BARRAGENS
A6: ='Planilha Orçamentária Onerada'!A6 -> LOCAL: | B6: ='Planilha Orçamentária Onerada'!B6 -> BARRAGENS CODEVASF
A7: ='Planilha Orçamentária Onerada'!A7 -> DATA BASE: | B7: ='Planilha Orçamentária Onerada'!B7 -> DEZEMBRO, 2024
A8: ='Planilha Orçamentária Onerada'!A8 -> PRAZO: | B8: ='Planilha Orçamentária Onerada'!B8 -> 8 meses
A9: REFERÊNCIA | B9: CÓDIGO | C9: DESCRIÇÃO | D9: UNIDADE | E9: ÍNDICE | F9: CUSTO UNITÁRIO | G9: CUSTO TOTAL
B10: ='Planilha Orçamentária Onerada'!C15 -> CPU.01 | C10: =VLOOKUP(B10,'Planilha Orçamentária Onerada'!C$13:F$25,2) -> Inspeção de Segurança Regular em barragem da 1ª SR | D10: =VLOOKUP(B10,'Planilha Orçamentária Onerada'!C$13:F$25,3) -> unid. | E10: 1 | G10: =TRUNC(SUM(G15,G14,G12,G11),2) -> 9267.5 | H10: S
A11: =B10 -> CPU.01 | C11: MATERIAL | G11: 0 | H11: ss
A12: =B10 -> CPU.01 | C12: EQUIPAMENTOS | G12: =SUM(G13) -> 488.44 | H12: ss
A13: CODEVASF | C13: Veículo tipo pick-up, cabine dupla - 2.0 16V 4x4 diesel Aut. | D13: dia | E13: =Memorial!M3/Memorial!L3 -> 1.5 | F13: 325.63 | G13: =TRUNC(E13*F13,2) -> 488.44 | H13: ca
A14: =B10 -> CPU.01 | C14: SERVIÇOS | G14: 0 | H14: ss
A15: =B10 -> CPU.01 | C15: MÃO DE OBRA | G15: =SUM(G16:G22) -> 8779.06 | H15: mdo
A16: SINAPI | B16: 90778 | C16: Inspeção - Engenheiro Geotécnico ou Estrutural (ADAPTADO SINAPI 90778) | D16: =PROPER(IF(H16="i",VLOOKUP(B16,'Ins SINAPI MG 09-2024 Desoner'!$A$8:$E$5189,2,0),VLOOKUP(B16,'Comp SINAPI MG 09-2024 Desoner'!$G$7:$K$7500,3,0))) -> H | E16: =(Memorial!M3*8)/Memorial!L3 -> 12 | F16: 121.99 | G16: =TRUNC(E16*F16,2) -> 1463.88 | H16: ca
A17: SINAPI | B17: 90778 | C17: Inspeção - Engenheiro Hidráulico (ADAPTADO SINAPI 90778) | D17: =PROPER(IF(H17="i",VLOOKUP(B17,'Ins SINAPI MG 09-2024 Desoner'!$A$8:$E$5189,2,0),VLOOKUP(B17,'Comp SINAPI MG 09-2024 Desoner'!$G$7:$K$7500,3,0))) -> H | E17: =(Memorial!M3*8)/Memorial!L3 -> 12 | F17: 121.99 | G17: =TRUNC(E17*F17,2) -> 1463.88 | H17: ca
A18: CREA - 2024 | C18: Anotação de Responsabilidade Técnica (ART) | D18: unid. | E18: =2/Memorial!L3 -> 0.6666666667 | F18: 271.47 | G18: 180.98 | H18: ca
A19: CODEVASF | C19: Hospedagem | D19: unid. | E19: =2*ROUNDUP((Memorial!M3-1),0)/Memorial!L3 -> 2.666666667 | F19: 218.1 | G19: 581.6 | H19: ca
A20: CODEVASF | C20: Alimentação | D20: unid. | E20: =2*ROUNDUP((Memorial!M3-1),0)/Memorial!L3 -> 2.666666667 | F20: 87 | G20: 232 | H20: ca
A21: SINAPI | B21: 90777 | C21: Confecção do relatório - Engenheiro Civil De Obra Júnior Com Encargos Complementares | D21: =PROPER(IF(H21="i",VLOOKUP(B21,'Ins SINAPI MG 09-2024 Desoner'!$A$8:$E$5189,2,0),VLOOKUP(B21,'Comp SINAPI MG 09-2024 Desoner'!$G$7:$K$7500,3,0))) -> H | E21: 36 | F21: 118.01 | G21: 4248.36 | H21: ca
A22: SINAPI | B22: 90779 | C22: Confecção do relatório - Engenheiro Civil De Obra Sênior Com Encargos Complementares | D22: =PROPER(IF(H22="i",VLOOKUP(B22,'Ins SINAPI MG 09-2024 Desoner'!$A$8:$E$5189,2,0),VLOOKUP(B22,'Comp SINAPI MG 09-2024 Desoner'!$G$7:$K$7500,3,0))) -> H | E22: 4 | F22: 152.09 | G22: 608.36 | H22: ca
B24: ='Planilha Orçamentária Onerada'!C17 -> CPU.02 | C24: =VLOOKUP(B24,'Planilha Orçamentária Onerada'!C$13:F$25,2) -> Inspeção de Segurança Regular em barragem da 2ª SR | D24: =VLOOKUP(B24,'Planilha Orçamentária Onerada'!C$13:F$25,3) -> unid. | E24: 1 | G24: =SUM(G29,G28,G26,G25) -> 9440.42 | H24: S
A25: =B24 -> CPU.02 | C25: MATERIAL | G25: 0 | H25: ss
A26: =B24 -> CPU.02 | C26: EQUIPAMENTOS | G26: =SUM(G27) -> 488.44 | H26: ss
A27: CODEVASF | C27: Veículo tipo pick-up, cabine dupla - 2.0 16V 4x4 diesel Aut. | D27: dia | E27: =Memorial!M6/Memorial!L6 -> 1.5 | F27: =$F$13 -> 325.63 | G27: =TRUNC(E27*F27,2) -> 488.44 | H27: ca
A28: =B24 -> CPU.02 | C28: SERVIÇOS | G28: 0 | H28: ss
A29: =B24 -> CPU.02 | C29: MÃO DE OBRA | G29: =SUM(G30:G36) -> 8951.98 | H29: mdo
A30: SINAPI | B30: 90778 | C30: Inspeção - Engenheiro Geotécnico ou Estrutural (ADAPTADO SINAPI 90778) | D30: =PROPER(IF(H30="i",VLOOKUP(B30,'Ins SINAPI MG 09-2024 Desoner'!$A$8:$E$5189,2,0),VLOOKUP(B30,'Comp SINAPI MG 09-2024 Desoner'!$G$7:$K$7500,3,0))) -> H | E30: =(Memorial!M6*8)/Memorial!L6 -> 12 | F30: 126.51 | G30: =TRUNC(E30*F30,2) -> 1518.12 | H30: ca
A31: SINAPI | B31: 90778 | C31: Inspeção - Engenheiro Hidráulico (ADAPTADO SINAPI 90778) | D31: =PROPER(IF(H31="i",VLOOKUP(B31,'Ins SINAPI MG 09-2024 Desoner'!$A$8:$E$5189,2,0),VLOOKUP(B31,'Comp SINAPI MG 09-2024 Desoner'!$G$7:$K$7500,3,0))) -> H | E31: =(Memorial!M6*8)/Memorial!L6 -> 12 | F31: 126.51 | G31: =TRUNC(E31*F31,2) -> 1518.12 | H31: ca
A32: CREA - 2024 | C32: Anotação de Responsabilidade Técnica (ART) | D32: unid. | E32: =(1/13)+(2/13) -> 0.2307692308 | F32: 271.47 | G32: 62.64 | H32: ca
A33: CODEVASF | C33: Hospedagem | D33: unid. | E33: =2*ROUNDUP((Memorial!M6-1),0)/Memorial!L6 -> 2.923076923 | F33: 218.1 | G33: 637.52 | H33: ca
A34: CODEVASF | C34: Alimentação | D34: unid. | E34: =2*ROUNDUP((Memorial!M6-1),0)/Memorial!L6 -> 2.923076923 | F34: 87 | G34: 254.3 | H34: ca
A35: SINAPI | B35: 90777 | C35: Confecção do relatório - Engenheiro Civil De Obra Júnior Com Encargos Complementares | D35: =PROPER(IF(H35="i",VLOOKUP(B35,'Ins SINAPI MG 09-2024 Desoner'!$A$8:$E$5189,2,0),VLOOKUP(B35,'Comp SINAPI MG 09-2024 Desoner'!$G$7:$K$7500,3,0))) -> H | E35: 36 | F35: 122.3 | G35: 4402.8 | H35: ca
A36: SINAPI | B36: 90779 | C36: Confecção do relatório - Engenheiro Civil De Obra Sênior Com Encargos Complementares | D36: =PROPER(IF(H36="i",VLOOKUP(B36,'Ins SINAPI MG 09-2024 Desoner'!$A$8:$E$5189,2,0),VLOOKUP(B36,'Comp SINAPI MG 09-2024 Desoner'!$G$7:$K$7500,3,0))) -> H | E36: 4 | F36: 139.62 | G36: 558.48 | H36: ca
B38: ='Planilha Orçamentária Onerada'!C19 -> CPU.03 | C38: =VLOOKUP(B38,'Planilha Orçamentária Onerada'!C$13:F$25,2) -> Inspeção de Segurança Regular em barragem da 3ª SR | D38: =VLOOKUP(B38,'Planilha Orçamentária Onerada'!C$13:F$25,3) -> unid. | E38: 1 | G38: =SUM(G43,G42,G40,G39) -> 7939.13 | H38: S
A39: =B38 -> CPU.03 | C39: MATERIAL | G39: 0 | H39: ss
A40: =B38 -> CPU.03 | C40: EQUIPAMENTOS | G40: =SUM(G41) -> 325.63 | H40: ss
A41: CODEVASF | C41: Veículo tipo pick-up, cabine dupla - 2.0 16V 4x4 diesel Aut. | D41: dia | E41: =Memorial!M19/Memorial!L19 -> 1 | F41: =$F$13 -> 325.63 | G41: =TRUNC(E41*F41,2) -> 325.63 | H41: ca
A42: =B38 -> CPU.03 | C42: SERVIÇOS | G42: 0 | H42: ss
A43: =B38 -> CPU.03 | C43: MÃO DE OBRA | G43: =SUM(G44:G50) -> 7613.5 | H43: mdo
A44: SINAPI | B44: 90778 | C44: Inspeção - Engenheiro Geotécnico ou Estrutural (ADAPTADO SINAPI 90778) | D44: =PROPER(IF(H44="i",VLOOKUP(B44,'Ins SINAPI MG 09-2024 Desoner'!$A$8:$E$5189,2,0),VLOOKUP(B44,'Comp SINAPI MG 09-2024 Desoner'!$G$7:$K$7500,3,0))) -> H | E44: =(Memorial!M19*8)/Memorial!L19 -> 8 | F44: 126.7 | G44: =TRUNC(E44*F44,2) -> 1013.6 | H44: ca
A45: SINAPI | B45: 90778 | C45: Inspeção - Engenheiro Hidráulico (ADAPTADO SINAPI 90778) | D45: =PROPER(IF(H45="i",VLOOKUP(B45,'Ins SINAPI MG 09-2024 Desoner'!$A$8:$E$5189,2,0),VLOOKUP(B45,'Comp SINAPI MG 09-2024 Desoner'!$G$7:$K$7500,3,0))) -> H | E45: =(Memorial!M19*8)/Memorial!L19 -> 8 | F45: 126.7 | G45: =TRUNC(E45*F45,2) -> 1013.6 | H45: ca
A46: CREA - 2024 | C46: Anotação de Responsabilidade Técnica (ART) | D46: unid. | E46: =10/Memorial!L19 -> 0.1136363636 | F46: 271.47 | G46: 30.84 | H46: ca
A47: CODEVASF | C47: Hospedagem | D47: unid. | E47: =2*ROUNDUP((Memorial!M19-1),0)/Memorial!L19 -> 1.977272727 | F47: 218.1 | G47: 431.24 | H47: ca
A48: CODEVASF | C48: Alimentação | D48: unid. | E48: =2*ROUNDUP((Memorial!M19-1),0)/Memorial!L19 -> 1.977272727 | F48: 87 | G48: 172.02 | H48: ca
A49: SINAPI | B49: 90777 | C49: Confecção do relatório - Engenheiro Civil De Obra Júnior Com Encargos Complementares | D49: =PROPER(IF(H49="i",VLOOKUP(B49,'Ins SINAPI MG 09-2024 Desoner'!$A$8:$E$5189,2,0),VLOOKUP(B49,'Comp SINAPI MG 09-2024 Desoner'!$G$7:$K$7500,3,0))) -> H | E49: 36 | F49: 120.8 | G49: 4348.8 | H49: ca
A50: SINAPI | B50: 90779 | C50: Confecção do relatório - Engenheiro Civil De Obra Sênior Com Encargos Complementares | D50: =PROPER(IF(H50="i",VLOOKUP(B50,'Ins SINAPI MG 09-2024 Desoner'!$A$8:$E$5189,2,0),VLOOKUP(B50,'Comp SINAPI MG 09-2024 Desoner'!$G$7:$K$7500,3,0))) -> H | E50: 4 | F50: 150.85 | G50: 603.4 | H50: ca
B52: ='Planilha Orçamentária Onerada'!C21 -> CPU.04 | C52: =VLOOKUP(B52,'Planilha Orçamentária Onerada'!C$13:F$25,2) -> Inspeção de Segurança Regular em barragem da 4ª SR | D52: =VLOOKUP(B52,'Planilha Orçamentária Onerada'!C$13:F$25,3) -> unid. | E52: 1 | G52: =SUM(G57,G56,G54,G53) -> 9393.26 | H52: S
A53: =B52 -> CPU.04 | C53: MATERIAL | G53: 0 | H53: ss
A54: =B52 -> CPU.04 | C54: EQUIPAMENTOS | G54: =SUM(G55) -> 488.44 | H54: ss
A55: CODEVASF | C55: Veículo tipo pick-up, cabine dupla - 2.0 16V 4x4 diesel Aut. | D55: dia | E55: =Memorial!M107/Memorial!L107 -> 1.5 | F55: =$F$13 -> 325.63 | G55: =TRUNC(E55*F55,2) -> 488.44 | H55: ca
A56: =B52 -> CPU.04 | C56: SERVIÇOS | G56: 0 | H56: ss
A57: =B52 -> CPU.04 | C57: MÃO DE OBRA | G57: =SUM(G58:G64) -> 8904.82 | H57: mdo
A58: SINAPI | B58: 90778 | C58: Inspeção - Engenheiro Geotécnico ou Estrutural (ADAPTADO SINAPI 90778) | D58: =PROPER(IF(H58="i",VLOOKUP(B58,'Ins SINAPI MG 09-2024 Desoner'!$A$8:$E$5189,2,0),VLOOKUP(B58,'Comp SINAPI MG 09-2024 Desoner'!$G$7:$K$7500,3,0))) -> H | E58: =(Memorial!M107*8)/Memorial!L107 -> 12 | F58: 125.89 | G58: =TRUNC(E58*F58,2) -> 1510.68 | H58: ca
A59: SINAPI | B59: 90778 | C59: Inspeção - Engenheiro Hidráulico (ADAPTADO SINAPI 90778) | D59: =PROPER(IF(H59="i",VLOOKUP(B59,'Ins SINAPI MG 09-2024 Desoner'!$A$8:$E$5189,2,0),VLOOKUP(B59,'Comp SINAPI MG 09-2024 Desoner'!$G$7:$K$7500,3,0))) -> H | E59: =(Memorial!M107*8)/Memorial!L107 -> 12 | F59: 125.89 | G59: =TRUNC(E59*F59,2) -> 1510.68 | H59: ca
A60: CREA - 2024 | C60: Anotação de Responsabilidade Técnica (ART) | D60: unid. | E60: =2/Memorial!L107 -> 0.4 | F60: 271.47 | G60: 108.58 | H60: ca
A61: CODEVASF | C61: Hospedagem | D61: unid. | E61: =2*ROUNDUP((Memorial!M107-1),0)/Memorial!L107 -> 2.8 | F61: 218.1 | G61: 610.68 | H61: ca
A62: CODEVASF | C62: Alimentação | D62: unid. | E62: =2*ROUNDUP((Memorial!M107-1),0)/Memorial!L107 -> 2.8 | F62: 87 | G62: 243.6 | H62: ca
A63: SINAPI | B63: 90777 | C63: Confecção do relatório - Engenheiro Civil De Obra Júnior Com Encargos Complementares | D63: =PROPER(IF(H63="i",VLOOKUP(B63,'Ins SINAPI MG 09-2024 Desoner'!$A$8:$E$5189,2,0),VLOOKUP(B63,'Comp SINAPI MG 09-2024 Desoner'!$G$7:$K$7500,3,0))) -> H | E63: 36 | F63: 120.03 | G63: 4321.08 | H63: ca
A64: SINAPI | B64: 90779 | C64: Confecção do relatório - Engenheiro Civil De Obra Sênior Com Encargos Complementares | D64: =PROPER(IF(H64="i",VLOOKUP(B64,'Ins SINAPI MG 09-2024 Desoner'!$A$8:$E$5189,2,0),VLOOKUP(B64,'Comp SINAPI MG 09-2024 Desoner'!$G$7:$K$7500,3,0))) -> H | E64: 4 | F64: 149.88 | G64: 599.52 | H64: ca
B66: ='Planilha Orçamentária Onerada'!C23 -> CPU.05 | C66: =VLOOKUP(B66,'Planilha Orçamentária Onerada'!C$13:F$25,2) -> Inspeção de Segurança Regular em barragem da 5ª SR | D66: =VLOOKUP(B66,'Planilha Orçamentária Onerada'!C$13:F$25,3) -> unid. | E66: 1 | G66: =SUM(G71,G70,G68,G67) -> 9756.74 | H66: S
A67: =B66 -> CPU.05 | C67: MATERIAL | G67: 0 | H67: ss
A68: =B66 -> CPU.05 | C68: EQUIPAMENTOS | G68: =SUM(G69) -> 488.44 | H68: ss
A69: CODEVASF | C69: Veículo tipo pick-up, cabine dupla - 2.0 16V 4x4 diesel Aut. | D69: dia | E69: =Memorial!M112/Memorial!L112 -> 1.5 | F69: =$F$13 -> 325.63 | G69: =TRUNC(E69*F69,2) -> 488.44 | H69: ca
A70: =B66 -> CPU.05 | C70: SERVIÇOS | G70: 0 | H70: ss
A71: =B66 -> CPU.05 | C71: MÃO DE OBRA | G71: =SUM(G72:G78) -> 9268.3 | H71: mdo
A72: SINAPI | B72: 90778 | C72: Inspeção - Engenheiro Geotécnico ou Estrutural (ADAPTADO SINAPI 90778) | D72: =PROPER(IF(H72="i",VLOOKUP(B72,'Ins SINAPI MG 09-2024 Desoner'!$A$8:$E$5189,2,0),VLOOKUP(B72,'Comp SINAPI MG 09-2024 Desoner'!$G$7:$K$7500,3,0))) -> H | E72: =(Memorial!M112*8)/Memorial!L112 -> 12 | F72: 131.15 | G72: =TRUNC(E72*F72,2) -> 1573.8 | H72: ca
A73: SINAPI | B73: 90778 | C73: Inspeção - Engenheiro Hidráulico (ADAPTADO SINAPI 90778) | D73: =PROPER(IF(H73="i",VLOOKUP(B73,'Ins SINAPI MG 09-2024 Desoner'!$A$8:$E$5189,2,0),VLOOKUP(B73,'Comp SINAPI MG 09-2024 Desoner'!$G$7:$K$7500,3,0))) -> H | E73: =(Memorial!M112*8)/Memorial!L112 -> 12 | F73: 131.15 | G73: =TRUNC(E73*F73,2) -> 1573.8 | H73: ca
A74: CREA - 2024 | C74: Anotação de Responsabilidade Técnica (ART) | D74: unid. | E74: =2/Memorial!L112 -> 0.6666666667 | F74: 271.47 | G74: 180.98 | H74: ca
A75: CODEVASF | C75: Hospedagem | D75: unid. | E75: =2*ROUNDUP((Memorial!M112-1),0)/Memorial!L112 -> 2.666666667 | F75: 218.1 | G75: 581.6 | H75: ca
A76: CODEVASF | C76: Alimentação | D76: unid. | E76: =2*ROUNDUP((Memorial!M112-1),0)/Memorial!L112 -> 2.666666667 | F76: 87 | G76: 232 | H76: ca
A77: SINAPI | B77: 90777 | C77: Confecção do relatório - Engenheiro Civil De Obra Júnior Com Encargos Complementares | D77: =PROPER(IF(H77="i",VLOOKUP(B77,'Ins SINAPI MG 09-2024 Desoner'!$A$8:$E$5189,2,0),VLOOKUP(B77,'Comp SINAPI MG 09-2024 Desoner'!$G$7:$K$7500,3,0))) -> H | E77: 36 | F77: 125.04 | G77: 4501.44 | H77: ca
A78: SINAPI | B78: 90779 | C78: Confecção do relatório - Engenheiro Civil De Obra Sênior Com Encargos Complementares | D78: =PROPER(IF(H78="i",VLOOKUP(B78,'Ins SINAPI MG 09-2024 Desoner'!$A$8:$E$5189,2,0),VLOOKUP(B78,'Comp SINAPI MG 09-2024 Desoner'!$G$7:$K$7500,3,0))) -> H | E78: 4 | F78: 156.17 | G78: 624.68 | H78: ca
B80: ='Planilha Orçamentária Onerada'!C25 -> CPU.06 | C80: =VLOOKUP(B80,'Planilha Orçamentária Onerada'!C$13:F$25,2) -> Inspeção de Segurança Regular em barragem da 6ª SR | D80: =VLOOKUP(B80,'Planilha Orçamentária Onerada'!C$13:F$25,3) -> unid. | E80: 1 | G80: =SUM(G85,G84,G82,G81) -> 9435.23 | H80: S
A81: =B80 -> CPU.06 | C81: MATERIAL | G81: 0 | H81: ss
A82: =B80 -> CPU.06 | C82: EQUIPAMENTOS | G82: =SUM(G83) -> 488.44 | H82: ss
A83: CODEVASF | C83: Veículo tipo pick-up, cabine dupla - 2.0 16V 4x4 diesel Aut. | D83: dia | E83: =Memorial!M115/Memorial!L115 -> 1.5 | F83: =$F$13 -> 325.63 | G83: =TRUNC(E83*F83,2) -> 488.44 | H83: ca
A84: =B80 -> CPU.06 | C84: SERVIÇOS | G84: 0 | H84: ss
A85: =B80 -> CPU.06 | C85: MÃO DE OBRA | G85: =SUM(G86:G92) -> 8946.79 | H85: mdo
A86: SINAPI | B86: 90778 | C86: Inspeção - Engenheiro Geotécnico ou Estrutural (ADAPTADO SINAPI 90778) | D86: =PROPER(IF(H86="i",VLOOKUP(B86,'Ins SINAPI MG 09-2024 Desoner'!$A$8:$E$5189,2,0),VLOOKUP(B86,'Comp SINAPI MG 09-2024 Desoner'!$G$7:$K$7500,3,0))) -> H | E86: =(Memorial!M115*8)/Memorial!L115 -> 12 | F86: 126.51 | G86: =TRUNC(E86*F86,2) -> 1518.12 | H86: ca
A87: SINAPI | B87: 90778 | C87: Inspeção - Engenheiro Hidráulico (ADAPTADO SINAPI 90778) | D87: =PROPER(IF(H87="i",VLOOKUP(B87,'Ins SINAPI MG 09-2024 Desoner'!$A$8:$E$5189,2,0),VLOOKUP(B87,'Comp SINAPI MG 09-2024 Desoner'!$G$7:$K$7500,3,0))) -> H | E87: =(Memorial!M115*8)/Memorial!L115 -> 12 | F87: 126.51 | G87: =TRUNC(E87*F87,2) -> 1518.12 | H87: ca
A88: CREA - 2024 | C88: Anotação de Responsabilidade Técnica (ART) | D88: unid. | E88: =2/Memorial!L115 -> 0.2857142857 | F88: 271.47 | G88: 77.56 | H88: ca
A89: CODEVASF | C89: Hospedagem | D89: unid. | E89: =2*ROUNDUP((Memorial!M115-1),0)/Memorial!L115 -> 2.857142857 | F89: 218.1 | G89: 623.14 | H89: ca
A90: CODEVASF | C90: Alimentação | D90: unid. | E90: =2*ROUNDUP((Memorial!M115-1),0)/Memorial!L115 -> 2.857142857 | F90: 87 | G90: 248.57 | H90: ca
A91: SINAPI | B91: 90777 | C91: Confecção do relatório - Engenheiro Civil De Obra Júnior Com Encargos Complementares | D91: =PROPER(IF(H91="i",VLOOKUP(B91,'Ins SINAPI MG 09-2024 Desoner'!$A$8:$E$5189,2,0),VLOOKUP(B91,'Comp SINAPI MG 09-2024 Desoner'!$G$7:$K$7500,3,0))) -> H | E91: 36 | F91: 122.3 | G91: 4402.8 | H91: ca
A92: SINAPI | B92: 90779 | C92: Confecção do relatório - Engenheiro Civil De Obra Sênior Com Encargos Complementares | D92: =PROPER(IF(H92="i",VLOOKUP(B92,'Ins SINAPI MG 09-2024 Desoner'!$A$8:$E$5189,2,0),VLOOKUP(B92,'Comp SINAPI MG 09-2024 Desoner'!$G$7:$K$7500,3,0))) -> H | E92: 4 | F92: 139.62 | G92: 558.48 | H92: ca
B94: ='Planilha Orçamentária Onerada'!C27 -> CPU.07 | C94: =VLOOKUP(B94,'Planilha Orçamentária Onerada'!C$13:F$50,2) -> Passagem aérea (Ida e Volta) | D94: =VLOOKUP(B94,'Planilha Orçamentária Onerada'!C$13:F$25,3) -> unid. | E94: 1 | G94: =SUM(G99,G98,G96,G95) -> 1920.71 | H94: S
A95: =B94 -> CPU.07 | C95: MATERIAL | G95: 0 | H95: ss
A96: =B94 -> CPU.07 | C96: EQUIPAMENTOS | G96: =G97 -> 1920.71 | H96: ss
A97: COTAÇÃO | B97: 2024-12-02 | C97: Cotação Voo | D97: unid. | E97: 1 | F97: ='Passagem aérea'!J16 -> 1920.71 | G97: =TRUNC(E97*F97,2) -> 1920.71 | H97: ca
A98: =B94 -> CPU.07 | C98: SERVIÇOS | G98: 0 | H98: ss
A99: =B94 -> CPU.07 | C99: MÃO DE OBRA | G99: =SUM(G116:G122) -> 0 | H99: mdo
B101: ='Planilha Orçamentária Onerada'!C31 -> CPU.08 | C101: =VLOOKUP(B101,'Planilha Orçamentária Onerada'!C$13:F$50,2) -> Inspeção de Segurança Especial | D101: =VLOOKUP(B101,'Planilha Orçamentária Onerada'!C$13:F$25,3) -> unid. | E101: 1 | G101: =SUM(G106,G105,G103,G102) -> 18969.5 | H101: S
A102: =B101 -> CPU.08 | C102: MATERIAL | G102: 0 | H102: ss
A103: =B101 -> CPU.08 | C103: EQUIPAMENTOS | G103: =SUM(G104) -> 976.89 | H103: ss
A104: CODEVASF | C104: Veículo tipo pick-up, cabine dupla - 2.0 16V 4x4 diesel Aut. | D104: dia | E104: 3 | F104: =$F$13 -> 325.63 | G104: =TRUNC(E104*F104,2) -> 976.89 | H104: ca
A105: =B101 -> CPU.08 | C105: SERVIÇOS | G105: 0 | H105: ss
A106: =B101 -> CPU.08 | C106: MÃO DE OBRA | G106: =SUM(G107:G114) -> 17992.61 | H106: mdo
A107: SINAPI | B107: 90778 | C107: Inspeção - Engenheiro Geotécnico e/ Mecânico (ADAPTADO SINAPI 90778) | D107: =PROPER(IF(H107="i",VLOOKUP(B107,'Ins SINAPI MG 09-2024 Desoner'!$A$8:$E$5189,2,0),VLOOKUP(B107,'Comp SINAPI MG 09-2024 Desoner'!$G$7:$K$7500,3,0))) -> H | E107: =3*8 -> 24 | F107: =AVERAGE(F16,F30,F44,F58,F72,F86) -> 126.4583333 | G107: =TRUNC(E107*F107,2) -> 3034.99 | H107: ca
A108: SINAPI | B108: 90778 | C108: Inspeção - Engenheiro Hidráulico e/ou Mecânico (ADAPTADO SINAPI 90778) | D108: =PROPER(IF(H108="i",VLOOKUP(B108,'Ins SINAPI MG 09-2024 Desoner'!$A$8:$E$5189,2,0),VLOOKUP(B108,'Comp SINAPI MG 09-2024 Desoner'!$G$7:$K$7500,3,0))) -> H | E108: =3*8 -> 24 | F108: =$F$107 -> 126.4583333 | G108: =TRUNC(E108*F108,2) -> 3034.99 | H108: ca
A109: SINAPI | B109: 90778 | C109: Inspeção - Engenheiro Estrutural e/ou Mecânico (ADAPTADO SINAPI 90778) | D109: =PROPER(IF(H109="i",VLOOKUP(B109,'Ins SINAPI MG 09-2024 Desoner'!$A$8:$E$5189,2,0),VLOOKUP(B109,'Comp SINAPI MG 09-2024 Desoner'!$G$7:$K$7500,3,0))) -> H | E109: =3*8 -> 24 | F109: =$F$107 -> 126.4583333 | G109: 3034.99 | H109: ca
A110: CREA - 2024 | C110: Anotação de Responsabilidade Técnica (ART) | D110: unid. | E110: =15/5 -> 3 | F110: 271.47 | G110: 814.41 | H110: ca
A111: CODEVASF | C111: Hospedagem | D111: unid. | E111: =2*3 -> 6 | F111: =(F19+F33)/2 -> 218.1 | G111: 1308.6 | H111: ca
A112: CODEVASF | C112: Alimentação | D112: unid. | E112: =2*3 -> 6 | F112: =(F20+F34)/2 -> 87 | G112: 522 | H112: ca
A113: SINAPI | B113: 90778 | C113: Confecção do relatório - Engenheiro Civil De Obra Pleno Com Encargos Complementares | D113: =PROPER(IF(H113="i",VLOOKUP(B113,'Ins SINAPI MG 09-2024 Desoner'!$A$8:$E$5189,2,0),VLOOKUP(B113,'Comp SINAPI MG 09-2024 Desoner'!$G$7:$K$7500,3,0))) -> H | E113: 40 | F113: =$F$107 -> 126.4583333 | G113: 5058.33 | H113: ca
A114: SINAPI | B114: 90779 | C114: Confecção do relatório - Engenheiro Civil De Obra Sênior Com Encargos Complementares | D114: =PROPER(IF(H114="i",VLOOKUP(B114,'Ins SINAPI MG 09-2024 Desoner'!$A$8:$E$5189,2,0),VLOOKUP(B114,'Comp SINAPI MG 09-2024 Desoner'!$G$7:$K$7500,3,0))) -> H | E114: 8 | F114: =AVERAGE(F22,F36,F50,F64,F78,F92) -> 148.0383333 | G114: 1184.3 | H114: ca

Sheet Cronograma Onerado
A1: Ministério da Integração e do Desenvolvimento Regional
A2: Companhia de Desenvolvimento dos Vales do São Francisco e do Parnaíba
A3: ='[50]Planilha Orçamentária'!A3:I3 -> 0
A4: CRONOGRAMA FÍSICO-FINANCEIRO NÃO DESONERADO
A5: ='Planilha Orçamentária Onerada'!A5 -> OBRA: | B5: ='Planilha Orçamentária Onerada'!B5 -> SERVIÇOS DE INSPEÇÃO EM BARRAGENS
A6: ='Planilha Orçamentária Onerada'!A6 -> LOCAL: | B6: ='Planilha Orçamentária Onerada'!B6 -> BARRAGENS CODEVASF
A7: ='Planilha Orçamentária Onerada'!A7 -> DATA BASE: | B7: ='Planilha Orçamentária Onerada'!B7 -> DEZEMBRO, 2024
A8: ='Planilha Orçamentária Onerada'!A8 -> PRAZO: | B8: ='Planilha Orçamentária Onerada'!B8 -> 8 meses
A9: ITEM | B9: DESCRIÇÃO | C9: TOTAL POR ETAPA | D9: MESES | L9: TOTAL
D10: 1 | E10: 2 | F10: 3 | G10: 4 | H10: 5 | I10: 6 | J10: 7 | K10: 8
A11: 1 | B11: ='Planilha Orçamentária Onerada'!D14 -> 1ª SR - Montes Claros (MG) | C11: ='Planilha Orçamentária Onerada'!I14 -> 33641.01 | D11: =$C11*D12 -> 33641.01 | L11: =SUM(D11:K11) -> 33641.01 | M11: R$
C12: =C11/C11 -> 1 | D12: 1 | L12: 1 | M12: %
A13: 2 | B13: ='Planilha Orçamentária Onerada'!D16 -> 2ª SR - Bom Jesus da Lapa (BA) | C13: ='Planilha Orçamentária Onerada'!I16 -> 148497.8 | D13: =$C13*D14 -> 125651.9846 | J13: =$C13*J14 -> 22845.81538 | L13: 148497.8 | M13: R$
C14: =C13/C13 -> 1 | D14: =1-J14 -> 0.8461538462 | J14: =2/13 -> 0.1538461538 | L14: 1 | M14: %
A15: 3 | B15: ='Planilha Orçamentária Onerada'!D18 -> 3ª SR - Petrolina (PE) | C15: ='Planilha Orçamentária Onerada'!I18 -> 845357.92 | E15: =$C15*E16 -> 126803.688 | F15: 169071.584 | G15: 84535.792 | H15: 84535.792 | I15: 169071.584 | J15: 126803.688 | K15: 84535.792 | L15: =SUM(D15:K15) -> 845357.92 | M15: R$
C16: =C15/C15 -> 1 | E16: 0.15 | F16: 0.2 | G16: 0.1 | H16: 0.1 | I16: 0.2 | J16: 0.15 | K16: 0.1 | L16: 1 | M16: %
A17: 4 | B17: ='Planilha Orçamentária Onerada'!D20 -> 4ª SR - Aracaju (SE) | C17: ='Planilha Orçamentária Onerada'!I20 -> 56829.2 | G17: =$C17*G18 -> 56829.2 | L17: 56829.2 | M17: R$
C18: =C17/C17 -> 1 | G18: 1 | L18: 1 | M18: %
A19: 5 | B19: ='Planilha Orçamentária Onerada'!D22 -> 5ª SR - Maceió (AL) | C19: ='Planilha Orçamentária Onerada'!I22 -> 35416.95 | H19: =$C19*H20 -> 35416.95 | L19: 35416.95 | M19: R$
C20: =C19/C19 -> 1 | H20: 1 | L20: 1 | M20: %
A21: 6 | B21: ='Planilha Orçamentária Onerada'!D24 -> 6ª SR - Juazeiro (BA) | C21: ='Planilha Orçamentária Onerada'!I24 -> 79916.34 | E21: =$C21*E22 -> 22833.24 | K21: 57083.1 | L21: 79916.34 | M21: R$
C22: 1 | E22: =2/7 -> 0.2857142857 | K22: =1-E22 -> 0.7142857143 | L22: 1 | M22: %
A23: 7 | B23: ='Planilha Orçamentária Onerada'!D26 -> Passagem aérea | C23: ='Planilha Orçamentária Onerada'!I26+'Planilha Orçamentária Onerada'!I32 -> 81341.75 | D23: =$C23*D24 -> 8134.175 | E23: 8134.175 | F23: 8134.175 | G23: 16268.35 | H23: 16268.35 | I23: =$C23*I24 -> 8134.175 | J23: 8134.175 | K23: 8134.175 | L23: =SUM(D23:K23) -> 81341.75 | M23: R$
C24: =C23/C23 -> 1 | D24: 0.1 | E24: 0.1 | F24: 0.1 | G24: 0.2 | H24: 0.2 | I24: 0.1 | J24: 0.1 | K24: 0.1 | L24: 1 | M24: %
A25: 8 | B25: ='Planilha Orçamentária Onerada'!D30 -> Inspeção de Segurança Especial | C25: ='Planilha Orçamentária Onerada'!I30 -> 114765.45 | G25: 57382.725 | H25: 57382.725 | L25: 114765.45 | M25: R$
C26: 1 | G26: 0.5 | H26: 0.5 | L26: 1 | M26: %
B27: VALOR TOTAL: | C27: =SUMIF($M$11:$M$26,"R$",C$11:C$26) -> 1395766.42 | D27: 167427.1696 | E27: 157771.103 | F27: 177205.759 | G27: 215016.067 | H27: 193603.817 | I27: 177205.759 | J27: 157783.6784 | K27: 149753.067 | L27: 1395766.42
B28: VALOR ACUMULADO: | D28: =D27 -> 167427.1696 | E28: =E27+D28 -> 325198.2726 | F28: =F27+E28 -> 502404.0316 | G28: 717420.0986 | H28: 911023.9156 | I28: 1088229.675 | J28: 1246013.353 | K28: 1395766.42 | L28: =K28 -> 1395766.42
B29: FÍSICO PARCIAL: | D29: =SUMIF($M$11:$M$26,"R$",D$11:D$26)/$C$27 -> 0.1199535733 | E29: 0.1130354626 | F29: 0.1269594658 | G29: 0.1540487462 | H29: 0.1387078914 | I29: 0.1269594658 | J29: 0.1130444723 | K29: 0.1072909226 | L29: =L27/$C$27 -> 1
B30: AVANÇO FÍSICO: | D30: =D29 -> 0.1199535733 | E30: =E29+D30 -> 0.232989036 | F30: =F29+E30 -> 0.3599485017 | G30: =G29+F30 -> 0.5139972479 | H30: =H29+G30 -> 0.6527051393 | I30: =I29+H30 -> 0.7796646051 | J30: =J29+I30 -> 0.8927090774 | K30: 1 | L30: =K30 -> 1

Sheet Memorial
M1: Fator = 1,5
B2: Código SNISB | C2: Nome da Barragem | D2: Tipo de Material | E2: UF | F2: SR | G2: FISCALIZADOR | H2: ISR (ANOS) | I2: DISTÂNCIA (KM) SR - BARRAGEM | J2: DISTÂNCIA (KM) Ida e Volta | K2: MÉDIA (KM) | L2: Quantidade de Barragens | M2: TEMPO (DIAS) | N2: Quantidade de dias para elaboração do relatório | O2: TEMPO TOTAL (DIAS)
B3: NC | C3: Bico da Pedra | D3: Terra Homogênea | E3: MG | F3: 1 | G3: IGAM | H3: 1 | I3: 133 | J3: =I3*2 -> 266 | K3: =AVERAGE(J3:J5) -> 283.3333333 | L3: =COUNTIF(E$3:E$5,"<>0") -> 3 | M3: =L3*1.5 -> 4.5 | N3: =L3*5 -> 15 | O3: =M3+N3 -> 19.5 | P3: =O3/30 -> 0.65
B4: NC | C4: São Gregório | D4: Terra Homogênea | E4: MG | F4: 1 | G4: IGAM | H4: 1 | I4: 176 | J4: =I4*2 -> 352
B5: - | C5: Jequitaí | D5: - | E5: MG | F5: 1 | G5: - | H5: 1 | I5: 116 | J5: =I5*2 -> 232
B6: 3761 | C6: Ceraíma | D6: Terra | E6: BA | F6: 2 | G6: INEMA | H6: 1 | I6: 161 | J6: =I6*2 -> 322 | K6: =AVERAGE(J6:J18) -> 588.6153846 | L6: =COUNTIF(E$6:E$18,"<>0") -> 13 | M6: =L6*1.5 -> 19.5 | N6: =L6*5 -> 65 | O6: =M6+N6 -> 84.5 | P6: =O6/30 -> 2.816666667 | Q6: =P6-(1-P3) -> 2.466666667
B7: 378 | C7: Cova da Mandioca | D7: CCR | E7: BA | F7: 2 | G7: INEMA | H7: 1 | I7: 242 | J7: 484
B8: 54 | C8: Estreito | D8: Terra | E8: BA | F8: 2 | G8: ANA | H8: 1 | I8: 238 | J8: 476
B9: 7056 | C9: Macaúbas | D9: Terra | E9: BA | F9: 2 | G9: INEMA | H9: 1 | I9: 243 | J9: 486
B10: 3775 | C10: Mirorós | D10: SI | E10: BA | F10: 2 | G10: INEMA | H10: 1 | I10: 359 | J10: 718
B11: 364 | C11: Poço do Magro | D11: CCR | E11: BA | F11: 2 | G11: INEMA | H11: 1 | I11: 156 | J11: 312
B12: 7076 | C12: Rio da Caixa | D12: SI | E12: BA | F12: 2 | G12: INEMA | H12: 0.5 | I12: 235 | J12: =I12*2 -> 470
B13: 7076 | C13: Rio da Caixa | D13: SI | E13: BA | F13: 2 | G13: INEMA | H13: 0.5 | I13: 235 | J13: 470
B14: 3743 | C14: São Desidério | D14: SI | E14: BA | F14: 2 | G14: INEMA | H14: 1 | I14: 281 | J14: 562
B15: 7144 | C15: Tamboril II | D15: Terra | E15: BA | F15: 2 | G15: INEMA | H15: 0.5 | I15: 556 | J15: =I15*2 -> 1112
B16: 7144 | C16: Tamboril II | D16: Terra | E16: BA | F16: 2 | G16: INEMA | H16: 0.5 | I16: 556 | J16: 1112
B17: 432 | C17: Zabumbão | D17: Terra | E17: BA | F17: 2 | G17: INEMA | H17: 1 | I17: 182 | J17: 364
B18: 6980 | C18: Baixão do Cecílio | D18: Terra | E18: BA | F18: 2 | G18: INEMA | H18: 1 | I18: 382 | J18: 764
B19: 8506 | C19: Açude da Roça | D19: Terra | E19: PE | F19: 3 | G19: APAC | H19: 1 | I19: 131 | J19: 262 | K19: =AVERAGE(J19:J106) -> 334.2272727 | L19: =COUNTIF(E$19:E$106,"<>0") -> 88 | M19: =L19*1 -> 88 | N19: =L19*5 -> 440 | O19: =M19+N19 -> 528
B20: 7207 | C20: Água Branca | D20: Terra | E20: PE | F20: 3 | G20: APAC | H20: 1 | I20: 79 | J20: 158
B21: 7369 | C21: Água Fria | D21: SI | E21: PE | F21: 3 | G21: APAC | H21: 1 | I21: 317 | J21: 634
B22: 7307 | C22: Algodoes | D22: Terra | E22: PE | F22: 3 | G22: APAC | H22: 1 | I22: 190 | J22: 380
B23: 7223 | C23: Almas | D23: Terra | E23: PE | F23: 3 | G23: APAC | H23: 1 | I23: 65 | J23: 130
B24: 7291 | C24: Alto Grande | D24: Terra | E24: PE | F24: 3 | G24: APAC | H24: 1 | I24: 192 | J24: 384
B25: 8528 | C25: Amargosa | D25: Terra | E25: PE | F25: 3 | G25: APAC | H25: 1 | I25: 58 | J25: 116
B26: 18029 | C26: Angical | D26: Terra | E26: PE | F26: 3 | G26: APAC | H26: 1 | I26: 240 | J26: 480
B27: 7348 | C27: Angico | D27: Terra | E27: PE | F27: 3 | G27: APAC | H27: 1 | I27: 263 | J27: 526
B28: 8526 | C28: Atalho | D28: Terra | E28: PE | F28: 3 | G28: APAC | H28: 1 | I28: 75 | J28: 150
B29: 8508 | C29: Baixa Alegre | D29: Terra | E29: PE | F29: 3 | G29: APAC | H29: 1 | I29: 98 | J29: 196
B30: 8524 | C30: Baixa do Ico | D30: SI | E30: PE | F30: 3 | G30: APAC | H30: 1 | I30: 82 | J30: 164
B31: 18022 | C31: Baixio do Vento | D31: Terra | E31: PE | F31: 3 | G31: APAC | H31: 1 | I31: 239 | J31: 478
B32: 7158 | C32: Barra Franca | D32: Terra | E32: PE | F32: 3 | G32: APAC | H32: 1 | I32: 91 | J32: 182
B33: 156 | C33: Barreiro Grande | D33: Terra | E33: PE | F33: 3 | G33: APAC | H33: 1 | I33: 105 | J33: 210
B34: 8619 | C34: Batatas | D34: Terra | E34: PE | F34: 3 | G34: APAC | H34: 1 | I34: 500 | J34: 1000
B35: 18038 | C35: Bernado Vieira | D35: Terra | E35: PE | F35: 3 | G35: APAC | H35: 1 | I35: 346 | J35: 692
B36: 7203 | C36: Bom Jardim | D36: Concreto | E36: PE | F36: 3 | G36: APAC | H36: 1 | I36: 156 | J36: 312
B37: 7346 | C37: Bom Viver | D37: Terra | E37: PE | F37: 3 | G37: APAC | H37: 1 | I37: 261 | J37: 522
B38: 7308 | C38: Boqueirão | D38: Alvenaria | E38: PE | F38: 3 | G38: APAC | H38: 1 | I38: 236 | J38: 472
B39: 7756 | C39: Brejo | D39: Terra | E39: PE | F39: 3 | G39: APAC | H39: 1 | I39: 181 | J39: 362
B40: 7269 | C40: Cachimbo | D40: Terra | E40: PE | F40: 3 | G40: APAC | H40: 1 | I40: 203 | J40: 406
B41: 8520 | C41: Cacimba Velha | D41: Terra | E41: PE | F41: 3 | G41: APAC | H41: 1 | I41: 81 | J41: 162
B42: 8597 | C42: Cacimbinha | D42: Terra | E42: PE | F42: 3 | G42: APAC | H42: 1 | I42: 381 | J42: 762
B43: 7262 | C43: Caiçara | D43: Terra | E43: PE | F43: 3 | G43: APAC | H43: 1 | I43: 139 | J43: 278
B44: 8517 | C44: Caititu | D44: Terra | E44: PE | F44: 3 | G44: APAC | H44: 1 | I44: 98 | J44: 196
B45: 8521 | C45: Cal | D45: Terra | E45: PE | F45: 3 | G45: APAC | H45: 1 | I45: 115 | J45: 230
B46: 8530 | C46: Calmaria | D46: Terra | E46: PE | F46: 3 | G46: APAC | H46: 1 | I46: 104 | J46: 208
B47: 7250 | C47: Camará | D47: Terra | E47: PE | F47: 3 | G47: APAC | H47: 1 | I47: 235 | J47: 470
B48: 8510 | C48: Caroa | D48: Terra | E48: PE | F48: 3 | G48: APAC | H48: 1 | I48: 108 | J48: 216
B49: 17999 | C49: Carretão | D49: Terra | E49: PE | F49: 3 | G49: APAC | H49: 1 | I49: 92 | J49: 184
B50: 17988 | C50: Chapada do Alegre | D50: Terra | E50: PE | F50: 3 | G50: APAC | H50: 1 | I50: 113 | J50: 226
B51: 8514 | C51: Chico Velho | D51: Terra | E51: PE | F51: 3 | G51: APAC | H51: 1 | I51: 103 | J51: 206
B52: 7231 | C52: Consolacao | D52: Terra | E52: PE | F52: 3 | G52: APAC | H52: 1 | I52: 73 | J52: 146
B53: 8527 | C53: Contendas | D53: Terra | E53: PE | F53: 3 | G53: APAC | H53: 1 | I53: 112 | J53: 224
B54: 7219 | C54: Deserto | D54: Terra | E54: PE | F54: 3 | G54: APAC | H54: 1 | I54: 46 | J54: 92
B55: 18031 | C55: Fazenda Bonina | D55: Terra | E55: PE | F55: 3 | G55: APAC | H55: 1 | I55: 219 | J55: 438
B56: 18030 | C56: Fazenda Malhada | D56: Alvenaria | E56: PE | F56: 3 | G56: APAC | H56: 1 | I56: 287 | J56: 574
B57: 8621 | C57: Fortaleza | D57: Terra | E57: PE | F57: 3 | G57: APAC | H57: 1 | I57: 130 | J57: 260
B58: 8596 | C58: Garcinha | D58: Terra | E58: PE | F58: 3 | G58: APAC | H58: 1 | I58: 307 | J58: 614
B59: 8511 | C59: Garcinha | D59: Terra | E59: PE | F59: 3 | G59: APAC | H59: 1 | I59: 76 | J59: 152
B60: 8531 | C60: Garcinha | D60: Terra | E60: PE | F60: 3 | G60: APAC | H60: 1 | I60: 112 | J60: 224
B61: 8516 | C61: Girau | D61: Terra | E61: PE | F61: 3 | G61: APAC | H61: 1 | I61: 63 | J61: 126
B62: 21418 | C62: Jacu | D62: Terra | E62: PE | F62: 3 | G62: APAC | H62: 1 | I62: 212 | J62: 424
B63: 17997 | C63: Jardineira | D63: Terra | E63: PE | F63: 3 | G63: APAC | H63: 1 | I63: 161 | J63: 322
B64: 7297 | C64: Juá I | D64: Terra | E64: PE | F64: 3 | G64: APAC | H64: 1 | I64: 194 | J64: 388
B65: 7341 | C65: Juá II | D65: Alvenaria | E65: PE | F65: 3 | G65: APAC | H65: 1 | I65: 278 | J65: 556
B66: 18028 | C66: Lagoa | D66: Alvenaria | E66: PE | F66: 3 | G66: APAC | H66: 1 | I66: 119 | J66: 238
B67: 8565 | C67: Lagoa da Pedra | D67: Terra | E67: PE | F67: 3 | G67: APAC | H67: 1 | I67: 158 | J67: 316
B68: 8507 | C68: Lagoa das Pedras | D68: Terra | E68: PE | F68: 3 | G68: APAC | H68: 1 | I68: 127 | J68: 254
B69: 8519 | C69: Lajedo | D69: Alvenaria | E69: PE | F69: 3 | G69: APAC | H69: 1 | I69: 60 | J69: 120
B70: 17989 | C70: Madeiros | D70: Terra | E70: PE | F70: 3 | G70: APAC | H70: 1 | I70: 121 | J70: 242
B71: 18002 | C71: Malhadinha | D71: SI | E71: PE | F71: 3 | G71: APAC | H71: 1 | I71: 70 | J71: =I71*2 -> 140
B72: 7304 | C72: Manoel Rodrigues | D72: Terra | E72: PE | F72: 3 | G72: APAC | H72: 1 | I72: 188 | J72: 376
B73: 8532 | C73: Massape | D73: Terra | E73: PE | F73: 3 | G73: APAC | H73: 1 | I73: 110 | J73: 220
B74: 7357 | C74: Monte Alegre | D74: Terra | E74: PE | F74: 3 | G74: APAC | H74: 1 | I74: 311 | J74: 622
B75: 8504 | C75: Monte Alegre | D75: Terra | E75: PE | F75: 3 | G75: APAC | H75: 1 | I75: 133 | J75: 266
B76: 8569 | C76: Morros | D76: Terra | E76: PE | F76: 3 | G76: APAC | H76: 1 | I76: 96 | J76: 192
B77: 18027 | C77: Morros | D77: Terra | E77: PE | F77: 3 | G77: APAC | H77: 1 | I77: 258 | J77: 516
B78: 7192 | C78: Mudubim | D78: Terra | E78: PE | F78: 3 | G78: APAC | H78: 1 | I78: 165 | J78: 330
B79: 7313 | C79: Murici | D79: Terra | E79: PE | F79: 3 | G79: APAC | H79: 1 | I79: 222 | J79: 444
B80: 8567 | C80: Paus Grandes | D80: Alvenaria | E80: PE | F80: 3 | G80: APAC | H80: 1 | I80: 283 | J80: 566
B81: 7176 | C81: Pereiro | D81: Terra | E81: PE | F81: 3 | G81: APAC | H81: 1 | I81: 70 | J81: 140
B82: 7174 | C82: Poço da Onca | D82: Alvenaria | E82: PE | F82: 3 | G82: APAC | H82: 1 | I82: 98 | J82: 196
B83: 8501 | C83: Pontal | D83: Terra | E83: PE | F83: 3 | G83: APAC | H83: 1 | I83: 124 | J83: 248
B84: 8563 | C84: Primavera | D84: Alvenaria | E84: PE | F84: 3 | G84: APAC | H84: 1 | I84: 116 | J84: 232
B85: 18034 | C85: Queixada | D85: Terra | E85: PE | F85: 3 | G85: APAC | H85: 1 | I85: 237 | J85: 474
B86: 7335 | C86: Quixaba | D86: Terra | E86: PE | F86: 3 | G86: APAC | H86: 1 | I86: 235 | J86: 470
B87: 7324 | C87: Riacho da Porta | D87: Terra | E87: PE | F87: 3 | G87: APAC | H87: 1 | I87: 212 | J87: 424
B88: 8601 | C88: Riacho do Navio | D88: Terra | E88: PE | F88: 3 | G88: APAC | H88: 1 | I88: 299 | J88: 598
B89: 7288 | C89: Riacho dos Cavalos | D89: Terra | E89: PE | F89: 3 | G89: APAC | H89: 1 | I89: 207 | J89: 414
B90: 7329 | C90: Riacho Pequeno | D90: Terra | E90: PE | F90: 3 | G90: APAC | H90: 1 | I90: 235 | J90: 470
B91: 8600 | C91: Riacho Seco | D91: Alvenaria | E91: PE | F91: 3 | G91: APAC | H91: 1 | I91: 300 | J91: 600
B92: 8568 | C92: Santo Antônio | D92: Terra | E92: PE | F92: 3 | G92: APAC | H92: 1 | I92: 282 | J92: 564
B93: 7350 | C93: São José da Tapera | D93: Terra | E93: PE | F93: 3 | G93: APAC | H93: 1 | I93: 269 | J93: 538
B94: 8580 | C94: São José do Belmonte | D94: Terra | E94: PE | F94: 3 | G94: APAC | H94: 1 | I94: 299 | J94: 598
B95: 7212 | C95: R5-PNC-MT (antiga Simão) | D95: Terra | E95: PE | F95: 3 | G95: APAC | H95: 1 | I95: 47 | J95: =I95*2 -> 94
B96: - | C96: Simão | D96: Terra | E96: PE | F96: 3 | G96: - | H96: 1 | I96: 41 | J96: 82
B97: 7237 | C97: Sitio Lambedor | D97: Alvenaria | E97: PE | F97: 3 | G97: APAC | H97: 1 | I97: 59 | J97: 118
B98: 18016 | C98: Sitio Londrina | D98: Terra | E98: PE | F98: 3 | G98: APAC | H98: 1 | I98: 71 | J98: 142
B99: 8564 | C99: Sitio Palacio | D99: Terra | E99: PE | F99: 3 | G99: APAC | H99: 1 | I99: 262 | J99: 524
B100: 7173 | C100: Soledade | D100: SI | E100: PE | F100: 3 | G100: APAC | H100: 1 | I100: 99 | J100: 198
B101: 8505 | C101: Toco Preto | D101: Terra | E101: PE | F101: 3 | G101: APAC | H101: 1 | I101: 105 | J101: 210
B102: 7220 | C102: Tranqueira | D102: Terra | E102: PE | F102: 3 | G102: APAC | H102: 1 | I102: 133 | J102: 266
B103: 8566 | C103: Umburana | D103: Alvenaria | E103: PE | F103: 3 | G103: APAC | H103: 1 | I103: 124 | J103: 248
B104: 7340 | C104: Várzea dos Ramos | D104: Terra | E104: PE | F104: 3 | G104: APAC | H104: 1 | I104: 257 | J104: 514
B105: 8512 | C105: Volta do Pascário | D105: SI | E105: PE | F105: 3 | G105: APAC | H105: 1 | I105: 73 | J105: 146
B106: 7196 | C106: Volta do Riacho | D106: Terra | E106: PE | F106: 3 | G106: APAC | H106: 1 | I106: 84 | J106: 168
B107: 21075 | C107: Barragem Comporta de Propriá | D107: SI | E107: SE | F107: 4 | G107: SEDURBS | H107: 1 | I107: 105 | J107: 210 | K107: =AVERAGE(J107:J111) -> 190 | L107: =COUNTIF(E$107:E$111,"<>0") -> 5 | M107: =L107*1.5 -> 7.5 | N107: =L107*5 -> 25 | O107: =M107+N107 -> 32.5 | P107: =O107/30 -> 1.083333333
B108: 21079 | C108: Do rio Jacaré | D108: SI | E108: SE | F108: 4 | G108: SEDURBS | H108: 1 | I108: 104 | J108: 208
B109: 21076 | C109: Imbira | D109: SI | E109: SE | F109: 4 | G109: SEDURBS | H109: 1 | I109: 78 | J109: 156
B110: 7532 | C110: João Ferreira | D110: Terra | E110: SE | F110: 4 | G110: SEDURBS | H110: 1 | I110: 74 | J110: 148
B111: 21077 | C111: Mansinha | D111: SI | E111: SE | F111: 4 | G111: SEDURBS | H111: 1 | I111: 114 | J111: 228
B112: 2376 | C112: BOA CICA | D112: Terra | E112: AL | F112: 5 | G112: SEMARH | H112: 1 | I112: 159 | J112: 318 | K112: =AVERAGE(J112:J114) -> 306.6666667 | L112: =COUNTIF(E$112:E$114,"<>0") -> 3 | M112: =L112*1.5 -> 4.5 | N112: =L112*5 -> 15 | O112: =M112+N112 -> 19.5 | P112: =O112/30 -> 0.65
B113: 2377 | C113: MARCADO DOS PEREIRAS | D113: Terra | E113: AL | F113: 5 | G113: SEMARH | H113: 1 | I113: 149 | J113: 298
B114: 2380 | C114: MARCADO GRANDE | D114: Terra | E114: AL | F114: 5 | G114: SEMARH | H114: 1 | I114: 152 | J114: 304
B115: 5242 | C115: Caatinga do Moura | D115: SI | E115: BA | F115: 6 | G115: INEMA | H115: 1 | I115: 236 | J115: 472 | K115: =AVERAGE(J115:J121) -> 233.4285714 | L115: =COUNTIF(E$115:E$121,"<>0") -> 7 | M115: =L115*1.5 -> 10.5 | N115: =L115*5 -> 35 | O115: =M115+N115 -> 45.5 | P115: =O115/30 -> 1.516666667
B116: 7152 | C116: Honorato Viana | D116: Terra | E116: BA | F116: 6 | G116: INEMA | H116: 0.5 | I116: 72 | J116: =I116*2 -> 144
B117: 7152 | C117: Honorato Viana | D117: Terra | E117: BA | F117: 6 | G117: INEMA | H117: 0.5 | I117: 72 | J117: 144
B118: 7150 | C118: Poço da Pedra | D118: Terra | E118: BA | F118: 6 | G118: INEMA | H118: 1 | I118: 91 | J118: 182
B119: 7243 | C119: Poções | D119: Ciclópico | E119: BA | F119: 6 | G119: INEMA | H119: 0.5 | I119: 60 | J119: =I119*2 -> 120
B120: 7243 | C120: Poções | D120: Ciclópico | E120: BA | F120: 6 | G120: INEMA | H120: 0.5 | I120: 60 | J120: 120
B121: 5224 | C121: Taquarendi | D121: SI | E121: BA | F121: 6 | G121: INEMA | H121: 1 | I121: 226 | J121: 452
L122: =SUM(L3:L121) -> 119

Sheet BDI serv
A1: Ministério do Desenvolvimento Regional
A2: Companhia de Desenvolvimento dos Vales do São Francisco e do Parnaíba
A4: COMPOSIÇÃO DE BDI - SERVIÇOS - NÃO DESONERADO
A5: OBRA: | B5: ='Planilha Orçamentária Onerada'!B5 -> SERVIÇOS DE INSPEÇÃO EM BARRAGENS | D5: BDI (serv.): | E5: =D23 -> 0.21
A6: LOCAL: | B6: ='Planilha Orçamentária Onerada'!B6 -> BARRAGENS CODEVASF | D6: BDI (forn.): | E6: ='[51]BDI forn'!D23 -> 0.136
A7: DATA BASE: | B7: ='Planilha Orçamentária Onerada'!B7 -> DEZEMBRO, 2024
A8: PRAZO: | B8: ='Planilha Orçamentária Onerada'!B8 -> 8 meses
A9: ITEM | B9: DESCRIÇÃO | C9: SIGLA | D9: % APLICADO | E9: REFERÊNCIA TCU (ACÓRDÃO Nº 2622/2013)
E10: 1º QUARTIL | F10: 2º QUARTIL | G10: 3º QUARTIL
A11: 1 | B11: ADMINISTRAÇÃO CENTRAL | C11: AC | D11: =E11 -> 0.0343 | E11: 0.0343 | F11: 0.0493 | G11: 0.0671
A12: 2 | B12: IMPOSTOS | C12: T | D12: =SUM(D13:D16) -> 0.0565 | E12: =SUM(E13:E16) -> 0.0515 | F12: 0.0665 | G12: 0.0865
A13: 2.1 | B13: ISS (*) | D13: 0.02 | E13: 0.015 | F13: 0.03 | G13: 0.05
A14: 2.2 | B14: PIS | D14: 0.0065 | E14: 0.0065 | F14: 0.0065 | G14: 0.0065
A15: 2.3 | B15: Cofins | D15: 0.03 | E15: 0.03 | F15: 0.03 | G15: 0.03
A16: 2.4 | B16: Contribuição previdênciária sobre a receita bruta (CPRB) | E16: - | F16: - | G16: -
A17: 3 | B17: SEGURO, GARANTIA E RISCO | D17: =SUM(D18:D20) -> 0.013
A18: 3.1 | B18: Seguro e Garantia | C18: S | D18: 0.003 | E18: 0.0028 | F18: 0.0049 | G18: 0.0075
A19: 3.2 | B19: Garantia | C19: G
A20: 3.3 | B20: Risco | C20: R | D20: =E20 -> 0.01 | E20: 0.01 | F20: 0.0139 | G20: 0.0174
A21: 4 | B21: DESPESAS FINANCEIRAS | C21: DF | D21: 0.0094 | E21: 0.0094 | F21: 0.0099 | G21: 0.0117
A22: 5 | B22: LUCRO | C22: L | D22: 0.08 | E22: 0.0674 | F22: 0.0804 | G22: 0.094
B23: BDI ADOTADO: | D23: =TRUNC(((((1+D11+D17)*(1+D21)*(1+D22))/(1-D12))-1),4) -> 0.21 | E23: =TRUNC(((((1+E11+E17)*(1+E21)*(1+E22))/(1-E12))-1),4) -> 0.1748 | F23: 0.2264 | G23: 0.2929
A24: Considerações: O BDI foi calculado através da seguinte fórmula, regulamentada pelo Acórdão Nº 2622/2013 – TCU.
H173: =SUM(H174:H177) -> 0
D177: mec | F177: 2 | G177: 128

Sheet BDI forn
A1: Ministério do Desenvolvimento Regional
A2: Companhia de Desenvolvimento dos Vales do São Francisco e do Parnaíba
A4: COMPOSIÇÃO DE BDI - FORNECIMENTO - NÃO DESONERADO
A5: ='Planilha Orçamentária Onerada'!A5 -> OBRA: | B5: ='Planilha Orçamentária Onerada'!B5 -> SERVIÇOS DE INSPEÇÃO EM BARRAGENS | D5: BDI (serv.): | E5: ='BDI serv'!D23 -> 0.21
A6: ='Planilha Orçamentária Onerada'!A6 -> LOCAL: | B6: ='Planilha Orçamentária Onerada'!B6 -> BARRAGENS CODEVASF | D6: BDI (forn.): | E6: =D23 -> 0.136
A7: ='Planilha Orçamentária Onerada'!A7 -> DATA BASE: | B7: ='Planilha Orçamentária Onerada'!B7 -> DEZEMBRO, 2024
A8: ='Planilha Orçamentária Onerada'!A8 -> PRAZO: | B8: ='Planilha Orçamentária Onerada'!B8 -> 8 meses
A9: ITEM | B9: DESCRIÇÃO | C9: SIGLA | D9: % APLICADO | E9: REFERÊNCIA TCU (ACÓRDÃO Nº 2622/2013)
E10: 1º QUARTIL | F10: 2º QUARTIL | G10: 3º QUARTIL
A11: 1 | B11: ADMINISTRAÇÃO CENTRAL | C11: AC | D11: 0.03 | E11: 0.015 | F11: 0.0345 | G11: 0.0449
A12: 2 | B12: IMPOSTOS | C12: T | D12: =SUM(D13:D16) -> 0.0365
A13: 2.1 | B13: ISS (*) | E13: - | F13: - | G13: -
A14: 2.2 | B14: PIS | D14: 0.0065 | E14: - | F14: - | G14: -
A15: 2.3 | B15: Cofins | D15: 0.03 | E15: - | F15: - | G15: -
A16: 2.4 | B16: Contribuição previdênciária sobre a receita bruta (CPRB) | E16: - | F16: - | G16: -
A17: 3 | B17: SEGURO, GARANTIA E RISCO | D17: =SUM(D18:D20) -> 0.0086
A18: 3.1 | B18: Seguro | C18: S | D18: =E18 -> 0.003 | E18: 0.003 | F18: 0.0048 | G18: 0.0082
A19: 3.2 | B19: Garantia | C19: G
A20: 3.3 | B20: Risco | C20: R | D20: =E20 -> 0.0056 | E20: 0.0056 | F20: 0.0085 | G20: 0.0089
A21: 4 | B21: DESPESAS FINANCEIRAS | C21: DF | D21: =F21 -> 0.0085 | E21: 0.0085 | F21: 0.0085 | G21: 0.0111
A22: 5 | B22: LUCRO | C22: L | D22: 0.045 | E22: 0.035 | F22: 0.0511 | G22: 0.0622
B23: BDI ADOTADO: | D23: =TRUNC(((((1+D11+D17)*(1+D21)*(1+D22))/(1-D12))-1),4) -> 0.136
A24: Considerações: O BDI foi calculado através da seguinte fórmula, regulamentada pelo Acórdão Nº 2622/2013 – TCU.
H173: =SUM(H174:H177) -> 0
D177: mec | F177: 2 | G177: 128

Sheet Encargos Sociais
A1: Ministério da Integração e do Desenvolvimento Regional
A2: Companhia de Desenvolvimento dos Vales do São Francisco e do Parnaíba
A4: COMPOSIÇÃO DE ENCARGOS SOCIAIS SOBRE A MÃO DE OBRA
A5: ='Planilha Orçamentária Onerada'!A5 -> OBRA: | B5: ='Planilha Orçamentária Onerada'!B5 -> SERVIÇOS DE INSPEÇÃO EM BARRAGENS
A6: ='Planilha Orçamentária Onerada'!A6 -> LOCAL: | B6: ='Planilha Orçamentária Onerada'!B6 -> BARRAGENS CODEVASF
A7: ='Planilha Orçamentária Onerada'!A7 -> DATA BASE: | B7: ='Planilha Orçamentária Onerada'!B7 -> DEZEMBRO, 2024
A8: ='Planilha Orçamentária Onerada'!A8 -> PRAZO: | B8: ='Planilha Orçamentária Onerada'!B8 -> 8 meses
A10: MINAS GERAIS
A11: Encargos Sociais – Minas Gerais VIGÊNCIA A PARTIR DE 12/2022
A12: ENCARGOS SOCIAIS SOBRE A MÃO DE OBRA
A13: CÓDIGO | B13: DESCRIÇÃO | C13: COM DESONERAÇÃO | E13: SEM DESONERAÇÃO
C14: HORISTA % | D14: MENSALISTA % | E14: HORISTA % | F14: MENSALISTA %
A15: GRUPO A
A16: A1 | B16: INSS | C16: 0 | D16: 0 | E16: 0.2 | F16: 0.2
A17: A2 | B17: SESI | C17: 0.015 | D17: 0.015 | E17: 0.015 | F17: 0.015
A18: A3 | B18: SENAI | C18: 0.01 | D18: 0.01 | E18: 0.01 | F18: 0.01
A19: A4 | B19: INCRA | C19: 0.002 | D19: 0.002 | E19: 0.002 | F19: 0.002
A20: A5 | B20: SEBRAE | C20: 0.006 | D20: 0.006 | E20: 0.006 | F20: 0.006
A21: A6 | B21: Salário Educação | C21: 0.025 | D21: 0.025 | E21: 0.025 | F21: 0.025
A22: A7 | B22: Seguro Contra Acidentes de Trabalho | C22: 0.03 | D22: 0.03 | E22: 0.03 | F22: 0.03
A23: A8 | B23: FGTS | C23: 0.08 | D23: 0.08 | E23: 0.08 | F23: 0.08
A24: A9 | B24: SECONCI | C24: 0.012 | D24: 0.012 | E24: 0.012 | F24: 0.012
A25: A | B25: Total | C25: =SUM(C16:C24) -> 0.18 | D25: =SUM(D16:D24) -> 0.18 | E25: =SUM(E16:E24) -> 0.38 | F25: =SUM(F16:F24) -> 0.38
A26: GRUPO B
A27: B1 | B27: Repouso Semanal Remunerado | C27: 0.1777 | D27: Não incide | E27: 0.1777 | F27: Não incide
A28: B2 | B28: Feriados | C28: 0.0368 | D28: Não incide | E28: 0.0368 | F28: Não incide
A29: B3 | B29: Auxílio - Enfermidade | C29: 0.0088 | D29: 0.0066 | E29: 0.0088 | F29: 0.0066
A30: B4 | B30: 13º Salário | C30: 0.111 | D30: 0.0833 | E30: 0.111 | F30: 0.0833
A31: B5 | B31: Licença Paternidade | C31: 0.0007 | D31: 0.0005 | E31: 0.0007 | F31: 0.0005
A32: B6 | B32: Faltas Justificadas | C32: 0.0074 | D32: 0.0056 | E32: 0.0074 | F32: 0.0056
A33: B7 | B33: Dias de Chuvas | C33: 0.0109 | D33: Não incide | E33: 0.0109 | F33: Não incide
A34: B8 | B34: Auxílio Acidente de Trabalho | C34: 0.0011 | D34: 0.0008 | E34: 0.0011 | F34: 0.0008
A35: B9 | B35: Férias Gozadas | C35: 0.1435 | D35: 0.1077 | E35: 0.1435 | F35: 0.1077
A36: B10 | B36: Salário Maternidade | C36: 0.0004 | D36: 0.0003 | E36: 0.0004 | F36: 0.0003
A37: B | B37: Total | C37: =SUM(C27:C36) -> 0.4983 | D37: =SUM(D27:D36) -> 0.2048 | E37: =SUM(E27:E36) -> 0.4983 | F37: =SUM(F27:F36) -> 0.2048
A38: GRUPO C
A39: C1 | B39: Aviso Prévio Indenizado | C39: 0.0599 | D39: 0.045 | E39: 0.0599 | F39: 0.045
A40: C2 | B40: Aviso Prévio Trabalhado | C40: 0.0014 | D40: 0.0011 | E40: 0.0014 | F40: 0.0011
A41: C3 | B41: Férias Indenizadas | C41: 0 | D41: 0 | E41: 0 | F41: 0
A42: C4 | B42: Depósito Rescisão Sem Justa Causa | C42: 0.027 | D42: 0.0203 | E42: 0.027 | F42: 0.0203
A43: C5 | B43: Indenização Adicional | C43: 0.005 | D43: 0.0038 | E43: 0.005 | F43: 0.0038
A44: C | B44: Total | C44: =SUM(C39:C43) -> 0.0933 | D44: =SUM(D39:D43) -> 0.0702 | E44: =SUM(E39:E43) -> 0.0933 | F44: =SUM(F39:F43) -> 0.0702
A45: GRUPO D
A46: D1 | B46: Reincidência de Grupo A sobre Grupo B | C46: 0.0897 | D46: 0.0369 | E46: 0.1894 | F46: 0.0778
A47: D2 | B47: Reincidência de Grupo A sobre Aviso Prévio Trabalhado e Reincidência do FGTS sobre Aviso Prévio Indenizado | C47: 0.005 | D47: 0.0038 | E47: 0.0053 | F47: 0.004
A48: D | B48: Total | C48: =SUM(C46:C47) -> 0.0947 | D48: =SUM(D46:D47) -> 0.0407 | E48: =SUM(E46:E47) -> 0.1947 | F48: =SUM(F46:F47) -> 0.0818
A49: TOTAL(A+B+C+D) | C49: =C25+C37+C44+C48 -> 0.8663 | D49: =D25+D37+D44+D48 -> 0.4957 | E49: =E25+E37+E44+E48 -> 1.1663 | F49: =F25+F37+F44+F48 -> 0.7368
A50: Fonte: Informação Dias de Chuva – INMET
A52: BAHIA
A53: Encargos Sociais – Bahia VIGÊNCIA A PARTIR DE 12/2022
A54: ENCARGOS SOCIAIS SOBRE A MÃO DE OBRA
A55: CÓDIGO | B55: DESCRIÇÃO | C55: COM DESONERAÇÃO | E55: SEM DESONERAÇÃO
C56: HORISTA % | D56: MENSALISTA % | E56: HORISTA % | F56: MENSALISTA %
A57: GRUPO A
A58: A1 | B58: INSS | C58: 0 | D58: 0 | E58: 0.2 | F58: 0.2
A59: A2 | B59: SESI | C59: 0.015 | D59: 0.015 | E59: 0.015 | F59: 0.015
A60: A3 | B60: SENAI | C60: 0.01 | D60: 0.01 | E60: 0.01 | F60: 0.01
A61: A4 | B61: INCRA | C61: 0.002 | D61: 0.002 | E61: 0.002 | F61: 0.002
A62: A5 | B62: SEBRAE | C62: 0.006 | D62: 0.006 | E62: 0.006 | F62: 0.006
A63: A6 | B63: Salário Educação | C63: 0.025 | D63: 0.025 | E63: 0.025 | F63: 0.025
A64: A7 | B64: Seguro Contra Acidentes de Trabalho | C64: 0.03 | D64: 0.03 | E64: 0.03 | F64: 0.03
A65: A8 | B65: FGTS | C65: 0.08 | D65: 0.08 | E65: 0.08 | F65: 0.08
A66: A9 | B66: SECONCI | C66: 0 | D66: 0 | E66: 0 | F66: 0
A67: A | B67: Total | C67: =SUM(C58:C66) -> 0.168 | D67: =SUM(D58:D66) -> 0.168 | E67: =SUM(E58:E66) -> 0.368 | F67: =SUM(F58:F66) -> 0.368
A68: GRUPO B
A69: B1 | B69: Repouso Semanal Remunerado | C69: 0.1797 | D69: Não incide | E69: 0.1797 | F69: Não incide
A70: B2 | B70: Feriados | C70: 0.0397 | D70: Não incide | E70: 0.0397 | F70: Não incide
A71: B3 | B71: Auxílio - Enfermidade | C71: 0.0087 | D71: 0.0066 | E71: 0.0087 | F71: 0.0066
A72: B4 | B72: 13º Salário | C72: 0.1102 | D72: 0.0833 | E72: 0.1102 | F72: 0.0833
A73: B5 | B73: Licença Paternidade | C73: 0.0007 | D73: 0.0005 | E73: 0.0007 | F73: 0.0005
A74: B6 | B74: Faltas Justificadas | C74: 0.0073 | D74: 0.0056 | E74: 0.0073 | F74: 0.0056
A75: B7 | B75: Dias de Chuvas | C75: 0.0205 | D75: Não incide | E75: 0.0205 | F75: Não incide
A76: B8 | B76: Auxílio Acidente de Trabalho | C76: 0.0011 | D76: 0.0008 | E76: 0.0011 | F76: 0.0008
A77: B9 | B77: Férias Gozadas | C77: 0.1121 | D77: 0.0847 | E77: 0.1121 | F77: 0.0847
A78: B10 | B78: Salário Maternidade | C78: 0.0004 | D78: 0.0003 | E78: 0.0004 | F78: 0.0003
A79: B | B79: Total | C79: =SUM(C69:C78) -> 0.4804 | D79: =SUM(D69:D78) -> 0.1818 | E79: =SUM(E69:E78) -> 0.4804 | F79: =SUM(F69:F78) -> 0.1818
A80: GRUPO C
A81: C1 | B81: Aviso Prévio Indenizado | C81: 0.0547 | D81: 0.0413 | E81: 0.0547 | F81: 0.0413
A82: C2 | B82: Aviso Prévio Trabalhado | C82: 0.0013 | D82: 0.001 | E82: 0.0013 | F82: 0.001
A83: C3 | B83: Férias Indenizadas | C83: 0.0295 | D83: 0.0223 | E83: 0.0295 | F83: 0.0223
A84: C4 | B84: Depósito Rescisão Sem Justa Causa | C84: 0.0313 | D84: 0.0237 | E84: 0.0313 | F84: 0.0237
A85: C5 | B85: Indenização Adicional | C85: 0.0046 | D85: 0.0035 | E85: 0.0046 | F85: 0.0035
A86: C | B86: Total | C86: =SUM(C81:C85) -> 0.1214 | D86: =SUM(D81:D85) -> 0.0918 | E86: =SUM(E81:E85) -> 0.1214 | F86: =SUM(F81:F85) -> 0.0918
A87: GRUPO D
A88: D1 | B88: Reincidência de Grupo A sobre Grupo B | C88: 0.0807 | D88: 0.0305 | E88: 0.1768 | F88: 0.0669
A89: D2 | B89: Reincidência de Grupo A sobre Aviso Prévio Trabalhado e Reincidência do FGTS sobre Aviso Prévio Indenizado | C89: 0.0046 | D89: 0.0035 | E89: 0.0049 | F89: 0.0037
A90: D | B90: Total | C90: =SUM(C88:C89) -> 0.0853 | D90: =SUM(D88:D89) -> 0.034 | E90: =SUM(E88:E89) -> 0.1817 | F90: =SUM(F88:F89) -> 0.0706
A91: TOTAL(A+B+C+D) | C91: =C67+C79+C86+C90 -> 0.8551 | D91: =D67+D79+D86+D90 -> 0.4756 | E91: =E67+E79+E86+E90 -> 1.1515 | F91: =F67+F79+F86+F90 -> 0.7122
A92: Fonte: Informação Dias de Chuva – INMET
A94: PERNAMBUCO
A95: Encargos Sociais – Pernambuco VIGÊNCIA A PARTIR DE 12/2022
A96: ENCARGOS SOCIAIS SOBRE A MÃO DE OBRA
A97: CÓDIGO | B97: DESCRIÇÃO | C97: COM DESONERAÇÃO | E97: SEM DESONERAÇÃO
C98: HORISTA % | D98: MENSALISTA % | E98: HORISTA % | F98: MENSALISTA %
A99: GRUPO A
A100: A1 | B100: INSS | C100: 0 | D100: 0 | E100: 0.2 | F100: 0.2
A101: A2 | B101: SESI | C101: 0.015 | D101: 0.015 | E101: 0.015 | F101: 0.015
A102: A3 | B102: SENAI | C102: 0.01 | D102: 0.01 | E102: 0.01 | F102: 0.01
A103: A4 | B103: INCRA | C103: 0.002 | D103: 0.002 | E103: 0.002 | F103: 0.002
A104: A5 | B104: SEBRAE | C104: 0.006 | D104: 0.006 | E104: 0.006 | F104: 0.006
A105: A6 | B105: Salário Educação | C105: 0.025 | D105: 0.025 | E105: 0.025 | F105: 0.025
A106: A7 | B106: Seguro Contra Acidentes de Trabalho | C106: 0.03 | D106: 0.03 | E106: 0.03 | F106: 0.03
A107: A8 | B107: FGTS | C107: 0.08 | D107: 0.08 | E107: 0.08 | F107: 0.08
A108: A9 | B108: SECONCI | C108: 0 | D108: 0 | E108: 0 | F108: 0
A109: A | B109: Total | C109: =SUM(C100:C108) -> 0.168 | D109: =SUM(D100:D108) -> 0.168 | E109: =SUM(E100:E108) -> 0.368 | F109: =SUM(F100:F108) -> 0.368
A110: GRUPO B
A111: B1 | B111: Repouso Semanal Remunerado | C111: 0.1806 | D111: Não incide | E111: 0.1806 | F111: Não incide
A112: B2 | B112: Feriados | C112: 0.0433 | D112: Não incide | E112: 0.0433 | F112: Não incide
A113: B3 | B113: Auxílio - Enfermidade | C113: 0.0087 | D113: 0.0066 | E113: 0.0087 | F113: 0.0066
A114: B4 | B114: 13º Salário | C114: 0.1103 | D114: 0.0833 | E114: 0.1103 | F114: 0.0833
A115: B5 | B115: Licença Paternidade | C115: 0.0007 | D115: 0.0005 | E115: 0.0007 | F115: 0.0005
A116: B6 | B116: Faltas Justificadas | C116: 0.0074 | D116: 0.0056 | E116: 0.0074 | F116: 0.0056
A117: B7 | B117: Dias de Chuvas | C117: 0.0223 | D117: Não incide | E117: 0.0223 | F117: Não incide
A118: B8 | B118: Auxílio Acidente de Trabalho | C118: 0.0011 | D118: 0.0008 | E118: 0.0011 | F118: 0.0008
A119: B9 | B119: Férias Gozadas | C119: 0.1046 | D119: 0.079 | E119: 0.1046 | F119: 0.079
A120: B10 | B120: Salário Maternidade | C120: 0.0004 | D120: 0.0003 | E120: 0.0004 | F120: 0.0003
A121: B | B121: Total | C121: =SUM(C111:C120) -> 0.4794 | D121: =SUM(D111:D120) -> 0.1761 | E121: =SUM(E111:E120) -> 0.4794 | F121: =SUM(F111:F120) -> 0.1761
A122: GRUPO C
A123: C1 | B123: Aviso Prévio Indenizado | C123: 0.048 | D123: 0.0363 | E123: 0.048 | F123: 0.0363
A124: C2 | B124: Aviso Prévio Trabalhado | C124: 0.0011 | D124: 0.0009 | E124: 0.0011 | F124: 0.0009
A125: C3 | B125: Férias Indenizadas | C125: 0.0349 | D125: 0.0264 | E125: 0.0349 | F125: 0.0264
A126: C4 | B126: Depósito Rescisão Sem Justa Causa | C126: 0.0295 | D126: 0.0223 | E126: 0.0295 | F126: 0.0223
A127: C5 | B127: Indenização Adicional | C127: 0.004 | D127: 0.0031 | E127: 0.004 | F127: 0.0031
A128: C | B128: Total | C128: =SUM(C123:C127) -> 0.1175 | D128: =SUM(D123:D127) -> 0.089 | E128: =SUM(E123:E127) -> 0.1175 | F128: =SUM(F123:F127) -> 0.089
A129: GRUPO D
A130: D1 | B130: Reincidência de Grupo A sobre Grupo B | C130: 0.0805 | D130: 0.0296 | E130: 0.1764 | F130: 0.0648
A131: D2 | B131: Reincidência de Grupo A sobre Aviso Prévio Trabalhado e Reincidência do FGTS sobre Aviso Prévio Indenizado | C131: 0.004 | D131: 0.0031 | E131: 0.0042 | F131: 0.0032
A132: D | B132: Total | C132: =SUM(C130:C131) -> 0.0845 | D132: =SUM(D130:D131) -> 0.0327 | E132: =SUM(E130:E131) -> 0.1806 | F132: =SUM(F130:F131) -> 0.068
A133: TOTAL(A+B+C+D) | C133: =C109+C121+C128+C132 -> 0.8494 | D133: =D109+D121+D128+D132 -> 0.4658 | E133: =E109+E121+E128+E132 -> 1.1455 | F133: =F109+F121+F128+F132 -> 0.7011
A134: Fonte: Informação Dias de Chuva – INMET
A136: SERGIPE
A137: Encargos Sociais – Sergipe VIGÊNCIA A PARTIR DE 12/2022
A138: ENCARGOS SOCIAIS SOBRE A MÃO DE OBRA
A139: CÓDIGO | B139: DESCRIÇÃO | C139: COM DESONERAÇÃO | E139: SEM DESONERAÇÃO
C140: HORISTA % | D140: MENSALISTA % | E140: HORISTA % | F140: MENSALISTA %
A141: GRUPO A
A142: A1 | B142: INSS | C142: 0 | D142: 0 | E142: 0.2 | F142: 0.2
A143: A2 | B143: SESI | C143: 0.015 | D143: 0.015 | E143: 0.015 | F143: 0.015
A144: A3 | B144: SENAI | C144: 0.01 | D144: 0.01 | E144: 0.01 | F144: 0.01
A145: A4 | B145: INCRA | C145: 0.002 | D145: 0.002 | E145: 0.002 | F145: 0.002
A146: A5 | B146: SEBRAE | C146: 0.006 | D146: 0.006 | E146: 0.006 | F146: 0.006
A147: A6 | B147: Salário Educação | C147: 0.025 | D147: 0.025 | E147: 0.025 | F147: 0.025
A148: A7 | B148: Seguro Contra Acidentes de Trabalho | C148: 0.03 | D148: 0.03 | E148: 0.03 | F148: 0.03
A149: A8 | B149: FGTS | C149: 0.08 | D149: 0.08 | E149: 0.08 | F149: 0.08
A150: A9 | B150: SECONCI | C150: 0 | D150: 0 | E150: 0 | F150: 0
A151: A | B151: Total | C151: =SUM(C142:C150) -> 0.168 | D151: =SUM(D142:D150) -> 0.168 | E151: =SUM(E142:E150) -> 0.368 | F151: =SUM(F142:F150) -> 0.368
A152: GRUPO B
A153: B1 | B153: Repouso Semanal Remunerado | C153: 0.1786 | D153: Não incide | E153: 0.1786 | F153: Não incide
A154: B2 | B154: Feriados | C154: 0.0393 | D154: Não incide | E154: 0.0393 | F154: Não incide
A155: B3 | B155: Auxílio - Enfermidade | C155: 0.0086 | D155: 0.0066 | E155: 0.0086 | F155: 0.0066
A156: B4 | B156: 13º Salário | C156: 0.1086 | D156: 0.0833 | E156: 0.1086 | F156: 0.0833
A157: B5 | B157: Licença Paternidade | C157: 0.0007 | D157: 0.0005 | E157: 0.0007 | F157: 0.0005
A158: B6 | B158: Faltas Justificadas | C158: 0.0072 | D158: 0.0056 | E158: 0.0072 | F158: 0.0056
A159: B7 | B159: Dias de Chuvas | C159: 0.0145 | D159: Não incide | E159: 0.0145 | F159: Não incide
A160: B8 | B160: Auxílio Acidente de Trabalho | C160: 0.001 | D160: 0.0008 | E160: 0.001 | F160: 0.0008
A161: B9 | B161: Férias Gozadas | C161: 0.0965 | D161: 0.074 | E161: 0.0965 | F161: 0.074
A162: B10 | B162: Salário Maternidade | C162: 0.0004 | D162: 0.0003 | E162: 0.0004 | F162: 0.0003
A163: B | B163: Total | C163: =SUM(C153:C162) -> 0.4554 | D163: =SUM(D153:D162) -> 0.1711 | E163: =SUM(E153:E162) -> 0.4554 | F163: =SUM(F153:F162) -> 0.1711
A164: GRUPO C
A165: C1 | B165: Aviso Prévio Indenizado | C165: 0.0478 | D165: 0.0367 | E165: 0.0478 | F165: 0.0367
A166: C2 | B166: Aviso Prévio Trabalhado | C166: 0.0011 | D166: 0.0009 | E166: 0.0011 | F166: 0.0009
A167: C3 | B167: Férias Indenizadas | C167: 0.0399 | D167: 0.0306 | E167: 0.0399 | F167: 0.0306
A168: C4 | B168: Depósito Rescisão Sem Justa Causa | C168: 0.0313 | D168: 0.024 | E168: 0.0313 | F168: 0.024
A169: C5 | B169: Indenização Adicional | C169: 0.004 | D169: 0.0031 | E169: 0.004 | F169: 0.0031
A170: C | B170: Total | C170: =SUM(C165:C169) -> 0.1241 | D170: =SUM(D165:D169) -> 0.0953 | E170: =SUM(E165:E169) -> 0.1241 | F170: =SUM(F165:F169) -> 0.0953
A171: GRUPO D
A172: D1 | B172: Reincidência de Grupo A sobre Grupo B | C172: 0.0765 | D172: 0.0287 | E172: 0.1676 | F172: 0.063
A173: D2 | B173: Reincidência de Grupo A sobre Aviso Prévio Trabalhado e Reincidência do FGTS sobre Aviso Prévio Indenizado | C173: 0.004 | D173: 0.0031 | E173: 0.0042 | F173: 0.0033
A174: D | B174: Total | C174: =SUM(C172:C173) -> 0.0805 | D174: =SUM(D172:D173) -> 0.0318 | E174: =SUM(E172:E173) -> 0.1718 | F174: =SUM(F172:F173) -> 0.0663
A175: TOTAL(A+B+C+D) | C175: =C151+C163+C170+C174 -> 0.828 | D175: =D151+D163+D170+D174 -> 0.4662 | E175: =E151+E163+E170+E174 -> 1.1193 | F175: =F151+F163+F170+F174 -> 0.7007
A176: Fonte: Informação Dias de Chuva – INMET
A178: ALAGOAS
A179: Encargos Sociais – Alagoas VIGÊNCIA A PARTIR DE 12/2022
A180: ENCARGOS SOCIAIS SOBRE A MÃO DE OBRA
A181: CÓDIGO | B181: DESCRIÇÃO | C181: COM DESONERAÇÃO | E181: SEM DESONERAÇÃO
C182: HORISTA % | D182: MENSALISTA % | E182: HORISTA % | F182: MENSALISTA %
A183: GRUPO A
A184: A1 | B184: INSS | C184: 0 | D184: 0 | E184: 0.2 | F184: 0.2
A185: A2 | B185: SESI | C185: 0.015 | D185: 0.015 | E185: 0.015 | F185: 0.015
A186: A3 | B186: SENAI | C186: 0.01 | D186: 0.01 | E186: 0.01 | F186: 0.01
A187: A4 | B187: INCRA | C187: 0.002 | D187: 0.002 | E187: 0.002 | F187: 0.002
A188: A5 | B188: SEBRAE | C188: 0.006 | D188: 0.006 | E188: 0.006 | F188: 0.006
A189: A6 | B189: Salário Educação | C189: 0.025 | D189: 0.025 | E189: 0.025 | F189: 0.025
A190: A7 | B190: Seguro Contra Acidentes de Trabalho | C190: 0.03 | D190: 0.03 | E190: 0.03 | F190: 0.03
A191: A8 | B191: FGTS | C191: 0.08 | D191: 0.08 | E191: 0.08 | F191: 0.08
A192: A9 | B192: SECONCI | C192: 0 | D192: 0 | E192: 0 | F192: 0
A193: A | B193: Total | C193: =SUM(C184:C192) -> 0.168 | D193: =SUM(D184:D192) -> 0.168 | E193: =SUM(E184:E192) -> 0.368 | F193: =SUM(F184:F192) -> 0.368
A194: GRUPO B
A195: B1 | B195: Repouso Semanal Remunerado | C195: 0.1806 | D195: Não incide | E195: 0.1806 | F195: Não incide
A196: B2 | B196: Feriados | C196: 0.0468 | D196: Não incide | E196: 0.0468 | F196: Não incide
A197: B3 | B197: Auxílio - Enfermidade | C197: 0.0087 | D197: 0.0066 | E197: 0.0087 | F197: 0.0066
A198: B4 | B198: 13º Salário | C198: 0.1107 | D198: 0.0833 | E198: 0.1107 | F198: 0.0833
A199: B5 | B199: Licença Paternidade | C199: 0.0007 | D199: 0.0005 | E199: 0.0007 | F199: 0.0005
A200: B6 | B200: Faltas Justificadas | C200: 0.0074 | D200: 0.0056 | E200: 0.0074 | F200: 0.0056
A201: B7 | B201: Dias de Chuvas | C201: 0.0188 | D201: Não incide | E201: 0.0188 | F201: Não incide
A202: B8 | B202: Auxílio Acidente de Trabalho | C202: 0.0011 | D202: 0.0008 | E202: 0.0011 | F202: 0.0008
A203: B9 | B203: Férias Gozadas | C203: 0.1116 | D203: 0.084 | E203: 0.1116 | F203: 0.084
A204: B10 | B204: Salário Maternidade | C204: 0.0004 | D204: 0.0003 | E204: 0.0004 | F204: 0.0003
A205: B | B205: Total | C205: =SUM(C195:C204) -> 0.4868 | D205: =SUM(D195:D204) -> 0.1811 | E205: =SUM(E195:E204) -> 0.4868 | F205: =SUM(F195:F204) -> 0.1811
A206: GRUPO C
... 12 more rows

Sheet Comp SINAPI MG 09-2024 Desoner (hidden)
A1: PCI.817.01 - CUSTO DE COMPOSIÇÕES - SINTÉTICO DATA DE EMISSÃO: 10/10/2024 23:30:17 DATA DE RT: 10/10/2024
A2: ENCARGOS SOCIAIS SOBRE PREÇOS DA MÃO-DE-OBRA: 108,90%(HORA) 67,79%(MÊS)
A3: ABRANGÊNCIA : NACIONAL LOCALIDADE : BELO HORIZONTE DATA DE PREÇO : 09/2024 REFERÊNCIA COLETA : MEDIANO
A5: DESCRICAO DA CLASSE | B5: SIGLA DA CLASSE | C5: DESCRICAO DO TIPO 1 | D5: SIGLA DO TIPO 1 | E5: CODIGO DO AGRUPADOR | F5: DESCRICAO DO AGRUPADOR | G5: CODIGO DA COMPOSICAO | H5: DESCRICAO DA COMPOSICAO | I5: UNIDADE | J5: ORIGEM DE PREÇO | K5: CUSTO TOTAL | L5: VINCULO
A7: ASSENTAMENTO DE TUBOS E PECAS | B7: ASTU | C7: FORNEC E/OU ASSENT DE TUBO DE FERRO FUNDIDO JUNTA ELASTICA | D7: 45 | G7: 97141 | H7: ASSENTAMENTO DE TUBO DE FERRO FUNDIDO PARA REDE DE ÁGUA, DN 80 MM, JUNTA ELÁSTICA, INSTALADO EM LOCAL COM NÍVEL ALTO DE INTERFERÊNCIAS (NÃO INCLUI FORNECIMENTO). AF_05/2024 | I7: M | J7: COEFICIENTE DE REPRESENTATIVIDADE | K7: 4.94 | L7: CAIXA REFERENCIAL
A8: ASSENTAMENTO DE TUBOS E PECAS | B8: ASTU | C8: FORNEC E/OU ASSENT DE TUBO DE FERRO FUNDIDO JUNTA ELASTICA | D8: 45 | G8: 97142 | H8: ASSENTAMENTO DE TUBO DE FERRO FUNDIDO PARA REDE DE ÁGUA, DN 100 MM, JUNTA ELÁSTICA, INSTALADO EM LOCAL COM NÍVEL ALTO DE INTERFERÊNCIAS (NÃO INCLUI FORNECIMENTO). AF_05/2024 | I8: M | J8: COEFICIENTE DE REPRESENTATIVIDADE | K8: 5.68 | L8: CAIXA REFERENCIAL
A9: ASSENTAMENTO DE TUBOS E PECAS | B9: ASTU | C9: FORNEC E/OU ASSENT DE TUBO DE FERRO FUNDIDO JUNTA ELASTICA | D9: 45 | G9: 97143 | H9: ASSENTAMENTO DE TUBO DE FERRO FUNDIDO PARA REDE DE ÁGUA, DN 150 MM, JUNTA ELÁSTICA, INSTALADO EM LOCAL COM NÍVEL ALTO DE INTERFERÊNCIAS (NÃO INCLUI FORNECIMENTO). AF_05/2024 | I9: M | J9: COEFICIENTE DE REPRESENTATIVIDADE | K9: 7.5 | L9: CAIXA REFERENCIAL
A10: ASSENTAMENTO DE TUBOS E PECAS | B10: ASTU | C10: FORNEC E/OU ASSENT DE TUBO DE FERRO FUNDIDO JUNTA ELASTICA | D10: 45 | G10: 97144 | H10: ASSENTAMENTO DE TUBO DE FERRO FUNDIDO PARA REDE DE ÁGUA, DN 200 MM, JUNTA ELÁSTICA, INSTALADO EM LOCAL COM NÍVEL ALTO DE INTERFERÊNCIAS (NÃO INCLUI FORNECIMENTO). AF_05/2024 | I10: M | J10: COEFICIENTE DE REPRESENTATIVIDADE | K10: 9.31 | L10: CAIXA REFERENCIAL
A11: ASSENTAMENTO DE TUBOS E PECAS | B11: ASTU | C11: FORNEC E/OU ASSENT DE TUBO DE FERRO FUNDIDO JUNTA ELASTICA | D11: 45 | G11: 97145 | H11: ASSENTAMENTO DE TUBO DE FERRO FUNDIDO PARA REDE DE ÁGUA, DN 250 MM, JUNTA ELÁSTICA, INSTALADO EM LOCAL COM NÍVEL ALTO DE INTERFERÊNCIAS (NÃO INCLUI FORNECIMENTO). AF_05/2024 | I11: M | J11: COEFICIENTE DE REPRESENTATIVIDADE | K11: 11.13 | L11: CAIXA REFERENCIAL
A12: ASSENTAMENTO DE TUBOS E PECAS | B12: ASTU | C12: FORNEC E/OU ASSENT DE TUBO DE FERRO FUNDIDO JUNTA ELASTICA | D12: 45 | G12: 97146 | H12: ASSENTAMENTO DE TUBO DE FERRO FUNDIDO PARA REDE DE ÁGUA, DN 300 MM, JUNTA ELÁSTICA, INSTALADO EM LOCAL COM NÍVEL ALTO DE INTERFERÊNCIAS (NÃO INCLUI FORNECIMENTO). AF_05/2024 | I12: M | J12: COEFICIENTE DE REPRESENTATIVIDADE | K12: 12.97 | L12: CAIXA REFERENCIAL
A13: ASSENTAMENTO DE TUBOS E PECAS | B13: ASTU | C13: FORNEC E/OU ASSENT DE TUBO DE FERRO FUNDIDO JUNTA ELASTICA | D13: 45 | G13: 97147 | H13: ASSENTAMENTO DE TUBO DE FERRO FUNDIDO PARA REDE DE ÁGUA, DN 350 MM, JUNTA ELÁSTICA, INSTALADO EM LOCAL COM NÍVEL ALTO DE INTERFERÊNCIAS (NÃO INCLUI FORNECIMENTO). AF_05/2024 | I13: M | J13: COEFICIENTE DE REPRESENTATIVIDADE | K13: 14.8 | L13: CAIXA REFERENCIAL
A14: ASSENTAMENTO DE TUBOS E PECAS | B14: ASTU | C14: FORNEC E/OU ASSENT DE TUBO DE FERRO FUNDIDO JUNTA ELASTICA | D14: 45 | G14: 97148 | H14: ASSENTAMENTO DE TUBO DE FERRO FUNDIDO PARA REDE DE ÁGUA, DN 400 MM, JUNTA ELÁSTICA, INSTALADO EM LOCAL COM NÍVEL ALTO DE INTERFERÊNCIAS (NÃO INCLUI FORNECIMENTO). AF_05/2024 | I14: M | J14: COEFICIENTE DE REPRESENTATIVIDADE | K14: 16.63 | L14: CAIXA REFERENCIAL
A15: ASSENTAMENTO DE TUBOS E PECAS | B15: ASTU | C15: FORNEC E/OU ASSENT DE TUBO DE FERRO FUNDIDO JUNTA ELASTICA | D15: 45 | G15: 97149 | H15: ASSENTAMENTO DE TUBO DE FERRO FUNDIDO PARA REDE DE ÁGUA, DN 450 MM, JUNTA ELÁSTICA, INSTALADO EM LOCAL COM NÍVEL ALTO DE INTERFERÊNCIAS (NÃO INCLUI FORNECIMENTO). AF_05/2024 | I15: M | J15: COEFICIENTE DE REPRESENTATIVIDADE | K15: 18.49 | L15: CAIXA REFERENCIAL
A16: ASSENTAMENTO DE TUBOS E PECAS | B16: ASTU | C16: FORNEC E/OU ASSENT DE TUBO DE FERRO FUNDIDO JUNTA ELASTICA | D16: 45 | G16: 97150 | H16: ASSENTAMENTO DE TUBO DE FERRO FUNDIDO PARA REDE DE ÁGUA, DN 500 MM, JUNTA ELÁSTICA, INSTALADO EM LOCAL COM NÍVEL ALTO DE INTERFERÊNCIAS (NÃO INCLUI FORNECIMENTO). AF_05/2024 | I16: M | J16: COEFICIENTE DE REPRESENTATIVIDADE | K16: 23.14 | L16: CAIXA REFERENCIAL
A17: ASSENTAMENTO DE TUBOS E PECAS | B17: ASTU | C17: FORNEC E/OU ASSENT DE TUBO DE FERRO FUNDIDO JUNTA ELASTICA | D17: 45 | G17: 97151 | H17: ASSENTAMENTO DE TUBO DE FERRO FUNDIDO PARA REDE DE ÁGUA, DN 600 MM, JUNTA ELÁSTICA, INSTALADO EM LOCAL COM NÍVEL ALTO DE INTERFERÊNCIAS (NÃO INCLUI FORNECIMENTO). AF_05/2024 | I17: M | J17: COEFICIENTE DE REPRESENTATIVIDADE | K17: 27.28 | L17: CAIXA REFERENCIAL
A18: ASSENTAMENTO DE TUBOS E PECAS | B18: ASTU | C18: FORNEC E/OU ASSENT DE TUBO DE FERRO FUNDIDO JUNTA ELASTICA | D18: 45 | G18: 97152 | H18: ASSENTAMENTO DE TUBO DE FERRO FUNDIDO PARA REDE DE ÁGUA, DN 700 MM, JUNTA ELÁSTICA, INSTALADO EM LOCAL COM NÍVEL ALTO DE INTERFERÊNCIAS (NÃO INCLUI FORNECIMENTO). AF_05/2024 | I18: M | J18: COEFICIENTE DE REPRESENTATIVIDADE | K18: 31.16 | L18: CAIXA REFERENCIAL
A19: ASSENTAMENTO DE TUBOS E PECAS | B19: ASTU | C19: FORNEC E/OU ASSENT DE TUBO DE FERRO FUNDIDO JUNTA ELASTICA | D19: 45 | G19: 97153 | H19: ASSENTAMENTO DE TUBO DE FERRO FUNDIDO PARA REDE DE ÁGUA, DN 800 MM, JUNTA ELÁSTICA, INSTALADO EM LOCAL COM NÍVEL ALTO DE INTERFERÊNCIAS (NÃO INCLUI FORNECIMENTO). AF_05/2024 | I19: M | J19: COEFICIENTE DE REPRESENTATIVIDADE | K19: 35.19 | L19: CAIXA REFERENCIAL
A20: ASSENTAMENTO DE TUBOS E PECAS | B20: ASTU | C20: FORNEC E/OU ASSENT DE TUBO DE FERRO FUNDIDO JUNTA ELASTICA | D20: 45 | G20: 97154 | H20: ASSENTAMENTO DE TUBO DE FERRO FUNDIDO PARA REDE DE ÁGUA, DN 900 MM, JUNTA ELÁSTICA, INSTALADO EM LOCAL COM NÍVEL ALTO DE INTERFERÊNCIAS (NÃO INCLUI FORNECIMENTO). AF_05/2024 | I20: M | J20: COEFICIENTE DE REPRESENTATIVIDADE | K20: 39.26 | L20: CAIXA REFERENCIAL
A21: ASSENTAMENTO DE TUBOS E PECAS | B21: ASTU | C21: FORNEC E/OU ASSENT DE TUBO DE FERRO FUNDIDO JUNTA ELASTICA | D21: 45 | G21: 97155 | H21: ASSENTAMENTO DE TUBO DE FERRO FUNDIDO PARA REDE DE ÁGUA, DN 1000 MM, JUNTA ELÁSTICA, INSTALADO EM LOCAL COM NÍVEL ALTO DE INTERFERÊNCIAS (NÃO INCLUI FORNECIMENTO). AF_05/2024 | I21: M | J21: COEFICIENTE DE REPRESENTATIVIDADE | K21: 43.34 | L21: CAIXA REFERENCIAL
A22: ASSENTAMENTO DE TUBOS E PECAS | B22: ASTU | C22: FORNEC E/OU ASSENT DE TUBO DE FERRO FUNDIDO JUNTA ELASTICA | D22: 45 | G22: 97156 | H22: ASSENTAMENTO DE TUBO DE FERRO FUNDIDO PARA REDE DE ÁGUA, DN 1200 MM, JUNTA ELÁSTICA, INSTALADO EM LOCAL COM NÍVEL ALTO DE INTERFERÊNCIAS (NÃO INCLUI FORNECIMENTO). AF_05/2024 | I22: M | J22: COEFICIENTE DE REPRESENTATIVIDADE | K22: 51.87 | L22: CAIXA REFERENCIAL
A23: ASSENTAMENTO DE TUBOS E PECAS | B23: ASTU | C23: FORNEC E/OU ASSENT DE TUBO DE FERRO FUNDIDO JUNTA ELASTICA | D23: 45 | G23: 97157 | H23: ASSENTAMENTO DE TUBO DE FERRO FUNDIDO PARA REDE DE ÁGUA, DN 80 MM, JUNTA ELÁSTICA, INSTALADO EM LOCAL COM NÍVEL BAIXO DE INTERFERÊNCIAS (NÃO INCLUI FORNECIMENTO). AF_05/2024 | I23: M | J23: COEFICIENTE DE REPRESENTATIVIDADE | K23: 3.7 | L23: CAIXA REFERENCIAL
A24: ASSENTAMENTO DE TUBOS E PECAS | B24: ASTU | C24: FORNEC E/OU ASSENT DE TUBO DE FERRO FUNDIDO JUNTA ELASTICA | D24: 45 | G24: 97158 | H24: ASSENTAMENTO DE TUBO DE FERRO FUNDIDO PARA REDE DE ÁGUA, DN 100 MM, JUNTA ELÁSTICA, INSTALADO EM LOCAL COM NÍVEL BAIXO DE INTERFERÊNCIAS (NÃO INCLUI FORNECIMENTO). AF_05/2024 | I24: M | J24: COEFICIENTE DE REPRESENTATIVIDADE | K24: 4.31 | L24: CAIXA REFERENCIAL
A25: ASSENTAMENTO DE TUBOS E PECAS | B25: ASTU | C25: FORNEC E/OU ASSENT DE TUBO DE FERRO FUNDIDO JUNTA ELASTICA | D25: 45 | G25: 97159 | H25: ASSENTAMENTO DE TUBO DE FERRO FUNDIDO PARA REDE DE ÁGUA, DN 150 MM, JUNTA ELÁSTICA, INSTALADO EM LOCAL COM NÍVEL BAIXO DE INTERFERÊNCIAS (NÃO INCLUI FORNECIMENTO). AF_05/2024 | I25: M | J25: COEFICIENTE DE REPRESENTATIVIDADE | K25: 5.81 | L25: CAIXA REFERENCIAL
A26: ASSENTAMENTO DE TUBOS E PECAS | B26: ASTU | C26: FORNEC E/OU ASSENT DE TUBO DE FERRO FUNDIDO JUNTA ELASTICA | D26: 45 | G26: 97160 | H26: ASSENTAMENTO DE TUBO DE FERRO FUNDIDO PARA REDE DE ÁGUA, DN 200 MM, JUNTA ELÁSTICA, INSTALADO EM LOCAL COM NÍVEL BAIXO DE INTERFERÊNCIAS (NÃO INCLUI FORNECIMENTO). AF_05/2024 | I26: M | J26: COEFICIENTE DE REPRESENTATIVIDADE | K26: 7.28 | L26: CAIXA REFERENCIAL
A27: ASSENTAMENTO DE TUBOS E PECAS | B27: ASTU | C27: FORNEC E/OU ASSENT DE TUBO DE FERRO FUNDIDO JUNTA ELASTICA | D27: 45 | G27: 97161 | H27: ASSENTAMENTO DE TUBO DE FERRO FUNDIDO PARA REDE DE ÁGUA, DN 250 MM, JUNTA ELÁSTICA, INSTALADO EM LOCAL COM NÍVEL BAIXO DE INTERFERÊNCIAS (NÃO INCLUI FORNECIMENTO). AF_05/2024 | I27: M | J27: COEFICIENTE DE REPRESENTATIVIDADE | K27: 8.78 | L27: CAIXA REFERENCIAL
A28: ASSENTAMENTO DE TUBOS E PECAS | B28: ASTU | C28: FORNEC E/OU ASSENT DE TUBO DE FERRO FUNDIDO JUNTA ELASTICA | D28: 45 | G28: 97162 | H28: ASSENTAMENTO DE TUBO DE FERRO FUNDIDO PARA REDE DE ÁGUA, DN 300 MM, JUNTA ELÁSTICA, INSTALADO EM LOCAL COM NÍVEL BAIXO DE INTERFERÊNCIAS (NÃO INCLUI FORNECIMENTO). AF_05/2024 | I28: M | J28: COEFICIENTE DE REPRESENTATIVIDADE | K28: 10.3 | L28: CAIXA REFERENCIAL
A29: ASSENTAMENTO DE TUBOS E PECAS | B29: ASTU | C29: FORNEC E/OU ASSENT DE TUBO DE FERRO FUNDIDO JUNTA ELASTICA | D29: 45 | G29: 97163 | H29: ASSENTAMENTO DE TUBO DE FERRO FUNDIDO PARA REDE DE ÁGUA, DN 350 MM, JUNTA ELÁSTICA, INSTALADO EM LOCAL COM NÍVEL BAIXO DE INTERFERÊNCIAS (NÃO INCLUI FORNECIMENTO). AF_05/2024 | I29: M | J29: COEFICIENTE DE REPRESENTATIVIDADE | K29: 11.78 | L29: CAIXA REFERENCIAL
A30: ASSENTAMENTO DE TUBOS E PECAS | B30: ASTU | C30: FORNEC E/OU ASSENT DE TUBO DE FERRO FUNDIDO JUNTA ELASTICA | D30: 45 | G30: 97164 | H30: ASSENTAMENTO DE TUBO DE FERRO FUNDIDO PARA REDE DE ÁGUA, DN 400 MM, JUNTA ELÁSTICA, INSTALADO EM LOCAL COM NÍVEL BAIXO DE INTERFERÊNCIAS (NÃO INCLUI FORNECIMENTO). AF_05/2024 | I30: M | J30: COEFICIENTE DE REPRESENTATIVIDADE | K30: 13.29 | L30: CAIXA REFERENCIAL
A31: ASSENTAMENTO DE TUBOS E PECAS | B31: ASTU | C31: FORNEC E/OU ASSENT DE TUBO DE FERRO FUNDIDO JUNTA ELASTICA | D31: 45 | G31: 97165 | H31: ASSENTAMENTO DE TUBO DE FERRO FUNDIDO PARA REDE DE ÁGUA, DN 450 MM, JUNTA ELÁSTICA, INSTALADO EM LOCAL COM NÍVEL BAIXO DE INTERFERÊNCIAS (NÃO INCLUI FORNECIMENTO). AF_05/2024 | I31: M | J31: COEFICIENTE DE REPRESENTATIVIDADE | K31: 14.83 | L31: CAIXA REFERENCIAL
A32: ASSENTAMENTO DE TUBOS E PECAS | B32: ASTU | C32: FORNEC E/OU ASSENT DE TUBO DE FERRO FUNDIDO JUNTA ELASTICA | D32: 45 | G32: 97166 | H32: ASSENTAMENTO DE TUBO DE FERRO FUNDIDO PARA REDE DE ÁGUA, DN 500 MM, JUNTA ELÁSTICA, INSTALADO EM LOCAL COM NÍVEL BAIXO DE INTERFERÊNCIAS (NÃO INCLUI FORNECIMENTO). AF_05/2024 | I32: M | J32: COEFICIENTE DE REPRESENTATIVIDADE | K32: 18.22 | L32: CAIXA REFERENCIAL
A33: ASSENTAMENTO DE TUBOS E PECAS | B33: ASTU | C33: FORNEC E/OU ASSENT DE TUBO DE FERRO FUNDIDO JUNTA ELASTICA | D33: 45 | G33: 97167 | H33: ASSENTAMENTO DE TUBO DE FERRO FUNDIDO PARA REDE DE ÁGUA, DN 600 MM, JUNTA ELÁSTICA, INSTALADO EM LOCAL COM NÍVEL BAIXO DE INTERFERÊNCIAS (NÃO INCLUI FORNECIMENTO). AF_05/2024 | I33: M | J33: COEFICIENTE DE REPRESENTATIVIDADE | K33: 21.58 | L33: CAIXA REFERENCIAL
A34: ASSENTAMENTO DE TUBOS E PECAS | B34: ASTU | C34: FORNEC E/OU ASSENT DE TUBO DE FERRO FUNDIDO JUNTA ELASTICA | D34: 45 | G34: 97168 | H34: ASSENTAMENTO DE TUBO DE FERRO FUNDIDO PARA REDE DE ÁGUA, DN 700 MM, JUNTA ELÁSTICA, INSTALADO EM LOCAL COM NÍVEL BAIXO DE INTERFERÊNCIAS (NÃO INCLUI FORNECIMENTO). AF_05/2024 | I34: M | J34: COEFICIENTE DE REPRESENTATIVIDADE | K34: 24.66 | L34: CAIXA REFERENCIAL
A35: ASSENTAMENTO DE TUBOS E PECAS | B35: ASTU | C35: FORNEC E/OU ASSENT DE TUBO DE FERRO FUNDIDO JUNTA ELASTICA | D35: 45 | G35: 97169 | H35: ASSENTAMENTO DE TUBO DE FERRO FUNDIDO PARA REDE DE ÁGUA, DN 800 MM, JUNTA ELÁSTICA, INSTALADO EM LOCAL COM NÍVEL BAIXO DE INTERFERÊNCIAS (NÃO INCLUI FORNECIMENTO). AF_05/2024 | I35: M | J35: COEFICIENTE DE REPRESENTATIVIDADE | K35: 27.9 | L35: CAIXA REFERENCIAL
A36: ASSENTAMENTO DE TUBOS E PECAS | B36: ASTU | C36: FORNEC E/OU ASSENT DE TUBO DE FERRO FUNDIDO JUNTA ELASTICA | D36: 45 | G36: 97170 | H36: ASSENTAMENTO DE TUBO DE FERRO FUNDIDO PARA REDE DE ÁGUA, DN 900 MM, JUNTA ELÁSTICA, INSTALADO EM LOCAL COM NÍVEL BAIXO DE INTERFERÊNCIAS (NÃO INCLUI FORNECIMENTO). AF_05/2024 | I36: M | J36: COEFICIENTE DE REPRESENTATIVIDADE | K36: 31.16 | L36: CAIXA REFERENCIAL
A37: ASSENTAMENTO DE TUBOS E PECAS | B37: ASTU | C37: FORNEC E/OU ASSENT DE TUBO DE FERRO FUNDIDO JUNTA ELASTICA | D37: 45 | G37: 97171 | H37: ASSENTAMENTO DE TUBO DE FERRO FUNDIDO PARA REDE DE ÁGUA, DN 1000 MM, JUNTA ELÁSTICA, INSTALADO EM LOCAL COM NÍVEL BAIXO DE INTERFERÊNCIAS (NÃO INCLUI FORNECIMENTO). AF_05/2024 | I37: M | J37: COEFICIENTE DE REPRESENTATIVIDADE | K37: 34.46 | L37: CAIXA REFERENCIAL
A38: ASSENTAMENTO DE TUBOS E PECAS | B38: ASTU | C38: FORNEC E/OU ASSENT DE TUBO DE FERRO FUNDIDO JUNTA ELASTICA | D38: 45 | G38: 97172 | H38: ASSENTAMENTO DE TUBO DE FERRO FUNDIDO PARA REDE DE ÁGUA, DN 1200 MM, JUNTA ELÁSTICA, INSTALADO EM LOCAL COM NÍVEL BAIXO DE INTERFERÊNCIAS (NÃO INCLUI FORNECIMENTO). AF_05/2024 | I38: M | J38: COEFICIENTE DE REPRESENTATIVIDADE | K38: 41.41 | L38: CAIXA REFERENCIAL
A39: ASSENTAMENTO DE TUBOS E PECAS | B39: ASTU | C39: FORNEC E/OU ASSENT DE TUBO DE FERRO FUNDIDO JUNTA ELASTICA | D39: 45 | G39: 105249 | H39: ASSENTAMENTO DE CONEXÃO 2 ACESSOS ALINHADOS DE FERRO FUNDIDO PARA REDE DE ÁGUA, DN 1200, JUNTA ELÁSTICA, INSTALADO EM LOCAL COM NÍVEL ALTO DE INTERFERÊNCIAS (NÃO INCLUI FORNECIMENTO). AF_05/2024 | I39: UN | J39: COEFICIENTE DE REPRESENTATIVIDADE | K39: 114.65 | L39: CAIXA REFERENCIAL
A40: ASSENTAMENTO DE TUBOS E PECAS | B40: ASTU | C40: FORNEC E/OU ASSENT DE TUBO DE FERRO FUNDIDO JUNTA ELASTICA | D40: 45 | G40: 105250 | H40: ASSENTAMENTO DE CONEXÃO 2 ACESSOS INCLINADOS DE FERRO FUNDIDO PARA REDE DE ÁGUA, DN 80, JUNTA ELÁSTICA, INSTALADO EM LOCAL COM NÍVEL ALTO DE INTERFERÊNCIAS (NÃO INCLUI FORNECIMENTO). AF_05/2024 | I40: UN | J40: COEFICIENTE DE REPRESENTATIVIDADE | K40: 15.64 | L40: CAIXA REFERENCIAL
A41: ASSENTAMENTO DE TUBOS E PECAS | B41: ASTU | C41: FORNEC E/OU ASSENT DE TUBO DE FERRO FUNDIDO JUNTA ELASTICA | D41: 45 | G41: 105251 | H41: ASSENTAMENTO DE CONEXÃO 2 ACESSOS INCLINADOS DE FERRO FUNDIDO PARA REDE DE ÁGUA, DN 100, JUNTA ELÁSTICA, INSTALADO EM LOCAL COM NÍVEL ALTO DE INTERFERÊNCIAS (NÃO INCLUI FORNECIMENTO). AF_05/2024 | I41: UN | J41: COEFICIENTE DE REPRESENTATIVIDADE | K41: 17.95 | L41: CAIXA REFERENCIAL
A42: ASSENTAMENTO DE TUBOS E PECAS | B42: ASTU | C42: FORNEC E/OU ASSENT DE TUBO DE FERRO FUNDIDO JUNTA ELASTICA | D42: 45 | G42: 105252 | H42: ASSENTAMENTO DE CONEXÃO 2 ACESSOS INCLINADOS DE FERRO FUNDIDO PARA REDE DE ÁGUA, DN 150, JUNTA ELÁSTICA, INSTALADO EM LOCAL COM NÍVEL ALTO DE INTERFERÊNCIAS (NÃO INCLUI FORNECIMENTO). AF_05/2024 | I42: UN | J42: COEFICIENTE DE REPRESENTATIVIDADE | K42: 23.64 | L42: CAIXA REFERENCIAL
A43: ASSENTAMENTO DE TUBOS E PECAS | B43: ASTU | C43: FORNEC E/OU ASSENT DE TUBO DE FERRO FUNDIDO JUNTA ELASTICA | D43: 45 | G43: 105253 | H43: ASSENTAMENTO DE CONEXÃO 2 ACESSOS INCLINADOS DE FERRO FUNDIDO PARA REDE DE ÁGUA, DN 200, JUNTA ELÁSTICA, INSTALADO EM LOCAL COM NÍVEL ALTO DE INTERFERÊNCIAS (NÃO INCLUI FORNECIMENTO). AF_05/2024 | I43: UN | J43: COEFICIENTE DE REPRESENTATIVIDADE | K43: 29.33 | L43: CAIXA REFERENCIAL
A44: ASSENTAMENTO DE TUBOS E PECAS | B44: ASTU | C44: FORNEC E/OU ASSENT DE TUBO DE FERRO FUNDIDO JUNTA ELASTICA | D44: 45 | G44: 105254 | H44: ASSENTAMENTO DE CONEXÃO 2 ACESSOS INCLINADOS DE FERRO FUNDIDO PARA REDE DE ÁGUA, DN 250, JUNTA ELÁSTICA, INSTALADO EM LOCAL COM NÍVEL ALTO DE INTERFERÊNCIAS (NÃO INCLUI FORNECIMENTO). AF_05/2024 | I44: UN | J44: COEFICIENTE DE REPRESENTATIVIDADE | K44: 35.18 | L44: CAIXA REFERENCIAL
A45: ASSENTAMENTO DE TUBOS E PECAS | B45: ASTU | C45: FORNEC E/OU ASSENT DE TUBO DE FERRO FUNDIDO JUNTA ELASTICA | D45: 45 | G45: 105255 | H45: ASSENTAMENTO DE CONEXÃO 2 ACESSOS INCLINADOS DE FERRO FUNDIDO PARA REDE DE ÁGUA, DN 300, JUNTA ELÁSTICA, INSTALADO EM LOCAL COM NÍVEL ALTO DE INTERFERÊNCIAS (NÃO INCLUI FORNECIMENTO). AF_05/2024 | I45: UN | J45: COEFICIENTE DE REPRESENTATIVIDADE | K45: 40.99 | L45: CAIXA REFERENCIAL
A46: ASSENTAMENTO DE TUBOS E PECAS | B46: ASTU | C46: FORNEC E/OU ASSENT DE TUBO DE FERRO FUNDIDO JUNTA ELASTICA | D46: 45 | G46: 105256 | H46: ASSENTAMENTO DE CONEXÃO 2 ACESSOS INCLINADOS DE FERRO FUNDIDO PARA REDE DE ÁGUA, DN 350, JUNTA ELÁSTICA, INSTALADO EM LOCAL COM NÍVEL ALTO DE INTERFERÊNCIAS (NÃO INCLUI FORNECIMENTO). AF_05/2024 | I46: UN | J46: COEFICIENTE DE REPRESENTATIVIDADE | K46: 46.81 | L46: CAIXA REFERENCIAL
A47: ASSENTAMENTO DE TUBOS E PECAS | B47: ASTU | C47: FORNEC E/OU ASSENT DE TUBO DE FERRO FUNDIDO JUNTA ELASTICA | D47: 45 | G47: 105257 | H47: ASSENTAMENTO DE CONEXÃO 2 ACESSOS INCLINADOS DE FERRO FUNDIDO PARA REDE DE ÁGUA, DN 400, JUNTA ELÁSTICA, INSTALADO EM LOCAL COM NÍVEL ALTO DE INTERFERÊNCIAS (NÃO INCLUI FORNECIMENTO). AF_05/2024 | I47: UN | J47: COEFICIENTE DE REPRESENTATIVIDADE | K47: 52.63 | L47: CAIXA REFERENCIAL
A48: ASSENTAMENTO DE TUBOS E PECAS | B48: ASTU | C48: FORNEC E/OU ASSENT DE TUBO DE FERRO FUNDIDO JUNTA ELASTICA | D48: 45 | G48: 105258 | H48: ASSENTAMENTO DE CONEXÃO 2 ACESSOS ALINHADOS DE FERRO FUNDIDO PARA REDE DE ÁGUA, DN 400, JUNTA ELÁSTICA, INSTALADO EM LOCAL COM NÍVEL BAIXO DE INTERFERÊNCIAS (NÃO INCLUI FORNECIMENTO). AF_05/2024 | I48: UN | J48: COEFICIENTE DE REPRESENTATIVIDADE | K48: 29.18 | L48: CAIXA REFERENCIAL
A49: ASSENTAMENTO DE TUBOS E PECAS | B49: ASTU | C49: FORNEC E/OU ASSENT DE TUBO DE FERRO FUNDIDO JUNTA ELASTICA | D49: 45 | G49: 105259 | H49: ASSENTAMENTO DE CONEXÃO 3 ACESSOS DE FERRO FUNDIDO PARA REDE DE ÁGUA, DN 100, JUNTA ELÁSTICA, INSTALADO EM LOCAL COM NÍVEL BAIXO DE INTERFERÊNCIAS (NÃO INCLUI FORNECIMENTO). AF_05/2024 | I49: UN | J49: COEFICIENTE DE REPRESENTATIVIDADE | K49: 18.88 | L49: CAIXA REFERENCIAL
A50: ASSENTAMENTO DE TUBOS E PECAS | B50: ASTU | C50: FORNEC E/OU ASSENT DE TUBO DE FERRO FUNDIDO JUNTA ELASTICA | D50: 45 | G50: 105261 | H50: ASSENTAMENTO DE CONEXÃO 2 ACESSOS ALINHADOS DE FERRO FUNDIDO PARA REDE DE ÁGUA, DN 450, JUNTA ELÁSTICA, INSTALADO EM LOCAL COM NÍVEL BAIXO DE INTERFERÊNCIAS (NÃO INCLUI FORNECIMENTO). AF_05/2024 | I50: UN | J50: COEFICIENTE DE REPRESENTATIVIDADE | K50: 32.63 | L50: CAIXA REFERENCIAL
A51: ASSENTAMENTO DE TUBOS E PECAS | B51: ASTU | C51: FORNEC E/OU ASSENT DE TUBO DE FERRO FUNDIDO JUNTA ELASTICA | D51: 45 | G51: 105262 | H51: ASSENTAMENTO DE CONEXÃO 2 ACESSOS ALINHADOS DE FERRO FUNDIDO PARA REDE DE ÁGUA, DN 500, JUNTA ELÁSTICA, INSTALADO EM LOCAL COM NÍVEL BAIXO DE INTERFERÊNCIAS (NÃO INCLUI FORNECIMENTO). AF_05/2024 | I51: UN | J51: COEFICIENTE DE REPRESENTATIVIDADE | K51: 39.92 | L51: CAIXA REFERENCIAL
A52: ASSENTAMENTO DE TUBOS E PECAS | B52: ASTU | C52: FORNEC E/OU ASSENT DE TUBO DE FERRO FUNDIDO JUNTA ELASTICA | D52: 45 | G52: 105263 | H52: ASSENTAMENTO DE CONEXÃO 2 ACESSOS ALINHADOS DE FERRO FUNDIDO PARA REDE DE ÁGUA, DN 600, JUNTA ELÁSTICA, INSTALADO EM LOCAL COM NÍVEL BAIXO DE INTERFERÊNCIAS (NÃO INCLUI FORNECIMENTO). AF_05/2024 | I52: UN | J52: COEFICIENTE DE REPRESENTATIVIDADE | K52: 47.41 | L52: CAIXA REFERENCIAL
A53: ASSENTAMENTO DE TUBOS E PECAS | B53: ASTU | C53: FORNEC E/OU ASSENT DE TUBO DE FERRO FUNDIDO JUNTA ELASTICA | D53: 45 | G53: 105264 | H53: ASSENTAMENTO DE CONEXÃO 2 ACESSOS ALINHADOS DE FERRO FUNDIDO PARA REDE DE ÁGUA, DN 700, JUNTA ELÁSTICA, INSTALADO EM LOCAL COM NÍVEL BAIXO DE INTERFERÊNCIAS (NÃO INCLUI FORNECIMENTO). AF_05/2024 | I53: UN | J53: COEFICIENTE DE REPRESENTATIVIDADE | K53: 54.19 | L53: CAIXA REFERENCIAL
A54: ASSENTAMENTO DE TUBOS E PECAS | B54: ASTU | C54: FORNEC E/OU ASSENT DE TUBO DE FERRO FUNDIDO JUNTA ELASTICA | D54: 45 | G54: 105265 | H54: ASSENTAMENTO DE CONEXÃO 2 ACESSOS ALINHADOS DE FERRO FUNDIDO PARA REDE DE ÁGUA, DN 800, JUNTA ELÁSTICA, INSTALADO EM LOCAL COM NÍVEL BAIXO DE INTERFERÊNCIAS (NÃO INCLUI FORNECIMENTO). AF_05/2024 | I54: UN | J54: COEFICIENTE DE REPRESENTATIVIDADE | K54: 61.24 | L54: CAIXA REFERENCIAL
A55: ASSENTAMENTO DE TUBOS E PECAS | B55: ASTU | C55: FORNEC E/OU ASSENT DE TUBO DE FERRO FUNDIDO JUNTA ELASTICA | D55: 45 | G55: 105266 | H55: ASSENTAMENTO DE CONEXÃO 2 ACESSOS ALINHADOS DE FERRO FUNDIDO PARA REDE DE ÁGUA, DN 900, JUNTA ELÁSTICA, INSTALADO EM LOCAL COM NÍVEL BAIXO DE INTERFERÊNCIAS (NÃO INCLUI FORNECIMENTO). AF_05/2024 | I55: UN | J55: COEFICIENTE DE REPRESENTATIVIDADE | K55: 68.47 | L55: CAIXA REFERENCIAL
A56: ASSENTAMENTO DE TUBOS E PECAS | B56: ASTU | C56: FORNEC E/OU ASSENT DE TUBO DE FERRO FUNDIDO JUNTA ELASTICA | D56: 45 | G56: 105267 | H56: ASSENTAMENTO DE CONEXÃO 2 ACESSOS ALINHADOS DE FERRO FUNDIDO PARA REDE DE ÁGUA, DN 1000, JUNTA ELÁSTICA, INSTALADO EM LOCAL COM NÍVEL BAIXO DE INTERFERÊNCIAS (NÃO INCLUI FORNECIMENTO). AF_05/2024 | I56: UN | J56: COEFICIENTE DE REPRESENTATIVIDADE | K56: 75.82 | L56: CAIXA REFERENCIAL
A57: ASSENTAMENTO DE TUBOS E PECAS | B57: ASTU | C57: FORNEC E/OU ASSENT DE TUBO DE FERRO FUNDIDO JUNTA ELASTICA | D57: 45 | G57: 105268 | H57: ASSENTAMENTO DE CONEXÃO 2 ACESSOS ALINHADOS DE FERRO FUNDIDO PARA REDE DE ÁGUA, DN 1200, JUNTA ELÁSTICA, INSTALADO EM LOCAL COM NÍVEL BAIXO DE INTERFERÊNCIAS (NÃO INCLUI FORNECIMENTO). AF_05/2024 | I57: UN | J57: COEFICIENTE DE REPRESENTATIVIDADE | K57: 93.17 | L57: CAIXA REFERENCIAL
A58: ASSENTAMENTO DE TUBOS E PECAS | B58: ASTU | C58: FORNEC E/OU ASSENT DE TUBO DE FERRO FUNDIDO JUNTA ELASTICA | D58: 45 | G58: 105269 | H58: ASSENTAMENTO DE CONEXÃO 2 ACESSOS INCLINADOS DE FERRO FUNDIDO PARA REDE DE ÁGUA, DN 80, JUNTA ELÁSTICA, INSTALADO EM LOCAL COM NÍVEL BAIXO DE INTERFERÊNCIAS (NÃO INCLUI FORNECIMENTO). AF_05/2024 | I58: UN | J58: COEFICIENTE DE REPRESENTATIVIDADE | K58: 11.83 | L58: CAIXA REFERENCIAL
A59: ASSENTAMENTO DE TUBOS E PECAS | B59: ASTU | C59: FORNEC E/OU ASSENT DE TUBO DE FERRO FUNDIDO JUNTA ELASTICA | D59: 45 | G59: 105270 | H59: ASSENTAMENTO DE CONEXÃO 2 ACESSOS INCLINADOS DE FERRO FUNDIDO PARA REDE DE ÁGUA, DN 450, JUNTA ELÁSTICA, INSTALADO EM LOCAL COM NÍVEL ALTO DE INTERFERÊNCIAS (NÃO INCLUI FORNECIMENTO). AF_05/2024 | I59: UN | J59: COEFICIENTE DE REPRESENTATIVIDADE | K59: 58.57 | L59: CAIXA REFERENCIAL
A60: ASSENTAMENTO DE TUBOS E PECAS | B60: ASTU | C60: FORNEC E/OU ASSENT DE TUBO DE FERRO FUNDIDO JUNTA ELASTICA | D60: 45 | G60: 105271 | H60: ASSENTAMENTO DE CONEXÃO 2 ACESSOS INCLINADOS DE FERRO FUNDIDO PARA REDE DE ÁGUA, DN 500, JUNTA ELÁSTICA, INSTALADO EM LOCAL COM NÍVEL ALTO DE INTERFERÊNCIAS (NÃO INCLUI FORNECIMENTO). AF_05/2024 | I60: UN | J60: COEFICIENTE DE REPRESENTATIVIDADE | K60: 73.11 | L60: CAIXA REFERENCIAL
A61: ASSENTAMENTO DE TUBOS E PECAS | B61: ASTU | C61: FORNEC E/OU ASSENT DE TUBO DE FERRO FUNDIDO JUNTA ELASTICA | D61: 45 | G61: 105272 | H61: ASSENTAMENTO DE CONEXÃO 2 ACESSOS INCLINADOS DE FERRO FUNDIDO PARA REDE DE ÁGUA, DN 600, JUNTA ELÁSTICA, INSTALADO EM LOCAL COM NÍVEL ALTO DE INTERFERÊNCIAS (NÃO INCLUI FORNECIMENTO). AF_05/2024 | I61: UN | J61: COEFICIENTE DE REPRESENTATIVIDADE | K61: 86.28 | L61: CAIXA REFERENCIAL
A62: ASSENTAMENTO DE TUBOS E PECAS | B62: ASTU | C62: FORNEC E/OU ASSENT DE TUBO DE FERRO FUNDIDO JUNTA ELASTICA | D62: 45 | G62: 105273 | H62: ASSENTAMENTO DE CONEXÃO 2 ACESSOS INCLINADOS DE FERRO FUNDIDO PARA REDE DE ÁGUA, DN 700, JUNTA ELÁSTICA, INSTALADO EM LOCAL COM NÍVEL ALTO DE INTERFERÊNCIAS (NÃO INCLUI FORNECIMENTO). AF_05/2024 | I62: UN | J62: COEFICIENTE DE REPRESENTATIVIDADE | K62: 98.74 | L62: CAIXA REFERENCIAL
A63: ASSENTAMENTO DE TUBOS E PECAS | B63: ASTU | C63: FORNEC E/OU ASSENT DE TUBO DE FERRO FUNDIDO JUNTA ELASTICA | D63: 45 | G63: 105274 | H63: ASSENTAMENTO DE CONEXÃO 2 ACESSOS INCLINADOS DE FERRO FUNDIDO PARA REDE DE ÁGUA, DN 800, JUNTA ELÁSTICA, INSTALADO EM LOCAL COM NÍVEL ALTO DE INTERFERÊNCIAS (NÃO INCLUI FORNECIMENTO). AF_05/2024 | I63: UN | J63: COEFICIENTE DE REPRESENTATIVIDADE | K63: 111.49 | L63: CAIXA REFERENCIAL
A64: ASSENTAMENTO DE TUBOS E PECAS | B64: ASTU | C64: FORNEC E/OU ASSENT DE TUBO DE FERRO FUNDIDO JUNTA ELASTICA | D64: 45 | G64: 105275 | H64: ASSENTAMENTO DE CONEXÃO 2 ACESSOS INCLINADOS DE FERRO FUNDIDO PARA REDE DE ÁGUA, DN 900, JUNTA ELÁSTICA, INSTALADO EM LOCAL COM NÍVEL ALTO DE INTERFERÊNCIAS (NÃO INCLUI FORNECIMENTO). AF_05/2024 | I64: UN | J64: COEFICIENTE DE REPRESENTATIVIDADE | K64: 124.39 | L64: CAIXA REFERENCIAL
A65: ASSENTAMENTO DE TUBOS E PECAS | B65: ASTU | C65: FORNEC E/OU ASSENT DE TUBO DE FERRO FUNDIDO JUNTA ELASTICA | D65: 45 | G65: 105276 | H65: ASSENTAMENTO DE CONEXÃO 2 ACESSOS INCLINADOS DE FERRO FUNDIDO PARA REDE DE ÁGUA, DN 1000, JUNTA ELÁSTICA, INSTALADO EM LOCAL COM NÍVEL ALTO DE INTERFERÊNCIAS (NÃO INCLUI FORNECIMENTO). AF_05/2024 | I65: UN | J65: COEFICIENTE DE REPRESENTATIVIDADE | K65: 137.44 | L65: CAIXA REFERENCIAL
A66: ASSENTAMENTO DE TUBOS E PECAS | B66: ASTU | C66: FORNEC E/OU ASSENT DE TUBO DE FERRO FUNDIDO JUNTA ELASTICA | D66: 45 | G66: 105277 | H66: ASSENTAMENTO DE CONEXÃO 2 ACESSOS INCLINADOS DE FERRO FUNDIDO PARA REDE DE ÁGUA, DN 1200, JUNTA ELÁSTICA, INSTALADO EM LOCAL COM NÍVEL ALTO DE INTERFERÊNCIAS (NÃO INCLUI FORNECIMENTO). AF_05/2024 | I66: UN | J66: COEFICIENTE DE REPRESENTATIVIDADE | K66: 166.17 | L66: CAIXA REFERENCIAL
A67: ASSENTAMENTO DE TUBOS E PECAS | B67: ASTU | C67: FORNEC E/OU ASSENT DE TUBO DE FERRO FUNDIDO JUNTA ELASTICA | D67: 45 | G67: 105278 | H67: ASSENTAMENTO DE CONEXÃO 3 ACESSOS DE FERRO FUNDIDO PARA REDE DE ÁGUA, DN 80, JUNTA ELÁSTICA, INSTALADO EM LOCAL COM NÍVEL ALTO DE INTERFERÊNCIAS (NÃO INCLUI FORNECIMENTO). AF_05/2024 | I67: UN | J67: COEFICIENTE DE REPRESENTATIVIDADE | K67: 21.33 | L67: CAIXA REFERENCIAL
A68: ASSENTAMENTO DE TUBOS E PECAS | B68: ASTU | C68: FORNEC E/OU ASSENT DE TUBO DE FERRO FUNDIDO JUNTA ELASTICA | D68: 45 | G68: 105279 | H68: ASSENTAMENTO DE CONEXÃO 3 ACESSOS DE FERRO FUNDIDO PARA REDE DE ÁGUA, DN 100, JUNTA ELÁSTICA, INSTALADO EM LOCAL COM NÍVEL ALTO DE INTERFERÊNCIAS (NÃO INCLUI FORNECIMENTO). AF_05/2024 | I68: UN | J68: COEFICIENTE DE REPRESENTATIVIDADE | K68: 24.5 | L68: CAIXA REFERENCIAL
A69: ASSENTAMENTO DE TUBOS E PECAS | B69: ASTU | C69: FORNEC E/OU ASSENT DE TUBO DE FERRO FUNDIDO JUNTA ELASTICA | D69: 45 | G69: 105280 | H69: ASSENTAMENTO DE CONEXÃO 3 ACESSOS DE FERRO FUNDIDO PARA REDE DE ÁGUA, DN 150, JUNTA ELÁSTICA, INSTALADO EM LOCAL COM NÍVEL ALTO DE INTERFERÊNCIAS (NÃO INCLUI FORNECIMENTO). AF_05/2024 | I69: UN | J69: COEFICIENTE DE REPRESENTATIVIDADE | K69: 32.25 | L69: CAIXA REFERENCIAL
A70: ASSENTAMENTO DE TUBOS E PECAS | B70: ASTU | C70: FORNEC E/OU ASSENT DE TUBO DE FERRO FUNDIDO JUNTA ELASTICA | D70: 45 | G70: 105281 | H70: ASSENTAMENTO DE CONEXÃO 3 ACESSOS DE FERRO FUNDIDO PARA REDE DE ÁGUA, DN 200, JUNTA ELÁSTICA, INSTALADO EM LOCAL COM NÍVEL ALTO DE INTERFERÊNCIAS (NÃO INCLUI FORNECIMENTO). AF_05/2024 | I70: UN | J70: COEFICIENTE DE REPRESENTATIVIDADE | K70: 39.99 | L70: CAIXA REFERENCIAL
A71: ASSENTAMENTO DE TUBOS E PECAS | B71: ASTU | C71: FORNEC E/OU ASSENT DE TUBO DE FERRO FUNDIDO JUNTA ELASTICA | D71: 45 | G71: 105282 | H71: ASSENTAMENTO DE CONEXÃO 2 ACESSOS INCLINADOS DE FERRO FUNDIDO PARA REDE DE ÁGUA, DN 100, JUNTA ELÁSTICA, INSTALADO EM LOCAL COM NÍVEL BAIXO DE INTERFERÊNCIAS (NÃO INCLUI FORNECIMENTO). AF_05/2024 | I71: UN | J71: COEFICIENTE DE REPRESENTATIVIDADE | K71: 13.74 | L71: CAIXA REFERENCIAL
A72: ASSENTAMENTO DE TUBOS E PECAS | B72: ASTU | C72: FORNEC E/OU ASSENT DE TUBO DE FERRO FUNDIDO JUNTA ELASTICA | D72: 45 | G72: 105283 | H72: ASSENTAMENTO DE CONEXÃO 3 ACESSOS DE FERRO FUNDIDO PARA REDE DE ÁGUA, DN 150, JUNTA ELÁSTICA, INSTALADO EM LOCAL COM NÍVEL BAIXO DE INTERFERÊNCIAS (NÃO INCLUI FORNECIMENTO). AF_05/2024 | I72: UN | J72: COEFICIENTE DE REPRESENTATIVIDADE | K72: 25.29 | L72: CAIXA REFERENCIAL
A73: ASSENTAMENTO DE TUBOS E PECAS | B73: ASTU | C73: FORNEC E/OU ASSENT DE TUBO DE FERRO FUNDIDO JUNTA ELASTICA | D73: 45 | G73: 105284 | H73: ASSENTAMENTO DE CONEXÃO 3 ACESSOS DE FERRO FUNDIDO PARA REDE DE ÁGUA, DN 250, JUNTA ELÁSTICA, INSTALADO EM LOCAL COM NÍVEL ALTO DE INTERFERÊNCIAS (NÃO INCLUI FORNECIMENTO). AF_05/2024 | I73: UN | J73: COEFICIENTE DE REPRESENTATIVIDADE | K73: 48.06 | L73: CAIXA REFERENCIAL
A74: ASSENTAMENTO DE TUBOS E PECAS | B74: ASTU | C74: FORNEC E/OU ASSENT DE TUBO DE FERRO FUNDIDO JUNTA ELASTICA | D74: 45 | G74: 105297 | H74: ASSENTAMENTO DE CONEXÃO 2 ACESSOS ALINHADOS DE FERRO FUNDIDO PARA REDE DE ÁGUA, DN 80, JUNTA ELÁSTICA, INSTALADO EM LOCAL COM NÍVEL ALTO DE INTERFERÊNCIAS (NÃO INCLUI FORNECIMENTO). AF_05/2024 | I74: UN | J74: COEFICIENTE DE REPRESENTATIVIDADE | K74: 10.66 | L74: CAIXA REFERENCIAL
A75: ASSENTAMENTO DE TUBOS E PECAS | B75: ASTU | C75: FORNEC E/OU ASSENT DE TUBO DE FERRO FUNDIDO JUNTA ELASTICA | D75: 45 | G75: 105298 | H75: ASSENTAMENTO DE CONEXÃO 2 ACESSOS INCLINADOS DE FERRO FUNDIDO PARA REDE DE ÁGUA, DN 150, JUNTA ELÁSTICA, INSTALADO EM LOCAL COM NÍVEL BAIXO DE INTERFERÊNCIAS (NÃO INCLUI FORNECIMENTO). AF_05/2024 | I75: UN | J75: COEFICIENTE DE REPRESENTATIVIDADE | K75: 18.41 | L75: CAIXA REFERENCIAL
A76: ASSENTAMENTO DE TUBOS E PECAS | B76: ASTU | C76: FORNEC E/OU ASSENT DE TUBO DE FERRO FUNDIDO JUNTA ELASTICA | D76: 45 | G76: 105299 | H76: ASSENTAMENTO DE CONEXÃO 2 ACESSOS INCLINADOS DE FERRO FUNDIDO PARA REDE DE ÁGUA, DN 200, JUNTA ELÁSTICA, INSTALADO EM LOCAL COM NÍVEL BAIXO DE INTERFERÊNCIAS (NÃO INCLUI FORNECIMENTO). AF_05/2024 | I76: UN | J76: COEFICIENTE DE REPRESENTATIVIDADE | K76: 23.08 | L76: CAIXA REFERENCIAL
A77: ASSENTAMENTO DE TUBOS E PECAS | B77: ASTU | C77: FORNEC E/OU ASSENT DE TUBO DE FERRO FUNDIDO JUNTA ELASTICA | D77: 45 | G77: 105300 | H77: ASSENTAMENTO DE CONEXÃO 2 ACESSOS INCLINADOS DE FERRO FUNDIDO PARA REDE DE ÁGUA, DN 250, JUNTA ELÁSTICA, INSTALADO EM LOCAL COM NÍVEL BAIXO DE INTERFERÊNCIAS (NÃO INCLUI FORNECIMENTO). AF_05/2024 | I77: UN | J77: COEFICIENTE DE REPRESENTATIVIDADE | K77: 27.91 | L77: CAIXA REFERENCIAL
A78: ASSENTAMENTO DE TUBOS E PECAS | B78: ASTU | C78: FORNEC E/OU ASSENT DE TUBO DE FERRO FUNDIDO JUNTA ELASTICA | D78: 45 | G78: 105301 | H78: ASSENTAMENTO DE CONEXÃO 2 ACESSOS INCLINADOS DE FERRO FUNDIDO PARA REDE DE ÁGUA, DN 300, JUNTA ELÁSTICA, INSTALADO EM LOCAL COM NÍVEL BAIXO DE INTERFERÊNCIAS (NÃO INCLUI FORNECIMENTO). AF_05/2024 | I78: UN | J78: COEFICIENTE DE REPRESENTATIVIDADE | K78: 32.72 | L78: CAIXA REFERENCIAL
A79: ASSENTAMENTO DE TUBOS E PECAS | B79: ASTU | C79: FORNEC E/OU ASSENT DE TUBO DE FERRO FUNDIDO JUNTA ELASTICA | D79: 45 | G79: 105302 | H79: ASSENTAMENTO DE CONEXÃO 2 ACESSOS INCLINADOS DE FERRO FUNDIDO PARA REDE DE ÁGUA, DN 350, JUNTA ELÁSTICA, INSTALADO EM LOCAL COM NÍVEL BAIXO DE INTERFERÊNCIAS (NÃO INCLUI FORNECIMENTO). AF_05/2024 | I79: UN | J79: COEFICIENTE DE REPRESENTATIVIDADE | K79: 37.54 | L79: CAIXA REFERENCIAL
A80: ASSENTAMENTO DE TUBOS E PECAS | B80: ASTU | C80: FORNEC E/OU ASSENT DE TUBO DE FERRO FUNDIDO JUNTA ELASTICA | D80: 45 | G80: 105303 | H80: ASSENTAMENTO DE CONEXÃO 2 ACESSOS INCLINADOS DE FERRO FUNDIDO PARA REDE DE ÁGUA, DN 400, JUNTA ELÁSTICA, INSTALADO EM LOCAL COM NÍVEL BAIXO DE INTERFERÊNCIAS (NÃO INCLUI FORNECIMENTO). AF_05/2024 | I80: UN | J80: COEFICIENTE DE REPRESENTATIVIDADE | K80: 42.34 | L80: CAIXA REFERENCIAL
A81: ASSENTAMENTO DE TUBOS E PECAS | B81: ASTU | C81: FORNEC E/OU ASSENT DE TUBO DE FERRO FUNDIDO JUNTA ELASTICA | D81: 45 | G81: 105304 | H81: ASSENTAMENTO DE CONEXÃO 2 ACESSOS INCLINADOS DE FERRO FUNDIDO PARA REDE DE ÁGUA, DN 450, JUNTA ELÁSTICA, INSTALADO EM LOCAL COM NÍVEL BAIXO DE INTERFERÊNCIAS (NÃO INCLUI FORNECIMENTO). AF_05/2024 | I81: UN | J81: COEFICIENTE DE REPRESENTATIVIDADE | K81: 47.27 | L81: CAIXA REFERENCIAL
A82: ASSENTAMENTO DE TUBOS E PECAS | B82: ASTU | C82: FORNEC E/OU ASSENT DE TUBO DE FERRO FUNDIDO JUNTA ELASTICA | D82: 45 | G82: 105305 | H82: ASSENTAMENTO DE CONEXÃO 2 ACESSOS INCLINADOS DE FERRO FUNDIDO PARA REDE DE ÁGUA, DN 500, JUNTA ELÁSTICA, INSTALADO EM LOCAL COM NÍVEL BAIXO DE INTERFERÊNCIAS (NÃO INCLUI FORNECIMENTO). AF_05/2024 | I82: UN | J82: COEFICIENTE DE REPRESENTATIVIDADE | K82: 58 | L82: CAIXA REFERENCIAL
A83: ASSENTAMENTO DE TUBOS E PECAS | B83: ASTU | C83: FORNEC E/OU ASSENT DE TUBO DE FERRO FUNDIDO JUNTA ELASTICA | D83: 45 | G83: 105306 | H83: ASSENTAMENTO DE CONEXÃO 2 ACESSOS INCLINADOS DE FERRO FUNDIDO PARA REDE DE ÁGUA, DN 600, JUNTA ELÁSTICA, INSTALADO EM LOCAL COM NÍVEL BAIXO DE INTERFERÊNCIAS (NÃO INCLUI FORNECIMENTO). AF_05/2024 | I83: UN | J83: COEFICIENTE DE REPRESENTATIVIDADE | K83: 68.72 | L83: CAIXA REFERENCIAL
A84: ASSENTAMENTO DE TUBOS E PECAS | B84: ASTU | C84: FORNEC E/OU ASSENT DE TUBO DE FERRO FUNDIDO JUNTA ELASTICA | D84: 45 | G84: 105307 | H84: ASSENTAMENTO DE CONEXÃO 2 ACESSOS INCLINADOS DE FERRO FUNDIDO PARA REDE DE ÁGUA, DN 700, JUNTA ELÁSTICA, INSTALADO EM LOCAL COM NÍVEL BAIXO DE INTERFERÊNCIAS (NÃO INCLUI FORNECIMENTO). AF_05/2024 | I84: UN | J84: COEFICIENTE DE REPRESENTATIVIDADE | K84: 78.75 | L84: CAIXA REFERENCIAL
A85: ASSENTAMENTO DE TUBOS E PECAS | B85: ASTU | C85: FORNEC E/OU ASSENT DE TUBO DE FERRO FUNDIDO JUNTA ELASTICA | D85: 45 | G85: 105317 | H85: ASSENTAMENTO DE CONEXÃO 2 ACESSOS ALINHADOS DE FERRO FUNDIDO PARA REDE DE ÁGUA, DN 300, JUNTA ELÁSTICA, INSTALADO EM LOCAL COM NÍVEL BAIXO DE INTERFERÊNCIAS (NÃO INCLUI FORNECIMENTO). AF_05/2024 | I85: UN | J85: COEFICIENTE DE REPRESENTATIVIDADE | K85: 22.5 | L85: CAIXA REFERENCIAL
A86: ASSENTAMENTO DE TUBOS E PECAS | B86: ASTU | C86: FORNEC E/OU ASSENT DE TUBO DE FERRO FUNDIDO JUNTA ELASTICA | D86: 45 | G86: 105318 | H86: ASSENTAMENTO DE CONEXÃO 2 ACESSOS ALINHADOS DE FERRO FUNDIDO PARA REDE DE ÁGUA, DN 350, JUNTA ELÁSTICA, INSTALADO EM LOCAL COM NÍVEL BAIXO DE INTERFERÊNCIAS (NÃO INCLUI FORNECIMENTO). AF_05/2024 | I86: UN | J86: COEFICIENTE DE REPRESENTATIVIDADE | K86: 25.84 | L86: CAIXA REFERENCIAL
A87: ASSENTAMENTO DE TUBOS E PECAS | B87: ASTU | C87: FORNEC E/OU ASSENT DE TUBO DE FERRO FUNDIDO JUNTA ELASTICA | D87: 45 | G87: 105319 | H87: ASSENTAMENTO DE CONEXÃO 3 ACESSOS DE FERRO FUNDIDO PARA REDE DE ÁGUA, DN 200, JUNTA ELÁSTICA, INSTALADO EM LOCAL COM NÍVEL BAIXO DE INTERFERÊNCIAS (NÃO INCLUI FORNECIMENTO). AF_05/2024 | I87: UN | J87: COEFICIENTE DE REPRESENTATIVIDADE | K87: 31.69 | L87: CAIXA REFERENCIAL
A88: ASSENTAMENTO DE TUBOS E PECAS | B88: ASTU | C88: FORNEC E/OU ASSENT DE TUBO DE FERRO FUNDIDO JUNTA ELASTICA | D88: 45 | G88: 105320 | H88: ASSENTAMENTO DE CONEXÃO 3 ACESSOS DE FERRO FUNDIDO PARA REDE DE ÁGUA, DN 250, JUNTA ELÁSTICA, INSTALADO EM LOCAL COM NÍVEL BAIXO DE INTERFERÊNCIAS (NÃO INCLUI FORNECIMENTO). AF_05/2024 | I88: UN | J88: COEFICIENTE DE REPRESENTATIVIDADE | K88: 38.39 | L88: CAIXA REFERENCIAL
A89: ASSENTAMENTO DE TUBOS E PECAS | B89: ASTU | C89: FORNEC E/OU ASSENT DE TUBO DE FERRO FUNDIDO JUNTA ELASTICA | D89: 45 | G89: 105321 | H89: ASSENTAMENTO DE CONEXÃO 3 ACESSOS DE FERRO FUNDIDO PARA REDE DE ÁGUA, DN 300, JUNTA ELÁSTICA, INSTALADO EM LOCAL COM NÍVEL BAIXO DE INTERFERÊNCIAS (NÃO INCLUI FORNECIMENTO). AF_05/2024 | I89: UN | J89: COEFICIENTE DE REPRESENTATIVIDADE | K89: 45.05 | L89: CAIXA REFERENCIAL
A90: ASSENTAMENTO DE TUBOS E PECAS | B90: ASTU | C90: FORNEC E/OU ASSENT DE TUBO DE FERRO FUNDIDO JUNTA ELASTICA | D90: 45 | G90: 105322 | H90: ASSENTAMENTO DE CONEXÃO 3 ACESSOS DE FERRO FUNDIDO PARA REDE DE ÁGUA, DN 350, JUNTA ELÁSTICA, INSTALADO EM LOCAL COM NÍVEL BAIXO DE INTERFERÊNCIAS (NÃO INCLUI FORNECIMENTO). AF_05/2024 | I90: UN | J90: COEFICIENTE DE REPRESENTATIVIDADE | K90: 51.72 | L90: CAIXA REFERENCIAL
A91: ASSENTAMENTO DE TUBOS E PECAS | B91: ASTU | C91: FORNEC E/OU ASSENT DE TUBO DE FERRO FUNDIDO JUNTA ELASTICA | D91: 45 | G91: 105323 | H91: ASSENTAMENTO DE CONEXÃO 3 ACESSOS DE FERRO FUNDIDO PARA REDE DE ÁGUA, DN 400, JUNTA ELÁSTICA, INSTALADO EM LOCAL COM NÍVEL BAIXO DE INTERFERÊNCIAS (NÃO INCLUI FORNECIMENTO). AF_05/2024 | I91: UN | J91: COEFICIENTE DE REPRESENTATIVIDADE | K91: 58.38 | L91: CAIXA REFERENCIAL
A92: ASSENTAMENTO DE TUBOS E PECAS | B92: ASTU | C92: FORNEC E/OU ASSENT DE TUBO DE FERRO FUNDIDO JUNTA ELASTICA | D92: 45 | G92: 105324 | H92: ASSENTAMENTO DE CONEXÃO 3 ACESSOS DE FERRO FUNDIDO PARA REDE DE ÁGUA, DN 450, JUNTA ELÁSTICA, INSTALADO EM LOCAL COM NÍVEL BAIXO DE INTERFERÊNCIAS (NÃO INCLUI FORNECIMENTO). AF_05/2024 | I92: UN | J92: COEFICIENTE DE REPRESENTATIVIDADE | K92: 65.29 | L92: CAIXA REFERENCIAL
A93: ASSENTAMENTO DE TUBOS E PECAS | B93: ASTU | C93: FORNEC E/OU ASSENT DE TUBO DE FERRO FUNDIDO JUNTA ELASTICA | D93: 45 | G93: 105325 | H93: ASSENTAMENTO DE CONEXÃO 3 ACESSOS DE FERRO FUNDIDO PARA REDE DE ÁGUA, DN 500, JUNTA ELÁSTICA, INSTALADO EM LOCAL COM NÍVEL BAIXO DE INTERFERÊNCIAS (NÃO INCLUI FORNECIMENTO). AF_05/2024 | I93: UN | J93: COEFICIENTE DE REPRESENTATIVIDADE | K93: 79.87 | L93: CAIXA REFERENCIAL
A94: ASSENTAMENTO DE TUBOS E PECAS | B94: ASTU | C94: FORNEC E/OU ASSENT DE TUBO DE FERRO FUNDIDO JUNTA ELASTICA | D94: 45 | G94: 105326 | H94: ASSENTAMENTO DE CONEXÃO 3 ACESSOS DE FERRO FUNDIDO PARA REDE DE ÁGUA, DN 600, JUNTA ELÁSTICA, INSTALADO EM LOCAL COM NÍVEL BAIXO DE INTERFERÊNCIAS (NÃO INCLUI FORNECIMENTO). AF_05/2024 | I94: UN | J94: COEFICIENTE DE REPRESENTATIVIDADE | K94: 94.84 | L94: CAIXA REFERENCIAL
A95: ASSENTAMENTO DE TUBOS E PECAS | B95: ASTU | C95: FORNEC E/OU ASSENT DE TUBO DE FERRO FUNDIDO JUNTA ELASTICA | D95: 45 | G95: 105340 | H95: ASSENTAMENTO DE CONEXÃO 2 ACESSOS INCLINADOS DE FERRO FUNDIDO PARA REDE DE ÁGUA, DN 800, JUNTA ELÁSTICA, INSTALADO EM LOCAL COM NÍVEL BAIXO DE INTERFERÊNCIAS (NÃO INCLUI FORNECIMENTO). AF_05/2024 | I95: UN | J95: COEFICIENTE DE REPRESENTATIVIDADE | K95: 89.05 | L95: CAIXA REFERENCIAL
A96: ASSENTAMENTO DE TUBOS E PECAS | B96: ASTU | C96: FORNEC E/OU ASSENT DE TUBO DE FERRO FUNDIDO JUNTA ELASTICA | D96: 45 | G96: 105341 | H96: ASSENTAMENTO DE CONEXÃO 2 ACESSOS INCLINADOS DE FERRO FUNDIDO PARA REDE DE ÁGUA, DN 1000, JUNTA ELÁSTICA, INSTALADO EM LOCAL COM NÍVEL BAIXO DE INTERFERÊNCIAS (NÃO INCLUI FORNECIMENTO). AF_05/2024 | I96: UN | J96: COEFICIENTE DE REPRESENTATIVIDADE | K96: 110.11 | L96: CAIXA REFERENCIAL
A97: ASSENTAMENTO DE TUBOS E PECAS | B97: ASTU | C97: FORNEC E/OU ASSENT DE TUBO DE FERRO FUNDIDO JUNTA ELASTICA | D97: 45 | G97: 105342 | H97: ASSENTAMENTO DE CONEXÃO 2 ACESSOS INCLINADOS DE FERRO FUNDIDO PARA REDE DE ÁGUA, DN 1200, JUNTA ELÁSTICA, INSTALADO EM LOCAL COM NÍVEL BAIXO DE INTERFERÊNCIAS (NÃO INCLUI FORNECIMENTO). AF_05/2024 | I97: UN | J97: COEFICIENTE DE REPRESENTATIVIDADE | K97: 133.96 | L97: CAIXA REFERENCIAL
A98: ASSENTAMENTO DE TUBOS E PECAS | B98: ASTU | C98: FORNEC E/OU ASSENT DE TUBO DE FERRO FUNDIDO JUNTA ELASTICA | D98: 45 | G98: 105343 | H98: ASSENTAMENTO DE CONEXÃO 3 ACESSOS DE FERRO FUNDIDO PARA REDE DE ÁGUA, DN 80, JUNTA ELÁSTICA, INSTALADO EM LOCAL COM NÍVEL BAIXO DE INTERFERÊNCIAS (NÃO INCLUI FORNECIMENTO). AF_05/2024 | I98: UN | J98: COEFICIENTE DE REPRESENTATIVIDADE | K98: 16.25 | L98: CAIXA REFERENCIAL
A99: ASSENTAMENTO DE TUBOS E PECAS | B99: ASTU | C99: FORNEC E/OU ASSENT DE TUBO DE FERRO FUNDIDO JUNTA ELASTICA | D99: 45 | G99: 105344 | H99: ASSENTAMENTO DE CONEXÃO 3 ACESSOS DE FERRO FUNDIDO PARA REDE DE ÁGUA, DN 700, JUNTA ELÁSTICA, INSTALADO EM LOCAL COM NÍVEL BAIXO DE INTERFERÊNCIAS (NÃO INCLUI FORNECIMENTO). AF_05/2024 | I99: UN | J99: COEFICIENTE DE REPRESENTATIVIDADE | K99: 108.4 | L99: CAIXA REFERENCIAL
A100: ASSENTAMENTO DE TUBOS E PECAS | B100: ASTU | C100: FORNEC E/OU ASSENT DE TUBO DE FERRO FUNDIDO JUNTA ELASTICA | D100: 45 | G100: 105345 | H100: ASSENTAMENTO DE CONEXÃO 3 ACESSOS DE FERRO FUNDIDO PARA REDE DE ÁGUA, DN 900, JUNTA ELÁSTICA, INSTALADO EM LOCAL COM NÍVEL BAIXO DE INTERFERÊNCIAS (NÃO INCLUI FORNECIMENTO). AF_05/2024 | I100: UN | J100: COEFICIENTE DE REPRESENTATIVIDADE | K100: 136.95 | L100: CAIXA REFERENCIAL
A101: ASSENTAMENTO DE TUBOS E PECAS | B101: ASTU | C101: FORNEC E/OU ASSENT DE TUBO DE FERRO FUNDIDO JUNTA ELASTICA | D101: 45 | G101: 105346 | H101: ASSENTAMENTO DE CONEXÃO 3 ACESSOS DE FERRO FUNDIDO PARA REDE DE ÁGUA, DN 1000, JUNTA ELÁSTICA, INSTALADO EM LOCAL COM NÍVEL BAIXO DE INTERFERÊNCIAS (NÃO INCLUI FORNECIMENTO). AF_05/2024 | I101: UN | J101: COEFICIENTE DE REPRESENTATIVIDADE | K101: 151.65 | L101: CAIXA REFERENCIAL
A102: ASSENTAMENTO DE TUBOS E PECAS | B102: ASTU | C102: FORNEC E/OU ASSENT DE TUBO DE FERRO FUNDIDO JUNTA ELASTICA | D102: 45 | G102: 105347 | H102: ASSENTAMENTO DE CONEXÃO 3 ACESSOS DE FERRO FUNDIDO PARA REDE DE ÁGUA, DN 1200, JUNTA ELÁSTICA, INSTALADO EM LOCAL COM NÍVEL BAIXO DE INTERFERÊNCIAS (NÃO INCLUI FORNECIMENTO). AF_05/2024 | I102: UN | J102: COEFICIENTE DE REPRESENTATIVIDADE | K102: 186.33 | L102: CAIXA REFERENCIAL
A103: ASSENTAMENTO DE TUBOS E PECAS | B103: ASTU | C103: FORNEC E/OU ASSENT DE TUBO DE FERRO FUNDIDO JUNTA ELASTICA | D103: 45 | G103: 105348 | H103: ASSENTAMENTO DE CONEXÃO 3 ACESSOS DE FERRO FUNDIDO PARA REDE DE ÁGUA, DN 300, JUNTA ELÁSTICA, INSTALADO EM LOCAL COM NÍVEL ALTO DE INTERFERÊNCIAS (NÃO INCLUI FORNECIMENTO). AF_05/2024 | I103: UN | J103: COEFICIENTE DE REPRESENTATIVIDADE | K103: 56.07 | L103: CAIXA REFERENCIAL
A104: ASSENTAMENTO DE TUBOS E PECAS | B104: ASTU | C104: FORNEC E/OU ASSENT DE TUBO DE FERRO FUNDIDO JUNTA ELASTICA | D104: 45 | G104: 105349 | H104: ASSENTAMENTO DE CONEXÃO 3 ACESSOS DE FERRO FUNDIDO PARA REDE DE ÁGUA, DN 350, JUNTA ELÁSTICA, INSTALADO EM LOCAL COM NÍVEL ALTO DE INTERFERÊNCIAS (NÃO INCLUI FORNECIMENTO). AF_05/2024 | I104: UN | J104: COEFICIENTE DE REPRESENTATIVIDADE | K104: 64.09 | L104: CAIXA REFERENCIAL
A105: ASSENTAMENTO DE TUBOS E PECAS | B105: ASTU | C105: FORNEC E/OU ASSENT DE TUBO DE FERRO FUNDIDO JUNTA ELASTICA | D105: 45 | G105: 105350 | H105: ASSENTAMENTO DE CONEXÃO 3 ACESSOS DE FERRO FUNDIDO PARA REDE DE ÁGUA, DN 400, JUNTA ELÁSTICA, INSTALADO EM LOCAL COM NÍVEL ALTO DE INTERFERÊNCIAS (NÃO INCLUI FORNECIMENTO). AF_05/2024 | I105: UN | J105: COEFICIENTE DE REPRESENTATIVIDADE | K105: 72.11 | L105: CAIXA REFERENCIAL
A106: ASSENTAMENTO DE TUBOS E PECAS | B106: ASTU | C106: FORNEC E/OU ASSENT DE TUBO DE FERRO FUNDIDO JUNTA ELASTICA | D106: 45 | G106: 105351 | H106: ASSENTAMENTO DE CONEXÃO 3 ACESSOS DE FERRO FUNDIDO PARA REDE DE ÁGUA, DN 450, JUNTA ELÁSTICA, INSTALADO EM LOCAL COM NÍVEL ALTO DE INTERFERÊNCIAS (NÃO INCLUI FORNECIMENTO). AF_05/2024 | I106: UN | J106: COEFICIENTE DE REPRESENTATIVIDADE | K106: 80.35 | L106: CAIXA REFERENCIAL
A107: ASSENTAMENTO DE TUBOS E PECAS | B107: ASTU | C107: FORNEC E/OU ASSENT DE TUBO DE FERRO FUNDIDO JUNTA ELASTICA | D107: 45 | G107: 105352 | H107: ASSENTAMENTO DE CONEXÃO 3 ACESSOS DE FERRO FUNDIDO PARA REDE DE ÁGUA, DN 500, JUNTA ELÁSTICA, INSTALADO EM LOCAL COM NÍVEL ALTO DE INTERFERÊNCIAS (NÃO INCLUI FORNECIMENTO). AF_05/2024 | I107: UN | J107: COEFICIENTE DE REPRESENTATIVIDADE | K107: 100.02 | L107: CAIXA REFERENCIAL
A108: ASSENTAMENTO DE TUBOS E PECAS | B108: ASTU | C108: FORNEC E/OU ASSENT DE TUBO DE FERRO FUNDIDO JUNTA ELASTICA | D108: 45 | G108: 105353 | H108: ASSENTAMENTO DE CONEXÃO 3 ACESSOS DE FERRO FUNDIDO PARA REDE DE ÁGUA, DN 600, JUNTA ELÁSTICA, INSTALADO EM LOCAL COM NÍVEL ALTO DE INTERFERÊNCIAS (NÃO INCLUI FORNECIMENTO). AF_05/2024 | I108: UN | J108: COEFICIENTE DE REPRESENTATIVIDADE | K108: 118.26 | L108: CAIXA REFERENCIAL
A109: ASSENTAMENTO DE TUBOS E PECAS | B109: ASTU | C109: FORNEC E/OU ASSENT DE TUBO DE FERRO FUNDIDO JUNTA ELASTICA | D109: 45 | G109: 105354 | H109: ASSENTAMENTO DE CONEXÃO 3 ACESSOS DE FERRO FUNDIDO PARA REDE DE ÁGUA, DN 700, JUNTA ELÁSTICA, INSTALADO EM LOCAL COM NÍVEL ALTO DE INTERFERÊNCIAS (NÃO INCLUI FORNECIMENTO). AF_05/2024 | I109: UN | J109: COEFICIENTE DE REPRESENTATIVIDADE | K109: 135.06 | L109: CAIXA REFERENCIAL
A110: ASSENTAMENTO DE TUBOS E PECAS | B110: ASTU | C110: FORNEC E/OU ASSENT DE TUBO DE FERRO FUNDIDO JUNTA ELASTICA | D110: 45 | G110: 105355 | H110: ASSENTAMENTO DE CONEXÃO 3 ACESSOS DE FERRO FUNDIDO PARA REDE DE ÁGUA, DN 800, JUNTA ELÁSTICA, INSTALADO EM LOCAL COM NÍVEL ALTO DE INTERFERÊNCIAS (NÃO INCLUI FORNECIMENTO). AF_05/2024 | I110: UN | J110: COEFICIENTE DE REPRESENTATIVIDADE | K110: 152.39 | L110: CAIXA REFERENCIAL
A111: ASSENTAMENTO DE TUBOS E PECAS | B111: ASTU | C111: FORNEC E/OU ASSENT DE TUBO DE FERRO FUNDIDO JUNTA ELASTICA | D111: 45 | G111: 105356 | H111: ASSENTAMENTO DE CONEXÃO 3 ACESSOS DE FERRO FUNDIDO PARA REDE DE ÁGUA, DN 900, JUNTA ELÁSTICA, INSTALADO EM LOCAL COM NÍVEL ALTO DE INTERFERÊNCIAS (NÃO INCLUI FORNECIMENTO). AF_05/2024 | I111: UN | J111: COEFICIENTE DE REPRESENTATIVIDADE | K111: 170.13 | L111: CAIXA REFERENCIAL
A112: ASSENTAMENTO DE TUBOS E PECAS | B112: ASTU | C112: FORNEC E/OU ASSENT DE TUBO DE FERRO FUNDIDO JUNTA ELASTICA | D112: 45 | G112: 105357 | H112: ASSENTAMENTO DE CONEXÃO 3 ACESSOS DE FERRO FUNDIDO PARA REDE DE ÁGUA, DN 1000, JUNTA ELÁSTICA, INSTALADO EM LOCAL COM NÍVEL ALTO DE INTERFERÊNCIAS (NÃO INCLUI FORNECIMENTO). AF_05/2024 | I112: UN | J112: COEFICIENTE DE REPRESENTATIVIDADE | K112: 188.09 | L112: CAIXA REFERENCIAL
A113: ASSENTAMENTO DE TUBOS E PECAS | B113: ASTU | C113: FORNEC E/OU ASSENT DE TUBO DE FERRO FUNDIDO JUNTA ELASTICA | D113: 45 | G113: 105358 | H113: ASSENTAMENTO DE CONEXÃO 3 ACESSOS DE FERRO FUNDIDO PARA REDE DE ÁGUA, DN 1200, JUNTA ELÁSTICA, INSTALADO EM LOCAL COM NÍVEL ALTO DE INTERFERÊNCIAS (NÃO INCLUI FORNECIMENTO). AF_05/2024 | I113: UN | J113: COEFICIENTE DE REPRESENTATIVIDADE | K113: 229.29 | L113: CAIXA REFERENCIAL
A114: ASSENTAMENTO DE TUBOS E PECAS | B114: ASTU | C114: FORNEC E/OU ASSENT DE TUBO DE FERRO FUNDIDO JUNTA ELASTICA | D114: 45 | G114: 105369 | H114: FORNECIMENTO E ASSENTAMENTO DE TE RANHURADO EM FERRO FUNDIDO, DN 80 (3") PARA REDE DE ÁGUA, INSTALADO EM LOCAL COM NÍVEL ALTO DE INTERFERÊNCIAS (INCLUI FORNECIMENTO). AF_05/2024 | I114: UN | J114: ATRIBUÍDO SÃO PAULO | K114: 69.72 | L114: CAIXA REFERENCIAL
A115: ASSENTAMENTO DE TUBOS E PECAS | B115: ASTU | C115: FORNEC E/OU ASSENT DE TUBO DE FERRO FUNDIDO JUNTA ELASTICA | D115: 45 | G115: 105377 | H115: FORNECIMENTO E ASSENTAMENTO DE CURVA 45 GRAUS RANHURADA EM FERRO FUNDIDO, DN 80 MM (3") PARA REDE DE ÁGUA, INSTALADO EM LOCAL COM NÍVEL ALTO DE INTERFERÊNCIAS (INCLUI FORNECIMENTO). AF_05/2024 | I115: UN | J115: ATRIBUÍDO SÃO PAULO | K115: 44.51 | L115: CAIXA REFERENCIAL
A116: ASSENTAMENTO DE TUBOS E PECAS | B116: ASTU | C116: FORNEC E/OU ASSENT DE TUBO DE FERRO FUNDIDO JUNTA ELASTICA | D116: 45 | G116: 105378 | H116: ASSENTAMENTO DE CONEXÃO 2 ACESSOS ALINHADOS DE FERRO FUNDIDO PARA REDE DE ÁGUA, DN 100, JUNTA ELÁSTICA, INSTALADO EM LOCAL COM NÍVEL ALTO DE INTERFERÊNCIAS (NÃO INCLUI FORNECIMENTO). AF_05/2024 | I116: UN | J116: COEFICIENTE DE REPRESENTATIVIDADE | K116: 12.24 | L116: CAIXA REFERENCIAL
A117: ASSENTAMENTO DE TUBOS E PECAS | B117: ASTU | C117: FORNEC E/OU ASSENT DE TUBO DE FERRO FUNDIDO JUNTA ELASTICA | D117: 45 | G117: 105379 | H117: ASSENTAMENTO DE CONEXÃO 2 ACESSOS ALINHADOS DE FERRO FUNDIDO PARA REDE DE ÁGUA, DN 150, JUNTA ELÁSTICA, INSTALADO EM LOCAL COM NÍVEL ALTO DE INTERFERÊNCIAS (NÃO INCLUI FORNECIMENTO). AF_05/2024 | I117: UN | J117: COEFICIENTE DE REPRESENTATIVIDADE | K117: 16.1 | L117: CAIXA REFERENCIAL
A118: ASSENTAMENTO DE TUBOS E PECAS | B118: ASTU | C118: FORNEC E/OU ASSENT DE TUBO DE FERRO FUNDIDO JUNTA ELASTICA | D118: 45 | G118: 105380 | H118: ASSENTAMENTO DE CONEXÃO 2 ACESSOS ALINHADOS DE FERRO FUNDIDO PARA REDE DE ÁGUA, DN 1000, JUNTA ELÁSTICA, INSTALADO EM LOCAL COM NÍVEL ALTO DE INTERFERÊNCIAS (NÃO INCLUI FORNECIMENTO). AF_05/2024 | I118: UN | J118: COEFICIENTE DE REPRESENTATIVIDADE | K118: 94.03 | L118: CAIXA REFERENCIAL
A119: ASSENTAMENTO DE TUBOS E PECAS | B119: ASTU | C119: FORNEC E/OU ASSENT DE TUBO DE FERRO FUNDIDO JUNTA ELASTICA | D119: 45 | G119: 105388 | H119: ASSENTAMENTO DE CONEXÃO 2 ACESSOS ALINHADOS DE FERRO FUNDIDO PARA REDE DE ÁGUA, DN 150, JUNTA ELÁSTICA, INSTALADO EM LOCAL COM NÍVEL BAIXO DE INTERFERÊNCIAS (NÃO INCLUI FORNECIMENTO). AF_05/2024 | I119: UN | J119: COEFICIENTE DE REPRESENTATIVIDADE | K119: 12.62 | L119: CAIXA REFERENCIAL
A120: ASSENTAMENTO DE TUBOS E PECAS | B120: ASTU | C120: FORNEC E/OU ASSENT DE TUBO DE FERRO FUNDIDO JUNTA ELASTICA | D120: 45 | G120: 105389 | H120: ASSENTAMENTO DE CONEXÃO 2 ACESSOS ALINHADOS DE FERRO FUNDIDO PARA REDE DE ÁGUA, DN 200, JUNTA ELÁSTICA, INSTALADO EM LOCAL COM NÍVEL BAIXO DE INTERFERÊNCIAS (NÃO INCLUI FORNECIMENTO). AF_05/2024 | I120: UN | J120: COEFICIENTE DE REPRESENTATIVIDADE | K120: 15.82 | L120: CAIXA REFERENCIAL
A121: ASSENTAMENTO DE TUBOS E PECAS | B121: ASTU | C121: FORNEC E/OU ASSENT DE TUBO DE FERRO FUNDIDO JUNTA ELASTICA | D121: 45 | G121: 105390 | H121: ASSENTAMENTO DE CONEXÃO 2 ACESSOS INCLINADOS DE FERRO FUNDIDO PARA REDE DE ÁGUA, DN 900, JUNTA ELÁSTICA, INSTALADO EM LOCAL COM NÍVEL BAIXO DE INTERFERÊNCIAS (NÃO INCLUI FORNECIMENTO). AF_05/2024 | I121: UN | J121: COEFICIENTE DE REPRESENTATIVIDADE | K121: 99.51 | L121: CAIXA REFERENCIAL
A122: ASSENTAMENTO DE TUBOS E PECAS | B122: ASTU | C122: FORNEC E/OU ASSENT DE TUBO DE FERRO FUNDIDO JUNTA ELASTICA | D122: 45 | G122: 105391 | H122: ASSENTAMENTO DE CONEXÃO 3 ACESSOS DE FERRO FUNDIDO PARA REDE DE ÁGUA, DN 800, JUNTA ELÁSTICA, INSTALADO EM LOCAL COM NÍVEL BAIXO DE INTERFERÊNCIAS (NÃO INCLUI FORNECIMENTO). AF_05/2024 | I122: UN | J122: COEFICIENTE DE REPRESENTATIVIDADE | K122: 122.48 | L122: CAIXA REFERENCIAL
A123: ASSENTAMENTO DE TUBOS E PECAS | B123: ASTU | C123: FORNEC E/OU ASSENT DE TUBO DE FERRO FUNDIDO JUNTA ELASTICA | D123: 45 | G123: 105392 | H123: ASSENTAMENTO DE CONEXÃO 2 ACESSOS ALINHADOS DE FERRO FUNDIDO PARA REDE DE ÁGUA, DN 200, JUNTA ELÁSTICA, INSTALADO EM LOCAL COM NÍVEL ALTO DE INTERFERÊNCIAS (NÃO INCLUI FORNECIMENTO). AF_05/2024 | I123: UN | J123: COEFICIENTE DE REPRESENTATIVIDADE | K123: 19.98 | L123: CAIXA REFERENCIAL
A124: ASSENTAMENTO DE TUBOS E PECAS | B124: ASTU | C124: FORNEC E/OU ASSENT DE TUBO DE FERRO FUNDIDO JUNTA ELASTICA | D124: 45 | G124: 105393 | H124: ASSENTAMENTO DE CONEXÃO 2 ACESSOS ALINHADOS DE FERRO FUNDIDO PARA REDE DE ÁGUA, DN 250, JUNTA ELÁSTICA, INSTALADO EM LOCAL COM NÍVEL ALTO DE INTERFERÊNCIAS (NÃO INCLUI FORNECIMENTO). AF_05/2024 | I124: UN | J124: COEFICIENTE DE REPRESENTATIVIDADE | K124: 24.01 | L124: CAIXA REFERENCIAL
A125: ASSENTAMENTO DE TUBOS E PECAS | B125: ASTU | C125: FORNEC E/OU ASSENT DE TUBO DE FERRO FUNDIDO JUNTA ELASTICA | D125: 45 | G125: 105394 | H125: ASSENTAMENTO DE CONEXÃO 2 ACESSOS ALINHADOS DE FERRO FUNDIDO PARA REDE DE ÁGUA, DN 300, JUNTA ELÁSTICA, INSTALADO EM LOCAL COM NÍVEL ALTO DE INTERFERÊNCIAS (NÃO INCLUI FORNECIMENTO). AF_05/2024 | I125: UN | J125: COEFICIENTE DE REPRESENTATIVIDADE | K125: 28.01 | L125: CAIXA REFERENCIAL
A126: ASSENTAMENTO DE TUBOS E PECAS | B126: ASTU | C126: FORNEC E/OU ASSENT DE TUBO DE FERRO FUNDIDO JUNTA ELASTICA | D126: 45 | G126: 105395 | H126: ASSENTAMENTO DE CONEXÃO 2 ACESSOS ALINHADOS DE FERRO FUNDIDO PARA REDE DE ÁGUA, DN 350, JUNTA ELÁSTICA, INSTALADO EM LOCAL COM NÍVEL ALTO DE INTERFERÊNCIAS (NÃO INCLUI FORNECIMENTO). AF_05/2024 | I126: UN | J126: COEFICIENTE DE REPRESENTATIVIDADE | K126: 32.03 | L126: CAIXA REFERENCIAL
A127: ASSENTAMENTO DE TUBOS E PECAS | B127: ASTU | C127: FORNEC E/OU ASSENT DE TUBO DE FERRO FUNDIDO JUNTA ELASTICA | D127: 45 | G127: 105396 | H127: ASSENTAMENTO DE CONEXÃO 2 ACESSOS ALINHADOS DE FERRO FUNDIDO PARA REDE DE ÁGUA, DN 400, JUNTA ELÁSTICA, INSTALADO EM LOCAL COM NÍVEL ALTO DE INTERFERÊNCIAS (NÃO INCLUI FORNECIMENTO). AF_05/2024 | I127: UN | J127: COEFICIENTE DE REPRESENTATIVIDADE | K127: 36.04 | L127: CAIXA REFERENCIAL
A128: ASSENTAMENTO DE TUBOS E PECAS | B128: ASTU | C128: FORNEC E/OU ASSENT DE TUBO DE FERRO FUNDIDO JUNTA ELASTICA | D128: 45 | G128: 105397 | H128: ASSENTAMENTO DE CONEXÃO 2 ACESSOS ALINHADOS DE FERRO FUNDIDO PARA REDE DE ÁGUA, DN 450, JUNTA ELÁSTICA, INSTALADO EM LOCAL COM NÍVEL ALTO DE INTERFERÊNCIAS (NÃO INCLUI FORNECIMENTO). AF_05/2024 | I128: UN | J128: COEFICIENTE DE REPRESENTATIVIDADE | K128: 40.15 | L128: CAIXA REFERENCIAL
A129: ASSENTAMENTO DE TUBOS E PECAS | B129: ASTU | C129: FORNEC E/OU ASSENT DE TUBO DE FERRO FUNDIDO JUNTA ELASTICA | D129: 45 | G129: 105398 | H129: ASSENTAMENTO DE CONEXÃO 2 ACESSOS ALINHADOS DE FERRO FUNDIDO PARA REDE DE ÁGUA, DN 500, JUNTA ELÁSTICA, INSTALADO EM LOCAL COM NÍVEL ALTO DE INTERFERÊNCIAS (NÃO INCLUI FORNECIMENTO). AF_05/2024 | I129: UN | J129: COEFICIENTE DE REPRESENTATIVIDADE | K129: 50 | L129: CAIXA REFERENCIAL
A130: ASSENTAMENTO DE TUBOS E PECAS | B130: ASTU | C130: FORNEC E/OU ASSENT DE TUBO DE FERRO FUNDIDO JUNTA ELASTICA | D130: 45 | G130: 105399 | H130: ASSENTAMENTO DE CONEXÃO 2 ACESSOS ALINHADOS DE FERRO FUNDIDO PARA REDE DE ÁGUA, DN 600, JUNTA ELÁSTICA, INSTALADO EM LOCAL COM NÍVEL ALTO DE INTERFERÊNCIAS (NÃO INCLUI FORNECIMENTO). AF_05/2024 | I130: UN | J130: COEFICIENTE DE REPRESENTATIVIDADE | K130: 59.11 | L130: CAIXA REFERENCIAL
A131: ASSENTAMENTO DE TUBOS E PECAS | B131: ASTU | C131: FORNEC E/OU ASSENT DE TUBO DE FERRO FUNDIDO JUNTA ELASTICA | D131: 45 | G131: 105400 | H131: ASSENTAMENTO DE CONEXÃO 2 ACESSOS ALINHADOS DE FERRO FUNDIDO PARA REDE DE ÁGUA, DN 700, JUNTA ELÁSTICA, INSTALADO EM LOCAL COM NÍVEL ALTO DE INTERFERÊNCIAS (NÃO INCLUI FORNECIMENTO). AF_05/2024 | I131: UN | J131: COEFICIENTE DE REPRESENTATIVIDADE | K131: 67.53 | L131: CAIXA REFERENCIAL
A132: ASSENTAMENTO DE TUBOS E PECAS | B132: ASTU | C132: FORNEC E/OU ASSENT DE TUBO DE FERRO FUNDIDO JUNTA ELASTICA | D132: 45 | G132: 105401 | H132: ASSENTAMENTO DE CONEXÃO 2 ACESSOS ALINHADOS DE FERRO FUNDIDO PARA REDE DE ÁGUA, DN 800, JUNTA ELÁSTICA, INSTALADO EM LOCAL COM NÍVEL ALTO DE INTERFERÊNCIAS (NÃO INCLUI FORNECIMENTO). AF_05/2024 | I132: UN | J132: COEFICIENTE DE REPRESENTATIVIDADE | K132: 76.19 | L132: CAIXA REFERENCIAL
A133: ASSENTAMENTO DE TUBOS E PECAS | B133: ASTU | C133: FORNEC E/OU ASSENT DE TUBO DE FERRO FUNDIDO JUNTA ELASTICA | D133: 45 | G133: 105402 | H133: ASSENTAMENTO DE CONEXÃO 2 ACESSOS ALINHADOS DE FERRO FUNDIDO PARA REDE DE ÁGUA, DN 900, JUNTA ELÁSTICA, INSTALADO EM LOCAL COM NÍVEL ALTO DE INTERFERÊNCIAS (NÃO INCLUI FORNECIMENTO). AF_05/2024 | I133: UN | J133: COEFICIENTE DE REPRESENTATIVIDADE | K133: 85.06 | L133: CAIXA REFERENCIAL
A134: ASSENTAMENTO DE TUBOS E PECAS | B134: ASTU | C134: FORNEC E/OU ASSENT DE TUBO DE ACO COM JUNTA SOLDADA | D134: 46 | G134: 97173 | H134: ASSENTAMENTO DE TUBO DE AÇO CARBONO PARA REDE DE ÁGUA, DN 600 MM (24"), JUNTA SOLDADA, INSTALADO EM LOCAL COM NÍVEL ALTO DE INTERFERÊNCIAS (NÃO INCLUI FORNECIMENTO). AF_05/2024 | I134: M | J134: COEFICIENTE DE REPRESENTATIVIDADE | K134: 46.22 | L134: CAIXA REFERENCIAL
A135: ASSENTAMENTO DE TUBOS E PECAS | B135: ASTU | C135: FORNEC E/OU ASSENT DE TUBO DE ACO COM JUNTA SOLDADA | D135: 46 | G135: 97174 | H135: ASSENTAMENTO DE TUBO DE AÇO CARBONO PARA REDE DE ÁGUA, DN 700 MM (28"), JUNTA SOLDADA, INSTALADO EM LOCAL COM NÍVEL ALTO DE INTERFERÊNCIAS (NÃO INCLUI FORNECIMENTO). AF_05/2024 | I135: M | J135: COEFICIENTE DE REPRESENTATIVIDADE | K135: 54.91 | L135: CAIXA REFERENCIAL
A136: ASSENTAMENTO DE TUBOS E PECAS | B136: ASTU | C136: FORNEC E/OU ASSENT DE TUBO DE ACO COM JUNTA SOLDADA | D136: 46 | G136: 97175 | H136: ASSENTAMENTO DE TUBO DE AÇO CARBONO PARA REDE DE ÁGUA, DN 800 MM (32"), JUNTA SOLDADA, INSTALADO EM LOCAL COM NÍVEL ALTO DE INTERFERÊNCIAS (NÃO INCLUI FORNECIMENTO). AF_05/2024 | I136: M | J136: COEFICIENTE DE REPRESENTATIVIDADE | K136: 63.59 | L136: CAIXA REFERENCIAL
A137: ASSENTAMENTO DE TUBOS E PECAS | B137: ASTU | C137: FORNEC E/OU ASSENT DE TUBO DE ACO COM JUNTA SOLDADA | D137: 46 | G137: 97176 | H137: ASSENTAMENTO DE TUBO DE AÇO CARBONO PARA REDE DE ÁGUA, DN 900 MM (36"), JUNTA SOLDADA, INSTALADO EM LOCAL COM NÍVEL ALTO DE INTERFERÊNCIAS (NÃO INCLUI FORNECIMENTO). AF_05/2024 | I137: M | J137: COEFICIENTE DE REPRESENTATIVIDADE | K137: 72.3 | L137: CAIXA REFERENCIAL
A138: ASSENTAMENTO DE TUBOS E PECAS | B138: ASTU | C138: FORNEC E/OU ASSENT DE TUBO DE ACO COM JUNTA SOLDADA | D138: 46 | G138: 97177 | H138: ASSENTAMENTO DE TUBO DE AÇO CARBONO PARA REDE DE ÁGUA, DN 1000 MM (40") OU DN 1100 MM (44"), JUNTA SOLDADA, INSTALADO EM LOCAL COM NÍVEL ALTO DE INTERFERÊNCIAS (NÃO INCLUI FORNECIMENTO). AF_05/2024 | I138: M | J138: COEFICIENTE DE REPRESENTATIVIDADE | K138: 80.97 | L138: CAIXA REFERENCIAL
A139: ASSENTAMENTO DE TUBOS E PECAS | B139: ASTU | C139: FORNEC E/OU ASSENT DE TUBO DE ACO COM JUNTA SOLDADA | D139: 46 | G139: 97178 | H139: ASSENTAMENTO DE TUBO DE AÇO CARBONO PARA REDE DE ÁGUA, DN 1200 MM (48") OU DN 1300 MM (52"), JUNTA SOLDADA, INSTALADO EM LOCAL COM NÍVEL ALTO DE INTERFERÊNCIAS (NÃO INCLUI FORNECIMENTO). AF_05/2024 | I139: M | J139: COEFICIENTE DE REPRESENTATIVIDADE | K139: 98.36 | L139: CAIXA REFERENCIAL
A140: ASSENTAMENTO DE TUBOS E PECAS | B140: ASTU | C140: FORNEC E/OU ASSENT DE TUBO DE ACO COM JUNTA SOLDADA | D140: 46 | G140: 97179 | H140: ASSENTAMENTO DE TUBO DE AÇO CARBONO PARA REDE DE ÁGUA, DN 1400 MM (56'') OU DN 1500 MM (60"), JUNTA SOLDADA, INSTALADO EM LOCAL COM NÍVEL ALTO DE INTERFERÊNCIAS (NÃO INCLUI FORNECIMENTO). AF_05/2024 | I140: M | J140: COEFICIENTE DE REPRESENTATIVIDADE | K140: 115.77 | L140: CAIXA REFERENCIAL
A141: ASSENTAMENTO DE TUBOS E PECAS | B141: ASTU | C141: FORNEC E/OU ASSENT DE TUBO DE ACO COM JUNTA SOLDADA | D141: 46 | G141: 97180 | H141: ASSENTAMENTO DE TUBO DE AÇO CARBONO PARA REDE DE ÁGUA, DN 1600 MM (64") OU DN 1700 MM (68"), JUNTA SOLDADA, INSTALADO EM LOCAL COM NÍVEL ALTO DE INTERFERÊNCIAS (NÃO INCLUI FORNECIMENTO). AF_05/2024 | I141: M | J141: COEFICIENTE DE REPRESENTATIVIDADE | K141: 133.13 | L141: CAIXA REFERENCIAL
A142: ASSENTAMENTO DE TUBOS E PECAS | B142: ASTU | C142: FORNEC E/OU ASSENT DE TUBO DE ACO COM JUNTA SOLDADA | D142: 46 | G142: 97181 | H142: ASSENTAMENTO DE TUBO DE AÇO CARBONO PARA REDE DE ÁGUA, DN 1800 MM (72") OU DN 1900 MM (76"), JUNTA SOLDADA, INSTALADO EM LOCAL COM NÍVEL ALTO DE INTERFERÊNCIAS (NÃO INCLUI FORNECIMENTO). AF_05/2024 | I142: M | J142: COEFICIENTE DE REPRESENTATIVIDADE | K142: 150.51 | L142: CAIXA REFERENCIAL
A143: ASSENTAMENTO DE TUBOS E PECAS | B143: ASTU | C143: FORNEC E/OU ASSENT DE TUBO DE ACO COM JUNTA SOLDADA | D143: 46 | G143: 97182 | H143: ASSENTAMENTO DE TUBO DE AÇO CARBONO PARA REDE DE ÁGUA, DN 2000 MM (80") OU DN 2100 MM (84"), JUNTA SOLDADA, INSTALADO EM LOCAL COM NÍVEL ALTO DE INTERFERÊNCIAS (NÃO INCLUI FORNECIMENTO). AF_05/2024 | I143: M | J143: COEFICIENTE DE REPRESENTATIVIDADE | K143: 171.63 | L143: CAIXA REFERENCIAL
A144: ASSENTAMENTO DE TUBOS E PECAS | B144: ASTU | C144: FORNEC E/OU ASSENT DE TUBO DE ACO COM JUNTA SOLDADA | D144: 46 | G144: 97183 | H144: ASSENTAMENTO DE TUBO DE AÇO CARBONO PARA REDE DE ÁGUA, DN 600 MM (24"), JUNTA SOLDADA, INSTALADO EM LOCAL COM NÍVEL BAIXO DE INTERFERÊNCIAS (NÃO INCLUI FORNECIMENTO). AF_05/2024 | I144: M | J144: COEFICIENTE DE REPRESENTATIVIDADE | K144: 41.59 | L144: CAIXA REFERENCIAL
A145: ASSENTAMENTO DE TUBOS E PECAS | B145: ASTU | C145: FORNEC E/OU ASSENT DE TUBO DE ACO COM JUNTA SOLDADA | D145: 46 | G145: 97184 | H145: ASSENTAMENTO DE TUBO DE AÇO CARBONO PARA REDE DE ÁGUA, DN 700 MM (28"), JUNTA SOLDADA, INSTALADO EM LOCAL COM NÍVEL BAIXO DE INTERFERÊNCIAS (NÃO INCLUI FORNECIMENTO). AF_05/2024 | I145: M | J145: COEFICIENTE DE REPRESENTATIVIDADE | K145: 49.48 | L145: CAIXA REFERENCIAL
A146: ASSENTAMENTO DE TUBOS E PECAS | B146: ASTU | C146: FORNEC E/OU ASSENT DE TUBO DE ACO COM JUNTA SOLDADA | D146: 46 | G146: 97185 | H146: ASSENTAMENTO DE TUBO DE AÇO CARBONO PARA REDE DE ÁGUA, DN 800 MM (32"), JUNTA SOLDADA, INSTALADO EM LOCAL COM NÍVEL BAIXO DE INTERFERÊNCIAS (NÃO INCLUI FORNECIMENTO). AF_05/2024 | I146: M | J146: COEFICIENTE DE REPRESENTATIVIDADE | K146: 57.36 | L146: CAIXA REFERENCIAL
A147: ASSENTAMENTO DE TUBOS E PECAS | B147: ASTU | C147: FORNEC E/OU ASSENT DE TUBO DE ACO COM JUNTA SOLDADA | D147: 46 | G147: 97186 | H147: ASSENTAMENTO DE TUBO DE AÇO CARBONO PARA REDE DE ÁGUA, DN 900 MM (36"), JUNTA SOLDADA, INSTALADO EM LOCAL COM NÍVEL BAIXO DE INTERFERÊNCIAS (NÃO INCLUI FORNECIMENTO). AF_05/2024 | I147: M | J147: COEFICIENTE DE REPRESENTATIVIDADE | K147: 65.28 | L147: CAIXA REFERENCIAL
A148: ASSENTAMENTO DE TUBOS E PECAS | B148: ASTU | C148: FORNEC E/OU ASSENT DE TUBO DE ACO COM JUNTA SOLDADA | D148: 46 | G148: 97187 | H148: ASSENTAMENTO DE TUBO DE AÇO CARBONO PARA REDE DE ÁGUA, DN 1000 MM (40") OU DN 1100 MM (44"), JUNTA SOLDADA, INSTALADO EM LOCAL COM NÍVEL BAIXO DE INTERFERÊNCIAS (NÃO INCLUI FORNECIMENTO). AF_05/2024 | I148: M | J148: COEFICIENTE DE REPRESENTATIVIDADE | K148: 73.16 | L148: CAIXA REFERENCIAL
A149: ASSENTAMENTO DE TUBOS E PECAS | B149: ASTU | C149: FORNEC E/OU ASSENT DE TUBO DE ACO COM JUNTA SOLDADA | D149: 46 | G149: 97188 | H149: ASSENTAMENTO DE TUBO DE AÇO CARBONO PARA REDE DE ÁGUA, DN 1200 MM (48") OU DN 1300 MM (52"), JUNTA SOLDADA, INSTALADO EM LOCAL COM NÍVEL BAIXO DE INTERFERÊNCIAS (NÃO INCLUI FORNECIMENTO). AF_05/2024 | I149: M | J149: COEFICIENTE DE REPRESENTATIVIDADE | K149: 88.97 | L149: CAIXA REFERENCIAL
A150: ASSENTAMENTO DE TUBOS E PECAS | B150: ASTU | C150: FORNEC E/OU ASSENT DE TUBO DE ACO COM JUNTA SOLDADA | D150: 46 | G150: 97189 | H150: ASSENTAMENTO DE TUBO DE AÇO CARBONO PARA REDE DE ÁGUA, DN 1400 MM (56'') OU DN 1500 MM (60"), JUNTA SOLDADA, INSTALADO EM LOCAL COM NÍVEL BAIXO DE INTERFERÊNCIAS (NÃO INCLUI FORNECIMENTO). AF_05/2024 | I150: M | J150: COEFICIENTE DE REPRESENTATIVIDADE | K150: 104.76 | L150: CAIXA REFERENCIAL
A151: ASSENTAMENTO DE TUBOS E PECAS | B151: ASTU | C151: FORNEC E/OU ASSENT DE TUBO DE ACO COM JUNTA SOLDADA | D151: 46 | G151: 97190 | H151: ASSENTAMENTO DE TUBO DE AÇO CARBONO PARA REDE DE ÁGUA, DN 1600 MM (64") OU DN 1700 MM (68"), JUNTA SOLDADA, INSTALADO EM LOCAL COM NÍVEL BAIXO DE INTERFERÊNCIAS (NÃO INCLUI FORNECIMENTO). AF_05/2024 | I151: M | J151: COEFICIENTE DE REPRESENTATIVIDADE | K151: 120.55 | L151: CAIXA REFERENCIAL
A152: ASSENTAMENTO DE TUBOS E PECAS | B152: ASTU | C152: FORNEC E/OU ASSENT DE TUBO DE ACO COM JUNTA SOLDADA | D152: 46 | G152: 97191 | H152: ASSENTAMENTO DE TUBO DE AÇO CARBONO PARA REDE DE ÁGUA, DN 1800 MM (72") OU DN 1900 MM (76"), JUNTA SOLDADA, INSTALADO EM LOCAL COM NÍVEL BAIXO DE INTERFERÊNCIAS (NÃO INCLUI FORNECIMENTO). AF_05/2024 | I152: M | J152: COEFICIENTE DE REPRESENTATIVIDADE | K152: 136.34 | L152: CAIXA REFERENCIAL
A153: ASSENTAMENTO DE TUBOS E PECAS | B153: ASTU | C153: FORNEC E/OU ASSENT DE TUBO DE ACO COM JUNTA SOLDADA | D153: 46 | G153: 97192 | H153: ASSENTAMENTO DE TUBO DE AÇO CARBONO PARA REDE DE ÁGUA, DN 2000 MM (80") OU DN 2100 MM (84"), JUNTA SOLDADA, INSTALADO EM LOCAL COM NÍVEL BAIXO DE INTERFERÊNCIAS (NÃO INCLUI FORNECIMENTO). AF_05/2024 | I153: M | J153: COEFICIENTE DE REPRESENTATIVIDADE | K153: 155.05 | L153: CAIXA REFERENCIAL
A154: ASSENTAMENTO DE TUBOS E PECAS | B154: ASTU | C154: FORNEC E/OU ASSENT DE TUBO DE PVC COM JUNTA ELASTICA | D154: 48 | G154: 90694 | H154: TUBO DE PVC PARA REDE COLETORA DE ESGOTO DE PAREDE MACIÇA, DN 100 MM, JUNTA ELÁSTICA - FORNECIMENTO E ASSENTAMENTO. AF_01/2021 | I154: M | J154: COEFICIENTE DE REPRESENTATIVIDADE | K154: 44.44 | L154: CAIXA REFERENCIAL
A155: ASSENTAMENTO DE TUBOS E PECAS | B155: ASTU | C155: FORNEC E/OU ASSENT DE TUBO DE PVC COM JUNTA ELASTICA | D155: 48 | G155: 90695 | H155: TUBO DE PVC PARA REDE COLETORA DE ESGOTO DE PAREDE MACIÇA, DN 150 MM, JUNTA ELÁSTICA - FORNECIMENTO E ASSENTAMENTO. AF_01/2021 | I155: M | J155: COEFICIENTE DE REPRESENTATIVIDADE | K155: 84.56 | L155: CAIXA REFERENCIAL
A156: ASSENTAMENTO DE TUBOS E PECAS | B156: ASTU | C156: FORNEC E/OU ASSENT DE TUBO DE PVC COM JUNTA ELASTICA | D156: 48 | G156: 90696 | H156: TUBO DE PVC PARA REDE COLETORA DE ESGOTO DE PAREDE MACIÇA, DN 200 MM, JUNTA ELÁSTICA - FORNECIMENTO E ASSENTAMENTO. AF_01/2021 | I156: M | J156: COEFICIENTE DE REPRESENTATIVIDADE | K156: 141.36 | L156: CAIXA REFERENCIAL
A157: ASSENTAMENTO DE TUBOS E PECAS | B157: ASTU | C157: FORNEC E/OU ASSENT DE TUBO DE PVC COM JUNTA ELASTICA | D157: 48 | G157: 90697 | H157: TUBO DE PVC PARA REDE COLETORA DE ESGOTO DE PAREDE MACIÇA, DN 250 MM, JUNTA ELÁSTICA - FORNECIMENTO E ASSENTAMENTO. AF_01/2021 | I157: M | J157: COEFICIENTE DE REPRESENTATIVIDADE | K157: 219.38 | L157: CAIXA REFERENCIAL
A158: ASSENTAMENTO DE TUBOS E PECAS | B158: ASTU | C158: FORNEC E/OU ASSENT DE TUBO DE PVC COM JUNTA ELASTICA | D158: 48 | G158: 90698 | H158: TUBO DE PVC PARA REDE COLETORA DE ESGOTO DE PAREDE MACIÇA, DN 300 MM, JUNTA ELÁSTICA, FORNECIMENTO E ASSENTAMENTO. AF_01/2021 | I158: M | J158: COEFICIENTE DE REPRESENTATIVIDADE | K158: 335.4 | L158: CAIXA REFERENCIAL
A159: ASSENTAMENTO DE TUBOS E PECAS | B159: ASTU | C159: FORNEC E/OU ASSENT DE TUBO DE PVC COM JUNTA ELASTICA | D159: 48 | G159: 90699 | H159: TUBO DE PVC PARA REDE COLETORA DE ESGOTO DE PAREDE MACIÇA, DN 350 MM, JUNTA ELÁSTICA - FORNECIMENTO E ASSENTAMENTO. AF_01/2021 | I159: M | J159: COEFICIENTE DE REPRESENTATIVIDADE | K159: 472.15 | L159: CAIXA REFERENCIAL
A160: ASSENTAMENTO DE TUBOS E PECAS | B160: ASTU | C160: FORNEC E/OU ASSENT DE TUBO DE PVC COM JUNTA ELASTICA | D160: 48 | G160: 90700 | H160: TUBO DE PVC PARA REDE COLETORA DE ESGOTO DE PAREDE MACIÇA, DN 400 MM, JUNTA ELÁSTICA FORNECIMENTO E ASSENTAMENTO. AF_01/2021 | I160: M | J160: COEFICIENTE DE REPRESENTATIVIDADE | K160: 552.05 | L160: CAIXA REFERENCIAL
A161: ASSENTAMENTO DE TUBOS E PECAS | B161: ASTU | C161: FORNEC E/OU ASSENT DE TUBO DE PVC COM JUNTA ELASTICA | D161: 48 | G161: 90701 | H161: TUBO DE PVC CORRUGADO DE DUPLA PAREDE PARA REDE COLETORA DE ESGOTO, DN 150 MM, JUNTA ELÁSTICA - FORNECIMENTO E ASSENTAMENTO. AF_01/2021 | I161: M | J161: COEFICIENTE DE REPRESENTATIVIDADE | K161: 66.37 | L161: CAIXA REFERENCIAL
A162: ASSENTAMENTO DE TUBOS E PECAS | B162: ASTU | C162: FORNEC E/OU ASSENT DE TUBO DE PVC COM JUNTA ELASTICA | D162: 48 | G162: 90702 | H162: TUBO DE PVC CORRUGADO DE DUPLA PAREDE PARA REDE COLETORA DE ESGOTO, DN 200 MM, JUNTA ELÁSTICA - FORNECIMENTO E ASSENTAMENTO. AF_01/2021 | I162: M | J162: COEFICIENTE DE REPRESENTATIVIDADE | K162: 109.98 | L162: CAIXA REFERENCIAL
A163: ASSENTAMENTO DE TUBOS E PECAS | B163: ASTU | C163: FORNEC E/OU ASSENT DE TUBO DE PVC COM JUNTA ELASTICA | D163: 48 | G163: 90703 | H163: TUBO DE PVC CORRUGADO DE DUPLA PAREDE PARA REDE COLETORA DE ESGOTO, DN 250 MM, JUNTA ELÁSTICA - FORNECIMENTO E ASSENTAMENTO. AF_01/2021 | I163: M | J163: COEFICIENTE DE REPRESENTATIVIDADE | K163: 172.4 | L163: CAIXA REFERENCIAL
A164: ASSENTAMENTO DE TUBOS E PECAS | B164: ASTU | C164: FORNEC E/OU ASSENT DE TUBO DE PVC COM JUNTA ELASTICA | D164: 48 | G164: 90704 | H164: TUBO DE PVC CORRUGADO DE DUPLA PAREDE PARA REDE COLETORA DE ESGOTO, DN 300 MM, JUNTA ELÁSTICA - FORNECIMENTO E ASSENTAMENTO. AF_01/2021 | I164: M | J164: COEFICIENTE DE REPRESENTATIVIDADE | K164: 256.32 | L164: CAIXA REFERENCIAL
A165: ASSENTAMENTO DE TUBOS E PECAS | B165: ASTU | C165: FORNEC E/OU ASSENT DE TUBO DE PVC COM JUNTA ELASTICA | D165: 48 | G165: 90705 | H165: TUBO DE PVC CORRUGADO DE DUPLA PAREDE PARA REDE COLETORA DE ESGOTO, DN 350 MM, JUNTA ELÁSTICA - FORNECIMENTO E ASSENTAMENTO. AF_01/2021 | I165: M | J165: COEFICIENTE DE REPRESENTATIVIDADE | K165: 335.01 | L165: CAIXA REFERENCIAL
A166: ASSENTAMENTO DE TUBOS E PECAS | B166: ASTU | C166: FORNEC E/OU ASSENT DE TUBO DE PVC COM JUNTA ELASTICA | D166: 48 | G166: 90706 | H166: TUBO DE PVC CORRUGADO DE DUPLA PAREDE PARA REDE COLETORA DE ESGOTO, DN 400 MM, JUNTA ELÁSTICA - FORNECIMENTO E ASSENTAMENTO. AF_01/2021 | I166: M | J166: COEFICIENTE DE REPRESENTATIVIDADE | K166: 444.77 | L166: CAIXA REFERENCIAL
A167: ASSENTAMENTO DE TUBOS E PECAS | B167: ASTU | C167: FORNEC E/OU ASSENT DE TUBO DE PVC COM JUNTA ELASTICA | D167: 48 | G167: 90708 | H167: TUBO DE PEAD CORRUGADO DE DUPLA PAREDE PARA REDE COLETORA DE ESGOTO, DN 600 MM, JUNTA ELÁSTICA INTEGRADA - FORNECIMENTO E ASSENTAMENTO. AF_01/2021 | I167: M | J167: COEFICIENTE DE REPRESENTATIVIDADE | K167: 759.29 | L167: CAIXA REFERENCIAL
A168: ASSENTAMENTO DE TUBOS E PECAS | B168: ASTU | C168: FORNEC E/OU ASSENT DE TUBO DE PVC COM JUNTA ELASTICA | D168: 48 | G168: 90724 | H168: JUNTA ARGAMASSADA ENTRE TUBO DN 100 MM E O POÇO DE VISITA/ CAIXA DE CONCRETO OU ALVENARIA EM REDES DE ESGOTO. AF_01/2021 | I168: UN | J168: COEFICIENTE DE REPRESENTATIVIDADE | K168: 22.8 | L168: CAIXA REFERENCIAL
A169: ASSENTAMENTO DE TUBOS E PECAS | B169: ASTU | C169: FORNEC E/OU ASSENT DE TUBO DE PVC COM JUNTA ELASTICA | D169: 48 | G169: 90725 | H169: JUNTA ARGAMASSADA ENTRE TUBO DN 150 MM E O POÇO DE VISITA/ CAIXA DE CONCRETO OU ALVENARIA EM REDES DE ESGOTO. AF_01/2021 | I169: UN | J169: COEFICIENTE DE REPRESENTATIVIDADE | K169: 28.08 | L169: CAIXA REFERENCIAL
A170: ASSENTAMENTO DE TUBOS E PECAS | B170: ASTU | C170: FORNEC E/OU ASSENT DE TUBO DE PVC COM JUNTA ELASTICA | D170: 48 | G170: 90726 | H170: JUNTA ARGAMASSADA ENTRE TUBO DN 200 MM E O POÇO/ CAIXA DE CONCRETO OU ALVENARIA EM REDES DE ESGOTO. AF_01/2021 | I170: UN | J170: COEFICIENTE DE REPRESENTATIVIDADE | K170: 33.42 | L170: CAIXA REFERENCIAL
A171: ASSENTAMENTO DE TUBOS E PECAS | B171: ASTU | C171: FORNEC E/OU ASSENT DE TUBO DE PVC COM JUNTA ELASTICA | D171: 48 | G171: 90727 | H171: JUNTA ARGAMASSADA ENTRE TUBO DN 250 MM E O POÇO DE VISITA/ CAIXA DE CONCRETO OU ALVENARIA EM REDES DE ESGOTO. AF_01/2021 | I171: UN | J171: COEFICIENTE DE REPRESENTATIVIDADE | K171: 38.7 | L171: CAIXA REFERENCIAL
A172: ASSENTAMENTO DE TUBOS E PECAS | B172: ASTU | C172: FORNEC E/OU ASSENT DE TUBO DE PVC COM JUNTA ELASTICA | D172: 48 | G172: 90728 | H172: JUNTA ARGAMASSADA ENTRE TUBO DN 300 MM E O POÇO DE VISITA/ CAIXA DE CONCRETO OU ALVENARIA EM REDES DE ESGOTO. AF_01/2021 | I172: UN | J172: COEFICIENTE DE REPRESENTATIVIDADE | K172: 43.99 | L172: CAIXA REFERENCIAL
A173: ASSENTAMENTO DE TUBOS E PECAS | B173: ASTU | C173: FORNEC E/OU ASSENT DE TUBO DE PVC COM JUNTA ELASTICA | D173: 48 | G173: 90729 | H173: JUNTA ARGAMASSADA ENTRE TUBO DN 350 MM E O POÇO DE VISITA/ CAIXA DE CONCRETO OU ALVENARIA EM REDES DE ESGOTO. AF_01/2021 | I173: UN | J173: COEFICIENTE DE REPRESENTATIVIDADE | K173: 49.26 | L173: CAIXA REFERENCIAL
A174: ASSENTAMENTO DE TUBOS E PECAS | B174: ASTU | C174: FORNEC E/OU ASSENT DE TUBO DE PVC COM JUNTA ELASTICA | D174: 48 | G174: 90730 | H174: JUNTA ARGAMASSADA ENTRE TUBO DN 400 MM E O POÇO DE VISITA/ CAIXA DE CONCRETO OU ALVENARIA EM REDES DE ESGOTO. AF_01/2021 | I174: UN | J174: COEFICIENTE DE REPRESENTATIVIDADE | K174: 54.54 | L174: CAIXA REFERENCIAL
A175: ASSENTAMENTO DE TUBOS E PECAS | B175: ASTU | C175: FORNEC E/OU ASSENT DE TUBO DE PVC COM JUNTA ELASTICA | D175: 48 | G175: 90731 | H175: JUNTA ARGAMASSADA ENTRE TUBO DN 450 MM E O POÇO DE VISITA/ CAIXA DE CONCRETO OU ALVENARIA EM REDES DE ESGOTO. AF_01/2021 | I175: UN | J175: COEFICIENTE DE REPRESENTATIVIDADE | K175: 59.81 | L175: CAIXA REFERENCIAL
A176: ASSENTAMENTO DE TUBOS E PECAS | B176: ASTU | C176: FORNEC E/OU ASSENT DE TUBO DE PVC COM JUNTA ELASTICA | D176: 48 | G176: 90732 | H176: JUNTA ARGAMASSADA ENTRE TUBO DN 600 MM E O POÇO DE VISITA/ CAIXA DE CONCRETO OU ALVENARIA EM REDES DE ESGOTO. AF_01/2021 | I176: UN | J176: COEFICIENTE DE REPRESENTATIVIDADE | K176: 75.65 | L176: CAIXA REFERENCIAL
A177: ASSENTAMENTO DE TUBOS E PECAS | B177: ASTU | C177: FORNEC E/OU ASSENT DE TUBO DE PVC COM JUNTA ELASTICA | D177: 48 | G177: 90733 | H177: ASSENTAMENTO DE TUBO DE PVC PARA REDE COLETORA DE ESGOTO DE PAREDE MACIÇA, DN 100 MM, JUNTA ELÁSTICA (NÃO INCLUI FORNECIMENTO). AF_01/2021 | I177: M | J177: COEFICIENTE DE REPRESENTATIVIDADE | K177: 3.18 | L177: CAIXA REFERENCIAL
A178: ASSENTAMENTO DE TUBOS E PECAS | B178: ASTU | C178: FORNEC E/OU ASSENT DE TUBO DE PVC COM JUNTA ELASTICA | D178: 48 | G178: 90734 | H178: ASSENTAMENTO DE TUBO DE PVC PARA REDE COLETORA DE ESGOTO DE PAREDE MACIÇA, DN 150 MM, JUNTA ELÁSTICA, (NÃO INCLUI FORNECIMENTO). AF_01/2021 | I178: M | J178: COEFICIENTE DE REPRESENTATIVIDADE | K178: 3.78 | L178: CAIXA REFERENCIAL
A179: ASSENTAMENTO DE TUBOS E PECAS | B179: ASTU | C179: FORNEC E/OU ASSENT DE TUBO DE PVC COM JUNTA ELASTICA | D179: 48 | G179: 90735 | H179: ASSENTAMENTO DE TUBO DE PVC PARA REDE COLETORA DE ESGOTO DE PAREDE MACIÇA, DN 200 MM, JUNTA ELÁSTICA (NÃO INCLUI FORNECIMENTO). AF_01/2021 | I179: M | J179: COEFICIENTE DE REPRESENTATIVIDADE | K179: 4.37 | L179: CAIXA REFERENCIAL
A180: ASSENTAMENTO DE TUBOS E PECAS | B180: ASTU | C180: FORNEC E/OU ASSENT DE TUBO DE PVC COM JUNTA ELASTICA | D180: 48 | G180: 90736 | H180: ASSENTAMENTO DE TUBO DE PVC PARA REDE COLETORA DE ESGOTO DE PAREDE MACIÇA, DN 250 MM, JUNTA ELÁSTICA (NÃO INCLUI FORNECIMENTO). AF_01/2021 | I180: M | J180: COEFICIENTE DE REPRESENTATIVIDADE | K180: 4.95 | L180: CAIXA REFERENCIAL
A181: ASSENTAMENTO DE TUBOS E PECAS | B181: ASTU | C181: FORNEC E/OU ASSENT DE TUBO DE PVC COM JUNTA ELASTICA | D181: 48 | G181: 90737 | H181: ASSENTAMENTO DE TUBO DE PVC PARA REDE COLETORA DE ESGOTO DE PAREDE MACIÇA, DN 300 MM, JUNTA ELÁSTICA (NÃO INCLUI FORNECIMENTO). AF_01/2021 | I181: M | J181: COEFICIENTE DE REPRESENTATIVIDADE | K181: 5.54 | L181: CAIXA REFERENCIAL
A182: ASSENTAMENTO DE TUBOS E PECAS | B182: ASTU | C182: FORNEC E/OU ASSENT DE TUBO DE PVC COM JUNTA ELASTICA | D182: 48 | G182: 90738 | H182: ASSENTAMENTO DE TUBO DE PVC PARA REDE COLETORA DE ESGOTO DE PAREDE MACIÇA, DN 350 MM, JUNTA ELÁSTICA (NÃO INCLUI FORNECIMENTO). AF_01/2021 | I182: M | J182: COEFICIENTE DE REPRESENTATIVIDADE | K182: 6.13 | L182: CAIXA REFERENCIAL
A183: ASSENTAMENTO DE TUBOS E PECAS | B183: ASTU | C183: FORNEC E/OU ASSENT DE TUBO DE PVC COM JUNTA ELASTICA | D183: 48 | G183: 90739 | H183: ASSENTAMENTO DE TUBO DE PVC PARA REDE COLETORA DE ESGOTO DE PAREDE MACIÇA, DN 400 MM, JUNTA ELÁSTICA (NÃO INCLUI FORNECIMENTO). AF_01/2021 | I183: M | J183: COEFICIENTE DE REPRESENTATIVIDADE | K183: 9.33 | L183: CAIXA REFERENCIAL
A184: ASSENTAMENTO DE TUBOS E PECAS | B184: ASTU | C184: FORNEC E/OU ASSENT DE TUBO DE PVC COM JUNTA ELASTICA | D184: 48 | G184: 90740 | H184: ASSENTAMENTO DE TUBO DE PVC CORRUGADO DE DUPLA PAREDE PARA REDE COLETORA DE ESGOTO, DN 150 MM, JUNTA ELÁSTICA (NÃO INCLUI FORNECIMENTO). AF_01/2021 | I184: M | J184: COEFICIENTE DE REPRESENTATIVIDADE | K184: 4.2 | L184: CAIXA REFERENCIAL
A185: ASSENTAMENTO DE TUBOS E PECAS | B185: ASTU | C185: FORNEC E/OU ASSENT DE TUBO DE PVC COM JUNTA ELASTICA | D185: 48 | G185: 90741 | H185: ASSENTAMENTO DE TUBO DE PVC CORRUGADO DE DUPLA PAREDE PARA REDE COLETORA DE ESGOTO, DN 200 MM, JUNTA ELÁSTICA (NÃO INCLUI FORNECIMENTO). AF_01/2021 | I185: M | J185: COEFICIENTE DE REPRESENTATIVIDADE | K185: 4.8 | L185: CAIXA REFERENCIAL
A186: ASSENTAMENTO DE TUBOS E PECAS | B186: ASTU | C186: FORNEC E/OU ASSENT DE TUBO DE PVC COM JUNTA ELASTICA | D186: 48 | G186: 90742 | H186: ASSENTAMENTO DE TUBO DE PVC CORRUGADO DE DUPLA PAREDE PARA REDE COLETORA DE ESGOTO, DN 250 MM, JUNTA ELÁSTICA (NÃO INCLUI FORNECIMENTO). AF_01/2021 | I186: M | J186: COEFICIENTE DE REPRESENTATIVIDADE | K186: 5.39 | L186: CAIXA REFERENCIAL
A187: ASSENTAMENTO DE TUBOS E PECAS | B187: ASTU | C187: FORNEC E/OU ASSENT DE TUBO DE PVC COM JUNTA ELASTICA | D187: 48 | G187: 90743 | H187: ASSENTAMENTO DE TUBO DE PVC CORRUGADO DE DUPLA PAREDE PARA REDE COLETORA DE ESGOTO, DN 300 MM, JUNTA ELÁSTICA (NÃO INCLUI FORNECIMENTO). AF_01/2021 | I187: M | J187: COEFICIENTE DE REPRESENTATIVIDADE | K187: 5.97 | L187: CAIXA REFERENCIAL
A188: ASSENTAMENTO DE TUBOS E PECAS | B188: ASTU | C188: FORNEC E/OU ASSENT DE TUBO DE PVC COM JUNTA ELASTICA | D188: 48 | G188: 90744 | H188: ASSENTAMENTO DE TUBO DE PVC CORRUGADO DE DUPLA PAREDE PARA REDE COLETORA DE ESGOTO, DN 350 MM, JUNTA ELÁSTICA (NÃO INCLUI FORNECIMENTO). AF_01/2021 | I188: M | J188: COEFICIENTE DE REPRESENTATIVIDADE | K188: 6.57 | L188: CAIXA REFERENCIAL
A189: ASSENTAMENTO DE TUBOS E PECAS | B189: ASTU | C189: FORNEC E/OU ASSENT DE TUBO DE PVC COM JUNTA ELASTICA | D189: 48 | G189: 90745 | H189: ASSENTAMENTO DE TUBO DE PVC CORRUGADO DE DUPLA PAREDE PARA REDE COLETORA DE ESGOTO, DN 400 MM, JUNTA ELÁSTICA (NÃO INCLUI FORNECIMENTO). AF_01/2021 | I189: M | J189: COEFICIENTE DE REPRESENTATIVIDADE | K189: 10.4 | L189: CAIXA REFERENCIAL
A190: ASSENTAMENTO DE TUBOS E PECAS | B190: ASTU | C190: FORNEC E/OU ASSENT DE TUBO DE PVC COM JUNTA ELASTICA | D190: 48 | G190: 90746 | H190: ASSENTAMENTO DE TUBO DE PEAD CORRUGADO DE DUPLA PAREDE PARA REDE COLETORA DE ESGOTO, DN 450 MM, JUNTA ELÁSTICA INTEGRADA (NÃO INCLUI FORNECIMENTO). AF_01/2021 | I190: M | J190: COEFICIENTE DE REPRESENTATIVIDADE | K190: 3.45 | L190: CAIXA REFERENCIAL
A191: ASSENTAMENTO DE TUBOS E PECAS | B191: ASTU | C191: FORNEC E/OU ASSENT DE TUBO DE PVC COM JUNTA ELASTICA | D191: 48 | G191: 90747 | H191: ASSENTAMENTO DE TUBO DE PEAD CORRUGADO DE DUPLA PAREDE PARA REDE COLETORA DE ESGOTO, DN 600 MM, JUNTA ELÁSTICA INTEGRADA (NÃO INCLUI FORNECIMENTO). AF_01/2021 | I191: M | J191: COEFICIENTE DE REPRESENTATIVIDADE | K191: 16.9 | L191: CAIXA REFERENCIAL
A192: ASSENTAMENTO DE TUBOS E PECAS | B192: ASTU | C192: FORNEC E/OU ASSENT DE TUBO DE PVC COM JUNTA ELASTICA | D192: 48 | G192: 94869 | H192: TUBO DE PEAD CORRUGADO DE DUPLA PAREDE PARA REDE COLETORA DE ESGOTO, DN 250 MM, JUNTA ELÁSTICA INTEGRADA - FORNECIMENTO E ASSENTAMENTO. AF_01/2021 | I192: M | J192: COEFICIENTE DE REPRESENTATIVIDADE | K192: 133.76 | L192: CAIXA REFERENCIAL
A193: ASSENTAMENTO DE TUBOS E PECAS | B193: ASTU | C193: FORNEC E/OU ASSENT DE TUBO DE PVC COM JUNTA ELASTICA | D193: 48 | G193: 94870 | H193: ASSENTAMENTO DE TUBO DE PEAD CORRUGADO DE DUPLA PAREDE PARA REDE COLETORA DE ESGOTO, DN 250 MM, JUNTA ELÁSTICA INTEGRADA (NÃO INCLUI FORNECIMENTO). AF_01/2021 | I193: M | J193: COEFICIENTE DE REPRESENTATIVIDADE | K193: 1.8 | L193: CAIXA REFERENCIAL
A194: ASSENTAMENTO DE TUBOS E PECAS | B194: ASTU | C194: FORNEC E/OU ASSENT DE TUBO DE PVC COM JUNTA ELASTICA | D194: 48 | G194: 94871 | H194: TUBO DE PEAD CORRUGADO DE DUPLA PAREDE PARA REDE COLETORA DE ESGOTO, DN 300 MM, JUNTA ELÁSTICA INTEGRADA - FORNECIMENTO E ASSENTAMENTO. AF_01/2021 | I194: M | J194: COEFICIENTE DE REPRESENTATIVIDADE | K194: 209.28 | L194: CAIXA REFERENCIAL
A195: ASSENTAMENTO DE TUBOS E PECAS | B195: ASTU | C195: FORNEC E/OU ASSENT DE TUBO DE PVC COM JUNTA ELASTICA | D195: 48 | G195: 94872 | H195: ASSENTAMENTO DE TUBO DE PEAD CORRUGADO DE DUPLA PAREDE PARA REDE COLETORA DE ESGOTO, DN 300 MM, JUNTA ELÁSTICA INTEGRADA (NÃO INCLUI FORNECIMENTO). AF_01/2021 | I195: M | J195: COEFICIENTE DE REPRESENTATIVIDADE | K195: 2.53 | L195: CAIXA REFERENCIAL
A196: ASSENTAMENTO DE TUBOS E PECAS | B196: ASTU | C196: FORNEC E/OU ASSENT DE TUBO DE PVC COM JUNTA ELASTICA | D196: 48 | G196: 94875 | H196: TUBO DE PEAD CORRUGADO DE DUPLA PAREDE PARA REDE COLETORA DE ESGOTO, DN 800 MM, JUNTA ELÁSTICA INTEGRADA - FORNECIMENTO E ASSENTAMENTO. AF_01/2021 | I196: M | J196: COEFICIENTE DE REPRESENTATIVIDADE | K196: 1232.9 | L196: CAIXA REFERENCIAL
A197: ASSENTAMENTO DE TUBOS E PECAS | B197: ASTU | C197: FORNEC E/OU ASSENT DE TUBO DE PVC COM JUNTA ELASTICA | D197: 48 | G197: 94876 | H197: ASSENTAMENTO DE TUBO DE PEAD CORRUGADO DE DUPLA PAREDE PARA REDE COLETORA DE ESGOTO, DN 800 MM, JUNTA ELÁSTICA INTEGRADA (NÃO INCLUI FORNECIMENTO). AF_01/2021 | I197: M | J197: COEFICIENTE DE REPRESENTATIVIDADE | K197: 28.25 | L197: CAIXA REFERENCIAL
A198: ASSENTAMENTO DE TUBOS E PECAS | B198: ASTU | C198: FORNEC E/OU ASSENT DE TUBO DE PVC COM JUNTA ELASTICA | D198: 48 | G198: 94878 | H198: ASSENTAMENTO DE TUBO DE PEAD CORRUGADO DE DUPLA PAREDE PARA REDE COLETORA DE ESGOTO, DN 900 MM, JUNTA ELÁSTICA INTEGRADA (NÃO INCLUI FORNECIMENTO). AF_01/2021 | I198: M | J198: COEFICIENTE DE REPRESENTATIVIDADE | K198: 32.69 | L198: CAIXA REFERENCIAL
A199: ASSENTAMENTO DE TUBOS E PECAS | B199: ASTU | C199: FORNEC E/OU ASSENT DE TUBO DE PVC COM JUNTA ELASTICA | D199: 48 | G199: 94879 | H199: TUBO DE PEAD CORRUGADO DE DUPLA PAREDE PARA REDE COLETORA DE ESGOTO, DN 1000 MM, JUNTA ELÁSTICA INTEGRADA - FORNECIMENTO E ASSENTAMENTO. AF_01/2021 | I199: M | J199: COEFICIENTE DE REPRESENTATIVIDADE | K199: 1897.81 | L199: CAIXA REFERENCIAL
A200: ASSENTAMENTO DE TUBOS E PECAS | B200: ASTU | C200: FORNEC E/OU ASSENT DE TUBO DE PVC COM JUNTA ELASTICA | D200: 48 | G200: 94880 | H200: ASSENTAMENTO DE TUBO DE PEAD CORRUGADO DE DUPLA PAREDE PARA REDE COLETORA DE ESGOTO, DN 1000 MM, JUNTA ELÁSTICA INTEGRADA (NÃO INCLUI FORNECIMENTO). AF_01/2021 | I200: M | J200: COEFICIENTE DE REPRESENTATIVIDADE | K200: 42.08 | L200: CAIXA REFERENCIAL
A201: ASSENTAMENTO DE TUBOS E PECAS | B201: ASTU | C201: FORNEC E/OU ASSENT DE TUBO DE PVC COM JUNTA ELASTICA | D201: 48 | G201: 94881 | H201: TUBO DE PEAD CORRUGADO DE DUPLA PAREDE PARA REDE COLETORA DE ESGOTO, DN 1200 MM, JUNTA ELÁSTICA INTEGRADA - FORNECIMENTO E ASSENTAMENTO. AF_01/2021 | I201: M | J201: COEFICIENTE DE REPRESENTATIVIDADE | K201: 2613.68 | L201: CAIXA REFERENCIAL
A202: ASSENTAMENTO DE TUBOS E PECAS | B202: ASTU | C202: FORNEC E/OU ASSENT DE TUBO DE PVC COM JUNTA ELASTICA | D202: 48 | G202: 94882 | H202: ASSENTAMENTO DE TUBO DE PEAD CORRUGADO DE DUPLA PAREDE PARA REDE COLETORA DE ESGOTO, DN 1200 MM, JUNTA ELÁSTICA INTEGRADA (NÃO INCLUI FORNECIMENTO). AF_01/2021 | I202: M | J202: COEFICIENTE DE REPRESENTATIVIDADE | K202: 48.93 | L202: CAIXA REFERENCIAL
... 7547 more rows

Sheet Ins SINAPI MG 09-2024 Desoner (hidden)
A1: PRECOS DE INSUMOS - BANCO NACIONAL
A3: MES DE COLETA: 09/2024
A4: LOCALIDADE: 1950 - BELO HORIZONTE
A5: ENCARGOS SOCIAIS (%) HORISTA 108,90 MENSALISTA 67,79
A7: CODIGO | B7: DESCRICAO DO INSUMO | C7: UNIDADE DE MEDIDA | D7: ORIGEM DO PRECO | E7: PRECO MEDIANO R$
A8: 38605 | B8: ABERTURA PARA ENCAIXE DE CUBA OU LAVATORIO EM BANCADA DE MARMORE/ GRANITO OU OUTRO TIPO DE PEDRA NATURAL | C8: UN | D8: CR | E8: 115.31
A9: 11270 | B9: ABRACADEIRA DE LATAO PARA FIXACAO DE CABO PARA-RAIO, DIMENSOES 32 X 24 X 24 MM | C9: UN | D9: CR | E9: 3.54
A10: 412 | B10: ABRACADEIRA DE NYLON PARA AMARRACAO DE CABOS, COMPRIMENTO DE *230* X *7,6* MM | C10: UN | D10: CR | E10: 1.02
A11: 414 | B11: ABRACADEIRA DE NYLON PARA AMARRACAO DE CABOS, COMPRIMENTO DE 100 X 2,5 MM | C11: UN | D11: CR | E11: 0.06
A12: 410 | B12: ABRACADEIRA DE NYLON PARA AMARRACAO DE CABOS, COMPRIMENTO DE 150 X *3,6* MM | C12: UN | D12: CR | E12: 0.15
A13: 411 | B13: ABRACADEIRA DE NYLON PARA AMARRACAO DE CABOS, COMPRIMENTO DE 200 X *4,6* MM | C13: UN | D13: C | E13: 0.2
A14: 408 | B14: ABRACADEIRA DE NYLON PARA AMARRACAO DE CABOS, COMPRIMENTO DE 390 X *4,6* MM | C14: UN | D14: CR | E14: 0.99
A15: 39131 | B15: ABRACADEIRA EM ACO PARA AMARRACAO DE ELETRODUTOS, TIPO D, COM 1 1/2" E CUNHA DE FIXACAO | C15: UN | D15: CR | E15: 3.11
A16: 394 | B16: ABRACADEIRA EM ACO PARA AMARRACAO DE ELETRODUTOS, TIPO D, COM 1 1/2" E PARAFUSO DE FIXACAO | C16: UN | D16: CR | E16: 3.15
A17: 39130 | B17: ABRACADEIRA EM ACO PARA AMARRACAO DE ELETRODUTOS, TIPO D, COM 1 1/4" E CUNHA DE FIXACAO | C17: UN | D17: CR | E17: 2.84
A18: 395 | B18: ABRACADEIRA EM ACO PARA AMARRACAO DE ELETRODUTOS, TIPO D, COM 1 1/4" E PARAFUSO DE FIXACAO | C18: UN | D18: CR | E18: 3.03
A19: 39127 | B19: ABRACADEIRA EM ACO PARA AMARRACAO DE ELETRODUTOS, TIPO D, COM 1/2" E CUNHA DE FIXACAO | C19: UN | D19: CR | E19: 1.49
A20: 392 | B20: ABRACADEIRA EM ACO PARA AMARRACAO DE ELETRODUTOS, TIPO D, COM 1/2" E PARAFUSO DE FIXACAO | C20: UN | D20: CR | E20: 1.53
A21: 39129 | B21: ABRACADEIRA EM ACO PARA AMARRACAO DE ELETRODUTOS, TIPO D, COM 1" E CUNHA DE FIXACAO | C21: UN | D21: CR | E21: 1.75
A22: 393 | B22: ABRACADEIRA EM ACO PARA AMARRACAO DE ELETRODUTOS, TIPO D, COM 1" E PARAFUSO DE FIXACAO | C22: UN | D22: C | E22: 1.83
A23: 39133 | B23: ABRACADEIRA EM ACO PARA AMARRACAO DE ELETRODUTOS, TIPO D, COM 2 1/2" E CUNHA DE FIXACAO | C23: UN | D23: CR | E23: 4.08
A24: 397 | B24: ABRACADEIRA EM ACO PARA AMARRACAO DE ELETRODUTOS, TIPO D, COM 2 1/2" E PARAFUSO DE FIXACAO | C24: UN | D24: CR | E24: 4.51
A25: 39132 | B25: ABRACADEIRA EM ACO PARA AMARRACAO DE ELETRODUTOS, TIPO D, COM 2" E CUNHA DE FIXACAO | C25: UN | D25: CR | E25: 3.27
A26: 396 | B26: ABRACADEIRA EM ACO PARA AMARRACAO DE ELETRODUTOS, TIPO D, COM 2" E PARAFUSO DE FIXACAO | C26: UN | D26: CR | E26: 3.5
A27: 39135 | B27: ABRACADEIRA EM ACO PARA AMARRACAO DE ELETRODUTOS, TIPO D, COM 3 1/2" E CUNHA DE FIXACAO | C27: UN | D27: CR | E27: 6.54
A28: 39128 | B28: ABRACADEIRA EM ACO PARA AMARRACAO DE ELETRODUTOS, TIPO D, COM 3/4" E CUNHA DE FIXACAO | C28: UN | D28: CR | E28: 1.63
A29: 400 | B29: ABRACADEIRA EM ACO PARA AMARRACAO DE ELETRODUTOS, TIPO D, COM 3/4" E PARAFUSO DE FIXACAO | C29: UN | D29: CR | E29: 1.59
A30: 39125 | B30: ABRACADEIRA EM ACO PARA AMARRACAO DE ELETRODUTOS, TIPO D, COM 3/8" E PARAFUSO DE FIXACAO | C30: UN | D30: CR | E30: 1.63
A31: 39134 | B31: ABRACADEIRA EM ACO PARA AMARRACAO DE ELETRODUTOS, TIPO D, COM 3" E CUNHA DE FIXACAO | C31: UN | D31: CR | E31: 5.45
A32: 398 | B32: ABRACADEIRA EM ACO PARA AMARRACAO DE ELETRODUTOS, TIPO D, COM 3" E PARAFUSO DE FIXACAO | C32: UN | D32: CR | E32: 5.02
A33: 39126 | B33: ABRACADEIRA EM ACO PARA AMARRACAO DE ELETRODUTOS, TIPO D, COM 4" E CUNHA DE FIXACAO | C33: UN | D33: CR | E33: 7.35
A34: 399 | B34: ABRACADEIRA EM ACO PARA AMARRACAO DE ELETRODUTOS, TIPO D, COM 4" E PARAFUSO DE FIXACAO | C34: UN | D34: CR | E34: 6.48
A35: 39158 | B35: ABRACADEIRA EM ACO PARA AMARRACAO DE ELETRODUTOS, TIPO ECONOMICA (GOTA), COM 8" | C35: UN | D35: CR | E35: 17.4
A36: 39141 | B36: ABRACADEIRA EM ACO PARA AMARRACAO DE ELETRODUTOS, TIPO U SIMPLES, COM 1 1/2" | C36: UN | D36: CR | E36: 1.26
A37: 39140 | B37: ABRACADEIRA EM ACO PARA AMARRACAO DE ELETRODUTOS, TIPO U SIMPLES, COM 1 1/4" | C37: UN | D37: CR | E37: 1.14
A38: 39137 | B38: ABRACADEIRA EM ACO PARA AMARRACAO DE ELETRODUTOS, TIPO U SIMPLES, COM 1/2" | C38: UN | D38: CR | E38: 0.66
A39: 39139 | B39: ABRACADEIRA EM ACO PARA AMARRACAO DE ELETRODUTOS, TIPO U SIMPLES, COM 1" | C39: UN | D39: CR | E39: 0.95
A40: 39143 | B40: ABRACADEIRA EM ACO PARA AMARRACAO DE ELETRODUTOS, TIPO U SIMPLES, COM 2 1/2" | C40: UN | D40: CR | E40: 2.6
A41: 39142 | B41: ABRACADEIRA EM ACO PARA AMARRACAO DE ELETRODUTOS, TIPO U SIMPLES, COM 2" | C41: UN | D41: CR | E41: 1.86
A42: 39138 | B42: ABRACADEIRA EM ACO PARA AMARRACAO DE ELETRODUTOS, TIPO U SIMPLES, COM 3/4" | C42: UN | D42: CR | E42: 0.7
A43: 39136 | B43: ABRACADEIRA EM ACO PARA AMARRACAO DE ELETRODUTOS, TIPO U SIMPLES, COM 3/8" | C43: UN | D43: CR | E43: 0.46
A44: 39144 | B44: ABRACADEIRA EM ACO PARA AMARRACAO DE ELETRODUTOS, TIPO U SIMPLES, COM 3" | C44: UN | D44: CR | E44: 3.03
A45: 39145 | B45: ABRACADEIRA EM ACO PARA AMARRACAO DE ELETRODUTOS, TIPO U SIMPLES, COM 4" | C45: UN | D45: CR | E45: 5
A46: 12615 | B46: ABRACADEIRA PVC, PARA CALHA PLUVIAL, DIAMETRO ENTRE *80 E 100* MM, PARA DRENAGEM PLUVIAL PREDIAL | C46: UN | D46: CR | E46: 12.17
A47: 11927 | B47: ABRACADEIRA, GALVANIZADA/ZINCADA, ROSCA SEM FIM, PARAFUSO INOX, LARGURA FITA *12,6 A *14 MM, D = 2" A 2 1/2" | C47: UN | D47: CR | E47: 10.56
A48: 11928 | B48: ABRACADEIRA, GALVANIZADA/ZINCADA, ROSCA SEM FIM, PARAFUSO INOX, LARGURA FITA *12,6 A *14 MM, D = 3" A 3 3/4" | C48: UN | D48: CR | E48: 12.1
A49: 11929 | B49: ABRACADEIRA, GALVANIZADA/ZINCADA, ROSCA SEM FIM, PARAFUSO INOX, LARGURA FITA *12,6 A *14 MM, D = 4" A 4 3/4" | C49: UN | D49: CR | E49: 18.72
A50: 36801 | B50: ACABAMENTO DE METAL CROMADO PARA REGISTRO PEQUENO, DE PAREDE, 1/2" OU 3/4" | C50: UN | D50: CR | E50: 36.16
A51: 36246 | B51: ACABAMENTO SIMPLES/CONVENCIONAL PARA FORRO PVC, TIPO "U" OU "C", COR BRANCA, COMPRIMENTO 6 M | C51: M | D51: CR | E51: 4.32
A52: 37600 | B52: ACESSORIO DE LIGACAO NAO ELETRICO PARA CARGAS EXPLOSIVAS, TUBO DE 6 M | C52: UN | D52: AS | E52: 106.49
A53: 37599 | B53: ACESSORIO INICIADOR NAO ELETRICO, TUBO DE 6 M, TEMPO DE RETARDO DE *160* MS | C53: UN | D53: AS | E53: 99.11
A54: 1 | B54: ACETILENO (RECARGA DE GAS ACETILENO PARA CILINDRO DE CONJUNTO OXICORTE GRANDE) NAO INCLUI TROCA/MANUTENCAO DO CILINDRO | C54: KG | D54: C | E54: 120.75
A55: 3 | B55: ACIDO CLORIDRICO / ACIDO MURIATICO, DILUICAO 10% A 12% PARA USO EM LIMPEZA | C55: L | D55: CR | E55: 23.04
A56: 43054 | B56: ACO CA-25, 10,0 MM, OU 12,5 MM, OU 16,0 MM, OU 20,0 MM, OU 25,0 MM, VERGALHAO | C56: KG | D56: CR | E56: 8.51
A57: 42402 | B57: ACO CA-25, 16,0 MM, BARRA DE TRANSFERENCIA | C57: KG | D57: CR | E57: 8.13
A58: 42403 | B58: ACO CA-25, 20,0 MM, BARRA DE TRANSFERENCIA | C58: KG | D58: CR | E58: 10.43
A59: 42404 | B59: ACO CA-25, 25,0 MM, BARRA DE TRANSFERENCIA | C59: KG | D59: CR | E59: 10.37
A60: 42405 | B60: ACO CA-25, 32,0 MM, BARRA DE TRANSFERENCIA | C60: KG | D60: CR | E60: 11.05
A61: 34341 | B61: ACO CA-25, 32,0 MM, VERGALHAO | C61: KG | D61: CR | E61: 9.59
A62: 43053 | B62: ACO CA-25, 6,3 MM OU 8,0 MM, VERGALHAO | C62: KG | D62: CR | E62: 7.6
A63: 43058 | B63: ACO CA-50, 10,0 MM, OU 12,5 MM, OU 16,0 MM, OU 20,0 MM, DOBRADO E CORTADO | C63: KG | D63: CR | E63: 7.88
A64: 34 | B64: ACO CA-50, 10,0 MM, VERGALHAO | C64: KG | D64: CR | E64: 7.92
A65: 43055 | B65: ACO CA-50, 12,5 MM OU 16,0 MM, VERGALHAO | C65: KG | D65: C | E65: 6.86
A66: 43056 | B66: ACO CA-50, 20,0 MM OU 25,0 MM, VERGALHAO | C66: KG | D66: CR | E66: 7.91
A67: 43057 | B67: ACO CA-50, 32,0 MM, VERGALHAO | C67: KG | D67: CR | E67: 8.69
A68: 34449 | B68: ACO CA-50, 6,3 MM, DOBRADO E CORTADO | C68: KG | D68: CR | E68: 9.29
A69: 32 | B69: ACO CA-50, 6,3 MM, VERGALHAO | C69: KG | D69: CR | E69: 8.35
A70: 33 | B70: ACO CA-50, 8,0 MM, VERGALHAO | C70: KG | D70: CR | E70: 8.4
A71: 43061 | B71: ACO CA-60, 4,2 MM OU 5,0 MM, DOBRADO E CORTADO | C71: KG | D71: CR | E71: 7.85
A72: 43059 | B72: ACO CA-60, 4,2 MM, OU 5,0 MM, OU 6,0 MM, OU 7,0 MM, VERGALHAO | C72: KG | D72: CR | E72: 7.49
A73: 43062 | B73: ACO CA-60, 6,0 MM OU 7,0 MM, DOBRADO E CORTADO | C73: KG | D73: CR | E73: 8.3
A74: 43060 | B74: ACO CA-60, 8,0 MM OU 9,5 MM, VERGALHAO | C74: KG | D74: CR | E74: 6.53
A75: 40410 | B75: ACOPLAMENTO RIGIDO EM FERRO FUNDIDO PARA SISTEMA DE TUBULACAO RANHURADA, DN 50 MM (2") | C75: UN | D75: AS | E75: 20
A76: 40411 | B76: ACOPLAMENTO RIGIDO EM FERRO FUNDIDO PARA SISTEMA DE TUBULACAO RANHURADA, DN 65 MM (2 1/2") | C76: UN | D76: AS | E76: 21.7
A77: 40412 | B77: ACOPLAMENTO RIGIDO EM FERRO FUNDIDO PARA SISTEMA DE TUBULACAO RANHURADA, DN 80 MM (3") | C77: UN | D77: AS | E77: 24.36
A78: 44254 | B78: ADAPTADOR CPVC, ROSCAVEL, COM FLANGES E ANEL DE VEDACAO, 15 MM, CAIXA D'AGUA PARA AGUA QUENTE | C78: UN | D78: CR | E78: 28.88
A79: 44255 | B79: ADAPTADOR CPVC, ROSCAVEL, COM FLANGES E ANEL DE VEDACAO, 22 MM, CAIXA D'AGUA PARA AGUA QUENTE | C79: UN | D79: CR | E79: 32.01
A80: 44256 | B80: ADAPTADOR CPVC, ROSCAVEL, COM FLANGES E ANEL DE VEDACAO, 28 MM, CAIXA D'AGUA PARA AGUA QUENTE | C80: UN | D80: CR | E80: 36.15
A81: 44257 | B81: ADAPTADOR CPVC, ROSCAVEL, COM FLANGES E ANEL DE VEDACAO, 35 MM, CAIXA D'AGUA PARA AGUA QUENTE | C81: UN | D81: CR | E81: 57.2
A82: 44258 | B82: ADAPTADOR CPVC, ROSCAVEL, COM FLANGES E ANEL DE VEDACAO, 42 MM, CAIXA D'AGUA PARA AGUA QUENTE | C82: UN | D82: CR | E82: 65.37
A83: 44259 | B83: ADAPTADOR CPVC, ROSCAVEL, COM FLANGES E ANEL DE VEDACAO, 54 MM, CAIXA D'AGUA PARA AGUA QUENTE | C83: UN | D83: CR | E83: 89.72
A84: 37997 | B84: ADAPTADOR CPVC, SOLDAVEL, 15 MM, PARA AGUA QUENTE | C84: UN | D84: CR | E84: 17.21
A85: 37998 | B85: ADAPTADOR CPVC, SOLDAVEL, 22 MM, PARA AGUA QUENTE | C85: UN | D85: CR | E85: 23.03
A86: 55 | B86: ADAPTADOR DE COMPRESSAO EM POLIPROPILENO (PP), PARA TUBO EM PEAD, 20 MM X 1/2", PARA LIGACAO PREDIAL DE AGUA (NTS 179) | C86: UN | D86: C | E86: 4.5
A87: 61 | B87: ADAPTADOR DE COMPRESSAO EM POLIPROPILENO (PP), PARA TUBO EM PEAD, 20 MM X 3/4", PARA LIGACAO PREDIAL DE AGUA (NTS 179) | C87: UN | D87: CR | E87: 4.25
A88: 62 | B88: ADAPTADOR DE COMPRESSAO EM POLIPROPILENO (PP), PARA TUBO EM PEAD, 32 MM X 1", PARA LIGACAO PREDIAL DE AGUA (NTS 179) | C88: UN | D88: CR | E88: 8.82
A89: 10899 | B89: ADAPTADOR EM LATAO, ENGATE RAPIDO 2 1/2" X ROSCA INTERNA 5 FIOS 2 1/2", PARA INSTALACAO PREDIAL DE COMBATE A INCENDIO | C89: UN | D89: CR | E89: 78.85
A90: 10900 | B90: ADAPTADOR EM LATAO, ENGATE RAPIDO1 1/2" X ROSCA INTERNA 5 FIOS 2 1/2", PARA INSTALACAO PREDIAL DE COMBATE A INCENDIO | C90: UN | D90: CR | E90: 61.71
A91: 47 | B91: ADAPTADOR PVC PBA, BOLSA/ROSCA, JE, DN 100 / DE 110 MM | C91: UN | D91: CR | E91: 73.95
A92: 48 | B92: ADAPTADOR PVC PBA, BOLSA/ROSCA, JE, DN 50 / DE 60 MM | C92: UN | D92: CR | E92: 19.29
A93: 46 | B93: ADAPTADOR PVC PBA, BOLSA/ROSCA, JE, DN 75 / DE 85 MM | C93: UN | D93: CR | E93: 43.25
A94: 52 | B94: ADAPTADOR PVC PBA, PONTA/ROSCA, JE, DN 50 / DE 60 MM | C94: UN | D94: CR | E94: 14.65
A95: 43 | B95: ADAPTADOR PVC PBA, PONTA/ROSCA, JE, DN 75 / DE 85 MM | C95: UN | D95: CR | E95: 49.46
A96: 103 | B96: ADAPTADOR PVC SOLDAVEL CURTO COM BOLSA E ROSCA, 110 MM X 4", PARA AGUA FRIA | C96: UN | D96: CR | E96: 42.49
A97: 107 | B97: ADAPTADOR PVC SOLDAVEL CURTO COM BOLSA E ROSCA, 20 MM X 1/2", PARA AGUA FRIA | C97: UN | D97: CR | E97: 0.8
A98: 65 | B98: ADAPTADOR PVC SOLDAVEL CURTO COM BOLSA E ROSCA, 25 MM X 3/4", PARA AGUA FRIA | C98: UN | D98: CR | E98: 0.87
A99: 108 | B99: ADAPTADOR PVC SOLDAVEL CURTO COM BOLSA E ROSCA, 32 MM X 1", PARA AGUA FRIA | C99: UN | D99: CR | E99: 1.76
A100: 110 | B100: ADAPTADOR PVC SOLDAVEL CURTO COM BOLSA E ROSCA, 40 MM X 1 1/2", PARA AGUA FRIA | C100: UN | D100: CR | E100: 6.11
A101: 109 | B101: ADAPTADOR PVC SOLDAVEL CURTO COM BOLSA E ROSCA, 40 MM X 1 1/4", PARA AGUA FRIA | C101: UN | D101: CR | E101: 3.64
A102: 111 | B102: ADAPTADOR PVC SOLDAVEL CURTO COM BOLSA E ROSCA, 50 MM X 1 1/4", PARA AGUA FRIA | C102: UN | D102: CR | E102: 8.27
A103: 112 | B103: ADAPTADOR PVC SOLDAVEL CURTO COM BOLSA E ROSCA, 50 MM X1 1/2", PARA AGUA FRIA | C103: UN | D103: CR | E103: 4.38
A104: 113 | B104: ADAPTADOR PVC SOLDAVEL CURTO COM BOLSA E ROSCA, 60 MM X 2", PARA AGUA FRIA | C104: UN | D104: CR | E104: 10.97
A105: 104 | B105: ADAPTADOR PVC SOLDAVEL CURTO COM BOLSA E ROSCA, 75 MM X 2 1/2", PARA AGUA FRIA | C105: UN | D105: CR | E105: 19.1
A106: 102 | B106: ADAPTADOR PVC SOLDAVEL CURTO COM BOLSA E ROSCA, 85 MM X 3", PARA AGUA FRIA | C106: UN | D106: CR | E106: 26.33
A107: 95 | B107: ADAPTADOR PVC SOLDAVEL, COM FLANGE E ANEL DE VEDACAO, 20 MM X 1/2", PARA CAIXA D'AGUA | C107: UN | D107: CR | E107: 11.13
A108: 96 | B108: ADAPTADOR PVC SOLDAVEL, COM FLANGE E ANEL DE VEDACAO, 25 MM X 3/4", PARA CAIXA D'AGUA | C108: UN | D108: CR | E108: 12.1
A109: 97 | B109: ADAPTADOR PVC SOLDAVEL, COM FLANGE E ANEL DE VEDACAO, 32 MM X 1", PARA CAIXA D'AGUA | C109: UN | D109: CR | E109: 18.21
A110: 98 | B110: ADAPTADOR PVC SOLDAVEL, COM FLANGE E ANEL DE VEDACAO, 40 MM X 1 1/4", PARA CAIXA D'AGUA | C110: UN | D110: CR | E110: 27.26
A111: 99 | B111: ADAPTADOR PVC SOLDAVEL, COM FLANGE E ANEL DE VEDACAO, 50 MM X 1 1/2", PARA CAIXA D'AGUA | C111: UN | D111: CR | E111: 25.76
A112: 60 | B112: ADAPTADOR PVC, COM REGISTRO, PARA PEAD, 20 MM X 3/4", PARA LIGACAO PREDIAL DE AGUA | C112: UN | D112: CR | E112: 5.84
A113: 72 | B113: ADAPTADOR PVC, ROSCAVEL, COM FLANGES E ANEL DE VEDACAO, 1 1/2", PARA CAIXA D'AGUA | C113: UN | D113: CR | E113: 49.41
A114: 67 | B114: ADAPTADOR PVC, ROSCAVEL, COM FLANGES E ANEL DE VEDACAO, 1/2", PARA CAIXA D'AGUA | C114: UN | D114: CR | E114: 15.97
A115: 71 | B115: ADAPTADOR PVC, ROSCAVEL, COM FLANGES E ANEL DE VEDACAO, 1", PARA CAIXA D'AGUA | C115: UN | D115: CR | E115: 30.51
A116: 73 | B116: ADAPTADOR PVC, ROSCAVEL, COM FLANGES E ANEL DE VEDACAO, 3/4", PARA CAIXA D'AGUA | C116: UN | D116: CR | E116: 15.29
A117: 100 | B117: ADAPTADOR PVC, SOLDAVEL, COM FLANGES E ANEL DE VEDACAO, 60 MM X 2", PARA CAIXA D'AGUA | C117: UN | D117: CR | E117: 45.01
A118: 75 | B118: ADAPTADOR PVC, SOLDAVEL, COM FLANGES LIVRES, 110 MM X 4", PARA CAIXA D'AGUA | C118: UN | D118: CR | E118: 262.43
A119: 83 | B119: ADAPTADOR PVC, SOLDAVEL, COM FLANGES LIVRES, 75 MM X 2 1/2", PARA CAIXA D'AGUA | C119: UN | D119: CR | E119: 209.8
A120: 74 | B120: ADAPTADOR PVC, SOLDAVEL, COM FLANGES LIVRES, 85 MM X 3", PARA CAIXA D'AGUA | C120: UN | D120: CR | E120: 299.96
A121: 106 | B121: ADAPTADOR PVC, SOLDAVEL, LONGO, COM FLANGE LIVRE, 110 MM X 4", PARA CAIXA D'AGUA | C121: UN | D121: CR | E121: 379.31
A122: 88 | B122: ADAPTADOR PVC, SOLDAVEL, LONGO, COM FLANGE LIVRE, 32 MM X 1", PARA CAIXA D'AGUA | C122: UN | D122: CR | E122: 10.66
A123: 82 | B123: ADAPTADOR PVC, SOLDAVEL, LONGO, COM FLANGE LIVRE, 75 MM X 2 1/2", PARA CAIXA D'AGUA | C123: UN | D123: CR | E123: 199.61
A124: 105 | B124: ADAPTADOR PVC, SOLDAVEL, LONGO, COM FLANGE LIVRE, 85 MM X 3", PARA CAIXA D'AGUA | C124: UN | D124: CR | E124: 282.84
A125: 39719 | B125: ADESIVO / COLA DE CONTATO LIQUIDO, A BASE DE RESINAS, PARA COLAGEM DE ESPUMA PARA ISOLAMENTO TERMICO FLEXIVEL | C125: L | D125: CR | E125: 161.12
A126: 3410 | B126: ADESIVO / COLA PARA EPS (ISOPOR) E OUTROS MATERIAIS | C126: KG | D126: CR | E126: 36.24
A127: 4791 | B127: ADESIVO ACRILICO DE BASE AQUOSA / COLA DE CONTATO | C127: KG | D127: CR | E127: 49.72
A128: 157 | B128: ADESIVO ESTRUTURAL A BASE DE RESINA EPOXI PARA INJECAO EM TRINCAS, BICOMPONENTE, BAIXA VISCOSIDADE | C128: KG | D128: CR | E128: 123.85
A129: 156 | B129: ADESIVO ESTRUTURAL A BASE DE RESINA EPOXI, BICOMPONENTE, FLUIDO | C129: KG | D129: CR | E129: 44.1
A130: 131 | B130: ADESIVO ESTRUTURAL A BASE DE RESINA EPOXI, BICOMPONENTE, PASTOSO (TIXOTROPICO) | C130: KG | D130: CR | E130: 37.71
A131: 21114 | B131: ADESIVO PARA TUBOS CPVC, *75* G | C131: UN | D131: CR | E131: 31.76
A132: 119 | B132: ADESIVO PLASTICO PARA PVC, BISNAGA COM 75 GR | C132: UN | D132: C | E132: 8.05
A133: 122 | B133: ADESIVO PLASTICO PARA PVC, FRASCO COM *850* GR | C133: UN | D133: CR | E133: 61.94
A134: 20080 | B134: ADESIVO PLASTICO PARA PVC, FRASCO COM 175 GR | C134: UN | D134: CR | E134: 20.21
A135: 124 | B135: ADITIVO ACELERADOR DE PEGA E ENDURECIMENTO PARA ARGAMASSAS E CONCRETOS, LIQUIDO E ISENTO DE CLORETOS | C135: L | D135: CR | E135: 14.54
A136: 7334 | B136: ADITIVO ADESIVO LIQUIDO PARA ARGAMASSAS DE REVESTIMENTOS CIMENTICIOS | C136: L | D136: CR | E136: 14.51
A137: 45146 | B137: ADITIVO IMPERMEABILIZANTE CRISTALIZANTE PARA CONCRETO | C137: KG | D137: CR | E137: 27.88
A138: 123 | B138: ADITIVO IMPERMEABILIZANTE DE PEGA NORMAL PARA ARGAMASSAS E CONCRETOS SEM ARMACAO, LIQUIDO E ISENTO DE CLORETOS | C138: L | D138: C | E138: 5.95
A139: 127 | B139: ADITIVO IMPERMEABILIZANTE DE PEGA ULTRARRAPIDA, LIQUIDO E ISENTO DE CLORETOS | C139: L | D139: CR | E139: 14.2
A140: 133 | B140: ADITIVO LIQUIDO INCORPORADOR DE AR PARA CONCRETO E ARGAMASSA, LIQUIDO E ISENTO DE CLORETOS | C140: L | D140: CR | E140: 5.9
A141: 43617 | B141: ADITIVO PLASTIFICANTE E ESTABILIZADOR PARA ARGAMASSAS DE ASSENTAMENTO E REBOCO, LIQUIDO E ISENTO DE CLORETOS | C141: L | D141: CR | E141: 6.59
A142: 132 | B142: ADITIVO PLASTIFICANTE RETARDADOR DE PEGA E REDUTOR DE AGUA PARA CONCRETO, LIQUIDO E ISENTO DE CLORETOS | C142: L | D142: CR | E142: 6.11
A143: 43618 | B143: ADITIVO SUPERPLASTIFICANTE DE PEGA NORMAL PARA CONCRETO, LIQUIDO E ISENTO DE CLORETOS | C143: KG | D143: CR | E143: 15.4
A144: 37476 | B144: ADUELA/ GALERIA PRE-MOLDADA DE CONCRETO ARMADO, SECAO QUADRADA INTERNA DE 1,50 X 1,50 M (L X A), MISULA DE 20 X 20 CM, C = 1,00 M, ESPESSURA MIN = 15 CM, TB-45 E FCK DO CONCRETO = 30 MPA | C144: UN | D144: CR | E144: 4076.47
A145: 37478 | B145: ADUELA/ GALERIA PRE-MOLDADA DE CONCRETO ARMADO, SECAO RETANGULAR INTERNA DE 2,00 X 2,00 M (L X A), MISULA DE 20 X 20 CM, C = 1,00 M, ESPESSURA MIN = 15 CM, TB-45 E FCK DO CONCRETO = 30 MPA | C145: UN | D145: CR | E145: 5105.88
A146: 37477 | B146: ADUELA/ GALERIA PRE-MOLDADA DE CONCRETO ARMADO, SECAO RETANGULAR INTERNA DE 2,50 X 2,50 M (L X A), MISULA DE 20 X 20 CM, C = 1,00 M, ESPESSURA MIN = 15 CM, TB-45 E FCK DO CONCRETO = 30 MPA | C146: UN | D146: CR | E146: 6917.64
A147: 37479 | B147: ADUELA/ GALERIA PRE-MOLDADA DE CONCRETO ARMADO, SECAO RETANGULAR INTERNA DE 3,00 X 3,00 M (L X A), MISULA DE 20 X 20 CM, C = 1.00 M, ESPESSURA MIN = 20 CM, TB-45 E FCK DO CONCRETO = 30 MPA | C147: UN | D147: CR | E147: 8204.41
A148: 4319 | B148: AFASTADOR PARA TELHA DE FIBROCIMENTO CANALETE 90 OU KALHETAO | C148: UN | D148: CR | E148: 2.37
A149: 42409 | B149: AGENTE DE CURA, PROTETOR DA EVAPORACAO DA AGUA DE HIDRATACAO DO CONCRETO | C149: KG | D149: CR | E149: 9.69
A150: 40553 | B150: AGREGADO RECICLADO, TIPO RACHAO RECICLADO CINZA, CLASSE A | C150: M3 | D150: AS | E150: 60
A151: 6114 | B151: AJUDANTE DE ARMADOR (HORISTA) | C151: H | D151: CR | E151: 16.33
A152: 40912 | B152: AJUDANTE DE ARMADOR (MENSALISTA) | C152: MES | D152: CR | E152: 2888.16
A153: 247 | B153: AJUDANTE DE ELETRICISTA (HORISTA) | C153: H | D153: CR | E153: 16.33
A154: 40919 | B154: AJUDANTE DE ELETRICISTA (MENSALISTA) | C154: MES | D154: CR | E154: 2888.16
A155: 44499 | B155: AJUDANTE DE ESTRUTURAS METALICAS (HORISTA) | C155: H | D155: CR | E155: 16.33
A156: 40984 | B156: AJUDANTE DE ESTRUTURAS METALICAS (MENSALISTA) | C156: MES | D156: CR | E156: 2888.16
A157: 248 | B157: AJUDANTE DE OPERACAO EM GERAL (HORISTA) | C157: H | D157: CR | E157: 17.69
A158: 41086 | B158: AJUDANTE DE OPERACAO EM GERAL (MENSALISTA) | C158: MES | D158: CR | E158: 3130.25
A159: 34466 | B159: AJUDANTE DE PINTOR (HORISTA) | C159: H | D159: CR | E159: 16.33
A160: 41083 | B160: AJUDANTE DE PINTOR (MENSALISTA) | C160: MES | D160: CR | E160: 2888.16
A161: 252 | B161: AJUDANTE DE SERRALHEIRO (HORISTA) | C161: H | D161: CR | E161: 16.33
A162: 40909 | B162: AJUDANTE DE SERRALHEIRO (MENSALISTA) | C162: MES | D162: CR | E162: 2888.16
A163: 242 | B163: AJUDANTE ESPECIALIZADO (HORISTA) | C163: H | D163: CR | E163: 17.69
A164: 41085 | B164: AJUDANTE ESPECIALIZADO (MENSALISTA) | C164: MES | D164: CR | E164: 3130.25
A165: 427 | B165: ALCA PREFORMADA DE CONTRA POSTE, EM ACO GALVANIZADO, PARA CABO 3/16", COMPRIMENTO *860* MM | C165: UN | D165: AS | E165: 6.55
A166: 417 | B166: ALCA PREFORMADA DE DISTRIBUICAO, EM ACO GALVANIZADO, PARA CABO DE ALUMINIO DIAMETRO 16 A 25 MM | C166: UN | D166: AS | E166: 3.08
A167: 11273 | B167: ALCA PREFORMADA DE DISTRIBUICAO, EM ACO GALVANIZADO, PARA CONDUTORES DE ALUMINIO AWG 1/0 (CAA 6/1 OU CA 7 FIOS) | C167: UN | D167: AS | E167: 9.58
A168: 11272 | B168: ALCA PREFORMADA DE DISTRIBUICAO, EM ACO GALVANIZADO, PARA CONDUTORES DE ALUMINIO AWG 2 (CAA 6/1 OU CA 7 FIOS) | C168: UN | D168: AS | E168: 5.78
A169: 11275 | B169: ALCA PREFORMADA DE SERVICO, EM ACO GALVANIZADO, PARA CONDUTORES DE ALUMINIO AWG 4 (CAA 6/1) | C169: UN | D169: AS | E169: 2.32
A170: 11274 | B170: ALCA PREFORMADA DE SERVICO, EM ACO GALVANIZADO, PARA CONDUTORES DE ALUMINIO AWG 6 (CAA 6/1) | C170: UN | D170: AS | E170: 1.77
A171: 38470 | B171: ALICATE DE CORTE DIAGONAL 6" COM ISOLAMENTO | C171: UN | D171: C | E171: 34.45
A172: 38547 | B172: ALICATE DE CRIMPAR RJ11, RJ12 E RJ45 | C172: UN | D172: CR | E172: 94.01
A173: 38469 | B173: ALICATE DE PRESSAO PARA SOLDA DE CHAPA 18" | C173: UN | D173: CR | E173: 101.08
A174: 38467 | B174: ALICATE DE PRESSAO 11" PARA SOLDA, TIPO C | C174: UN | D174: CR | E174: 56.87
A175: 38468 | B175: ALICATE DE PRESSAO 11" PARA SOLDA, TIPO U | C175: UN | D175: CR | E175: 62.59
A176: 38471 | B176: ALICATE PARA ANEIS DE PISTAO, CAPACIDADE 50 A 100 MM | C176: UN | D176: CR | E176: 81.28
A177: 37370 | B177: ALIMENTACAO - HORISTA (COLETADO CAIXA - ENCARGOS COMPLEMENTARES) | C177: H | D177: C | E177: 1.89
A178: 40862 | B178: ALIMENTACAO - MENSALISTA (COLETADO CAIXA - ENCARGOS COMPLEMENTARES) | C178: MES | D178: C | E178: 355.72
A179: 10658 | B179: ALISADORA DE CONCRETO COM MOTOR A GASOLINA DE 5,5 HP, PESO COM MOTOR DE 78 KG, 4 PAS | C179: UN | D179: AS | E179: 7709
A180: 253 | B180: ALMOXARIFE (HORISTA) | C180: H | D180: C | E180: 21.62
A181: 40809 | B181: ALMOXARIFE (MENSALISTA) | C181: MES | D181: CR | E181: 3820.57
A182: 42428 | B182: ALONGADOR COM TRES ALTURAS, EM TUBO DE ACO CARBONO, PINTURA NO PROCESSO ELETROSTATICO - EQUIPAMENTO DE GINASTICA PARA ACADEMIA AO AR LIVRE / ACADEMIA DA TERCEIRA IDADE - ATI | C182: UN | D182: AS | E182: 2271
A183: 301 | B183: ANEL BORRACHA PARA TUBO ESGOTO PREDIAL, DN 100 MM (NBR 5688) | C183: UN | D183: C | E183: 2.85
A184: 296 | B184: ANEL BORRACHA PARA TUBO ESGOTO PREDIAL, DN 50 MM (NBR 5688) | C184: UN | D184: CR | E184: 1.61
A185: 297 | B185: ANEL BORRACHA PARA TUBO ESGOTO PREDIAL, DN 75 MM (NBR 5688) | C185: UN | D185: CR | E185: 2.36
A186: 299 | B186: ANEL BORRACHA, DN 100 MM, PARA TUBO SERIE REFORCADA ESGOTO PREDIAL | C186: UN | D186: CR | E186: 3.34
A187: 300 | B187: ANEL BORRACHA, DN 150 MM, PARA TUBO SERIE REFORCADA ESGOTO PREDIAL | C187: UN | D187: CR | E187: 11.57
A188: 20085 | B188: ANEL BORRACHA, DN 50 MM, PARA TUBO SERIE REFORCADA ESGOTO PREDIAL | C188: UN | D188: CR | E188: 2.11
A189: 298 | B189: ANEL BORRACHA, DN 75 MM, PARA TUBO SERIE REFORCADA ESGOTO PREDIAL | C189: UN | D189: CR | E189: 2.57
A190: 311 | B190: ANEL BORRACHA, PARA TUBO PVC DEFOFO, DN 100 MM (NBR 7665) | C190: UN | D190: CR | E190: 9.54
A191: 318 | B191: ANEL BORRACHA, PARA TUBO PVC DEFOFO, DN 150 MM (NBR 7665) | C191: UN | D191: CR | E191: 19.21
A192: 319 | B192: ANEL BORRACHA, PARA TUBO PVC DEFOFO, DN 200 MM (NBR 7665) | C192: UN | D192: CR | E192: 30.12
A193: 303 | B193: ANEL BORRACHA, PARA TUBO PVC, REDE COLETOR ESGOTO, DN 100 MM (NBR 7362) | C193: UN | D193: CR | E193: 3.15
A194: 305 | B194: ANEL BORRACHA, PARA TUBO PVC, REDE COLETOR ESGOTO, DN 150 MM (NBR 7362) | C194: UN | D194: CR | E194: 9.93
A195: 306 | B195: ANEL BORRACHA, PARA TUBO PVC, REDE COLETOR ESGOTO, DN 200 MM (NBR 7362) | C195: UN | D195: CR | E195: 15.06
A196: 307 | B196: ANEL BORRACHA, PARA TUBO PVC, REDE COLETOR ESGOTO, DN 250 MM (NBR 7362) | C196: UN | D196: CR | E196: 38.05
A197: 309 | B197: ANEL BORRACHA, PARA TUBO PVC, REDE COLETOR ESGOTO, DN 350 MM (NBR 7362) | C197: UN | D197: CR | E197: 62.34
A198: 310 | B198: ANEL BORRACHA, PARA TUBO PVC, REDE COLETOR ESGOTO, DN 400 MM (NBR 7362) | C198: UN | D198: CR | E198: 86.4
A199: 328 | B199: ANEL BORRACHA, PARA TUBO/CONEXAO PVC PBA, DN 100 MM, PARA REDE AGUA | C199: UN | D199: CR | E199: 7.55
A200: 325 | B200: ANEL BORRACHA, PARA TUBO/CONEXAO PVC PBA, DN 50 MM, PARA REDE AGUA | C200: UN | D200: CR | E200: 2.23
A201: 20326 | B201: ANEL BORRACHA, PARA TUBO/CONEXAO PVC PBA, DN 60 MM, PARA REDE AGUA | C201: UN | D201: CR | E201: 4.07
A202: 329 | B202: ANEL BORRACHA, PARA TUBO/CONEXAO PVC PBA, DN 75 MM, PARA REDE AGUA | C202: UN | D202: CR | E202: 6.31
... 4737 more rows

Sheet Cotação Voos
A1: COTAÇÕES - IDA DIA 24/03/2025 E VOLTA DIA 28/03/2025 | H1: COTAÇÕES - IDA DIA 24/03/2025 E VOLTA DIA 28/03/2025 | O1: COTAÇÕES - IDA DIA 24/03/2025 E VOLTA DIA 28/03/2025 | V1: COTAÇÕES - IDA DIA 24/03/2025 E VOLTA DIA 28/03/2025 | AC1: COTAÇÕES - IDA DIA 24/03/2025 E VOLTA DIA 28/03/2025
A2: Localidade: | B2: Montes Claros/MG | H2: Localidade: | I2: Guanambi/BA | O2: Localidade: | P2: Petrolina/PE | V2: Localidade: | W2: Aracaju/SE | AC2: Localidade: | AD2: Maceio/AL
A4: Origem | B4: Destino | H4: Origem | I4: Destino | O4: Origem | P4: Destino | V4: Origem | W4: Destino | AC4: Origem | AD4: Destino
A5: Brasilia/DF | B5: Montes Claros/MG | C5: Cia 1 | D5: Cia 2 | E5: Cia 3 | H5: Brasilia/DF | I5: Guanambi/BA | J5: Cia 1 | K5: Cia 2 | L5: Cia 3 | O5: Brasilia/DF | P5: Petrolina/PE | Q5: Cia 1 | R5: Cia 2 | S5: Cia 3 | V5: Brasilia/DF | W5: Aracaju/SE | X5: Cia 1 | Y5: Cia 2 | Z5: Cia 3 | AC5: Brasilia/DF | AD5: Maceio/AL | AE5: Cia 1 | AF5: Cia 2 | AG5: Cia 3
C6: 867 | D6: 867 | E6: 2266 | J6: 1379 | K6: - | L6: - | Q6: 1500 | R6: 1599 | S6: 2118 | X6: 1001 | Y6: 1368 | Z6: 2433 | AE6: 1557 | AF6: 1557 | AG6: 4502
A31: São Paulo/SP | B31: Montes Claros/MG | C31: Cia 1 | D31: Cia 2 | E31: Cia 3 | H31: São Paulo/SP | I31: Guanambi/BA | J31: Cia 1 | K31: Cia 2 | L31: Cia 3 | O31: São Paulo/SP | P31: Petrolina/PE | Q31: Cia 1 | R31: Cia 2 | S31: Cia 3 | V31: São Paulo/SP | W31: Aracaju/SE | X31: Cia 1 | Y31: Cia 2 | Z31: Cia 3 | AC31: São Paulo/SP | AD31: Maceio/AL | AE31: Cia 1 | AF31: Cia 2 | AG31: Cia 3
C32: 706 | D32: 706 | E32: 857 | J32: 2995 | K32: - | L32: - | Q32: 862 | R32: 862 | S32: 871 | X32: 1063 | Y32: 1063 | Z32: 1063 | AE32: 1286 | AF32: 1286 | AG32: 1894
A57: Curitiba/PR | B57: Montes Claros/MG | C57: Cia 1 | D57: Cia 2 | E57: Cia 3 | H57: Curitiba/PR | I57: Guanambi/BA | J57: Cia 1 | K57: Cia 2 | L57: Cia 3 | O57: Curitiba/PR | P57: Petrolina/PE | Q57: Cia 1 | R57: Cia 2 | S57: Cia 3 | V57: Curitiba/PR | W57: Aracaju/SE | X57: Cia 1 | Y57: Cia 2 | Z57: Cia 3 | AC57: Curitiba/PR | AD57: Maceio/AL | AE57: Cia 1 | AF57: Cia 2 | AG57: Cia 3
C58: 835 | D58: 835 | E58: 1110 | J58: 4498 | K58: - | L58: - | Q58: 2307 | R58: 3287 | S58: 5677 | X58: 1195 | Y58: 1422 | Z58: 1846 | AE58: 1436 | AF58: 1532 | AG58: 1768
A80: Belem/PA | B80: Montes Claros/MG | C80: Cia 1 | D80: Cia 2 | E80: Cia 3 | H80: Belem/PA | I80: Guanambi/BA | J80: Cia 1 | K80: Cia 2 | L80: Cia 3 | O80: Belem/PA | P80: Petrolina/PE | Q80: Cia 1 | R80: Cia 2 | S80: Cia 3 | V80: Belem/PA | W80: Aracaju/SE | X80: Cia 1 | Y80: Cia 2 | Z80: Cia 3 | AC80: Belem/PA | AD80: Maceio/AL | AE80: Cia 1 | AF80: Cia 2 | AG80: Cia 3
C81: 1343 | D81: 1343 | E81: 1361 | J81: 7822 | K81: - | L81: - | Q81: 2010 | R81: 2154 | S81: 2287 | X81: 2077 | Y81: 2201 | Z81: 2839 | AE81: 1564 | AF81: 1564 | AG81: 2651
A103: Recife/PE | B103: Montes Claros/MG | C103: Cia 1 | D103: Cia 2 | E103: Cia 3 | H103: Recife/PE | I103: Guanambi/BA | J103: Cia 1 | K103: Cia 2 | L103: Cia 3 | O103: Recife/PE | P103: Petrolina/PE | Q103: Cia 1 | R103: Cia 2 | S103: Cia 3 | V103: Recife/PE | W103: Aracaju/SE | X103: Cia 1 | Y103: Cia 2 | Z103: Cia 3 | AC103: Recife/PE | AD103: Maceio/AL | AE103: Cia 1 | AF103: Cia 2 | AG103: Cia 3
C104: 2521 | D104: 2521 | E104: 2927 | J104: 2857 | K104: - | L104: - | Q104: 1567 | R104: 2203 | S104: 2340 | X104: 1299 | Y104: 1816 | Z104: 1948 | AE104: 2418 | AF104: 2962 | AG104: -
A127: Mediana | C127: =TRUNC(MEDIAN(C6:F125),2) -> 1110 | H127: Mediana | J127: =TRUNC(MEDIAN(J6:M125),2) -> 2995 | O127: Mediana | Q127: =TRUNC(MEDIAN(Q6:T125),2) -> 2118 | V127: Mediana | X127: =TRUNC(MEDIAN(X6:AA125),2) -> 1422 | AC127: Mediana | AE127: =TRUNC(MEDIAN(AE6:AH125),2) -> 1564
A129: 2024-12-18

Sheet Passagem aérea
A10: Meio de Transporte | B10: Cidade Destino | C10: Quantidade de Viagem | D10: Valor Total de Passagens | E10: Valor Médio da Passagem | F10: Mediana das cotações | G10: Menor valor (PaineldeViagens x Cotações) | H10: Quantidade de passagens por Destino (ISR+ISE) | I10: Gasto total com passagens | J10: Valor adotado por passagem
A11: AÉREO | B11: MACEIÓ | C11: 2133 | D11: 6508307.71 | E11: =TRUNC(D11/C11,2) -> 3051.24 | F11: ='Cotação Voos'!AE127 -> 1564 | G11: =SMALL(F11:F11,1) -> 1564 | H11: 5 | I11: =G11*H11 -> 7820
A12: AÉREO | B12: ARACAJU | C12: 1720 | D12: 4363494.7 | E12: 2536.91 | F12: ='Cotação Voos'!X127 -> 1422 | G12: =SMALL(F12:F12,1) -> 1422 | H12: 5 | I12: =G12*H12 -> 7110
A13: AÉREO | B13: PETROLINA | C13: 869 | D13: 2345612.04 | E13: 2699.2 | F13: ='Cotação Voos'!Q127 -> 2118 | G13: =SMALL(F13:F13,1) -> 2118 | H13: 15 | I13: 31770
A14: AÉREO | B14: MONTES CLAROS | C14: 215 | D14: 544938.87 | E14: 2534.59 | F14: ='Cotação Voos'!C127 -> 1110 | G14: =SMALL(F14:F14,1) -> 1110 | H14: 5 | I14: 5550
A15: AÉREO | B15: GUANAMBI | C15: 53 | D15: 207979.75 | E15: 3924.14 | F15: ='Cotação Voos'!J127 -> 2995 | G15: =SMALL(F15:F15,1) -> 2995 | H15: 5 | I15: 14975
A16: Fonte: https://paineldeviagens.economia.gov.br/ | G16: Total | H16: =SUM(H11:H15) -> 35 | I16: =SUM(I11:I15) -> 67225 | J16: =TRUNC((I16/H16),2) -> 1920.71
A17: Consulta em 18/12/2024
A18: Filtros: Ano 2024; transporte aéreo; viagens nacionais; origens e destinos identicos à planilha de cotação de voos; quantidade de viagens; valor da passagem; status de bilhete emitido; status de viagem concluída. | G18: =MEDIAN(G11:G15) -> 1564 | H18: =G18*H16 -> 54740 | I18: =I16-H18 -> 12485
C19: total | D19: valor total | E19: Valor médio passagem
C20: =SUM(C11:C15) -> 4990 | D20: =SUM(D11:D15) -> 13970333.07 | E20: =D20/C20 -> 2799.665946

Sheet Veiculo
